Workbook

Sheet Recap
A1: BID RECAP SHEET
E2: Date:
A3: Company: | B3: =CompanyName -> Comfort Systems USA Arkansas
A4: JobName: | B4: =JobName -> MERCY 7TH FLOOR
A5: Bid: | B5: Base Bid
A6: Location: | B6: =JobSiteCity -> 0 | C6: =JobSiteState -> 0
C7: Labor
B8: Materials | C8: Hours | D8: Rate | E8: Labor $ | F8: Total
A9: Summary | B9: =PipeSummaryMatl -> 646413.7156 | C9: =PipeSummaryHours -> 8758.6659 | D9: =Labor!K17 -> 35 | E9: =D9*C9 -> 306553.3065 | F9: =E9+B9 -> 952967.0221
A10: Pipe Equipment Total | B10: =PipeEquipmentMatl -> 0 | C10: w/Summary | E10: 0 | F10: =E10+B10 -> 0
A11: Pipe Fixtures Total | B11: =PipeFixturesMatl -> 0 | C11: w/Summary | E11: 0 | F11: =E11+B11 -> 0
A12: Pipe Specialties Total | B12: =PipeSpecialtiesMatl -> 0 | C12: w/Summary | E12: 0 | F12: 0
A13: Pipe Other Total | B13: =PipeOtherMatl -> 0 | C13: w/Summary | E13: 0 | F13: 0
A14: Equipment | B14: =Equip!E50 -> 46160 | C14: =Equip!I50 -> 366 | D14: =Labor!K17 -> 35 | E14: =D14*C14 -> 12810 | F14: =E14+B14 -> 58970
A15: Fixtures | B15: =Fixt!E26 -> 94908 | C15: =Fixt!G26 -> 657 | D15: =Labor!K17 -> 35 | E15: =D15*C15 -> 22995 | F15: 117903
A16: Other Job Costs | B16: =Other!C59 -> 284238.9984 | C16: =Other!E59 -> 2815 | D16: Varies | E16: =Other!G59 -> 104125 | F16: 388363.9984
A17: Rental Equipment | B17: =Rental!I52 -> 0 | E17: =D17*C17 -> 0 | F17: 0
A18: Overtime Pay | E18: =D18*C18 -> 0 | F18: 0
A19: Other | E19: =D19*C19 -> 0 | F19: 0
A20: Sub Total | B20: =SUM(B9:B19) -> 1071720.714 | C20: =SUM(C9+C14+C15+C16+C17+C18+C19) -> 12596.6659 | E20: =SUM(E9:E19) -> 446483.3065 | F20: =SUM(F9:F19) -> 1518204.02
A21: Sales Tax | B21: =IF(MID(Info!F8,1,1)="Y",(Info!H8/100)*Recap!B20,IF(MID(Info!F10,1,1)="Y",(Info!H10/100)*Recap!B20,IF(MID(Info!F11,1,1)="Y"," Below",0))) -> 104492.7696 | E21: =IF(MID(Info!F9,1,1)="Y",(Info!H9/100)*Recap!E20,IF(MID(Info!F10,1,1)="Y",(Info!H10/100)*Recap!E20,IF(MID(Info!F11,1,1)="Y"," Below",0))) -> 214311.9871 | F21: =SUM(B21:E21) -> 318804.7567
A22: Sub Total | B22: =SUM(B20:B21) -> 1176213.484 | E22: =SUM(E20:E21) -> 660795.2936 | F22: =SUM(F20:F21) -> 1837008.777
B24: Subcontracts | E24: =Subs!B2 -> including Sales Tax | F24: =Subs!D48 -> 703614
E25: Sub Total | F25: =F24+F22 -> 2540622.777
E27: Warranty
E28: Material Escalation
E29: Freight
E30: Per Diem
E31: Truck | F31: 5000
E32: Excavation
E33: Sub Total | F33: =SUM(F27:F32)+F25 -> 2545622.777
D35: % | E35: Overhead | F35: =(C35/100)*F33 -> 0
C36: 12 | D36: % | E36: Profit | F36: =(C36/100)*(F33+F35) -> 305474.7333
E37: Sub Total | F37: =SUM(F35:F36)+F33 -> 2851097.51
E39: Sales Tax | F39: =IF(MID(Info!F11,1,1)="Y",(Info!H11/100)*F37,0) -> 0
E40: Sub Total | F40: =F39+F37 -> 2851097.51
A42: Estimator:______________________________________ | E42: Bond | F42: =IF(Info!F15="Y",(Info!H15/100)*F40,0) -> 0
E43: QUOTED PRICE | F43: =F42+F40 -> 2851097.51
A45: Reviewer:_______________________________________
A48: 2nd Reviewer / Math Checked By:___________________________________
A49: (If over $1 Million)

Sheet Equip
A1: HVAC EQUIPMENT
A3: Company: | B3: =CompanyName -> Comfort Systems USA Arkansas
A4: JobName: | B4: =JobPath -> S:\FastEST\FastEST-Local.site\Jobs\MERCY 7TH FLOOR.job
D6: Materials | F6: Sheet Metal Materials | H6: Labor Hours | J6: SM Shop Hours | L6: SM Field Hours | O6: Trane | Q6: Airetech | S6: Carrier | U6: York | W6: Jaco | Y6: Fluid Solutions
A7: Mark | B7: Description | C7: Quantity | D7: Unit | E7: Total | F7: Unit | G7: Total | H7: Unit | I7: Total | J7: Unit | K7: Total | L7: Unit | M7: Total | O7: Each | P7: Total | Q7: Each | R7: Total | S7: Each | T7: Total | U7: Each | V7: Total | W7: Each | X7: Total | Y7: Each | Z7: Total | AA7: Each | AB7: Total | AC7: Each | AD7: Total
B8: VAVs | C8: 59 | E8: =D8*C8 -> 0 | G8: =F8*C8 -> 0 | H8: 3 | I8: =H8*C8 -> 177 | K8: =J8*C8 -> 0 | M8: =L8*C8 -> 0 | P8: =SUM(C8*O8) -> 0 | R8: =SUM(C8*Q8) -> 0 | T8: =SUM(C8*S8) -> 0 | V8: =SUM(C8*U8) -> 0 | X8: =SUM(C8*W8) -> 0 | Z8: =SUM(C8*Y8) -> 0 | AB8: =SUM(C8*AA8) -> 0 | AD8: =SUM(C8*AC8) -> 0
B9: Exhaust Fans | C9: 4 | E9: =D9*C9 -> 0 | G9: =F9*C9 -> 0 | H9: 3 | I9: =H9*C9 -> 12 | K9: =J9*C9 -> 0 | M9: =L9*C9 -> 0 | P9: =SUM(C9*O9) -> 0 | R9: =SUM(C9*Q9) -> 0 | T9: =SUM(C9*S9) -> 0 | V9: =SUM(C9*U9) -> 0 | X9: =SUM(C9*W9) -> 0 | Z9: =SUM(C9*Y9) -> 0 | AB9: =SUM(C9*AA9) -> 0 | AD9: =SUM(C9*AC9) -> 0
B10: Airetech | C10: 1 | D10: 27870 | E10: 27870 | G10: 0 | I10: 0 | K10: 0 | M10: 0 | P10: =SUM(C10*O10) -> 0 | R10: =SUM(C10*Q10) -> 0 | T10: =SUM(C10*S10) -> 0 | V10: =SUM(C10*U10) -> 0 | X10: =SUM(C10*W10) -> 0 | Z10: =SUM(C10*Y10) -> 0 | AB10: =SUM(C10*AA10) -> 0 | AD10: =SUM(C10*AC10) -> 0
E11: 0 | G11: 0 | I11: 0 | K11: 0 | M11: 0 | P11: 0 | R11: 0 | T11: 0 | V11: 0 | X11: 0 | Z11: 0 | AB11: 0 | AD11: 0
B12: Valve Packs | C12: 59 | D12: 310 | E12: 18290 | G12: 0 | H12: 3 | I12: 177 | K12: 0 | M12: 0 | P12: 0 | R12: 0 | T12: 0 | V12: 0 | X12: 0 | Z12: 0 | AB12: 0 | AD12: 0
E13: 0 | G13: 0 | I13: 0 | K13: 0 | M13: 0 | P13: 0 | R13: 0 | T13: 0 | V13: 0 | X13: 0 | Z13: 0 | AB13: 0 | AD13: 0
E14: 0 | G14: 0 | I14: 0 | K14: 0 | M14: 0 | P14: 0 | R14: 0 | T14: 0 | V14: 0 | X14: 0 | Z14: 0 | AB14: 0 | AD14: 0
E15: 0 | G15: 0 | I15: 0 | K15: 0 | M15: 0 | P15: 0 | R15: 0 | T15: 0 | V15: 0 | X15: 0 | Z15: 0 | AB15: 0 | AD15: 0
E16: 0 | G16: 0 | I16: 0 | K16: 0 | M16: 0 | P16: 0 | R16: 0 | T16: 0 | V16: 0 | X16: 0 | Z16: 0 | AB16: 0 | AD16: 0
E17: 0 | G17: 0 | I17: 0 | K17: 0 | M17: 0 | P17: 0 | R17: 0 | T17: 0 | V17: 0 | X17: 0 | Z17: 0 | AB17: 0 | AD17: 0
E18: 0 | G18: 0 | I18: 0 | K18: 0 | M18: 0 | P18: 0 | R18: 0 | T18: 0 | V18: 0 | X18: 0 | Z18: 0 | AB18: 0 | AD18: 0
E19: 0 | G19: 0 | I19: 0 | K19: 0 | M19: 0 | P19: 0 | R19: 0 | T19: 0 | V19: 0 | X19: 0 | Z19: 0 | AB19: 0 | AD19: 0
E20: 0 | G20: 0 | I20: 0 | K20: 0 | M20: 0 | P20: 0 | R20: 0 | T20: 0 | V20: 0 | X20: 0 | Z20: 0 | AB20: 0 | AD20: 0
E21: 0 | G21: 0 | I21: 0 | K21: 0 | M21: 0 | P21: 0 | R21: 0 | T21: 0 | V21: 0 | X21: 0 | Z21: 0 | AB21: 0 | AD21: 0
E22: 0 | G22: 0 | I22: 0 | K22: 0 | M22: 0 | P22: 0 | R22: 0 | T22: 0 | V22: 0 | X22: 0 | Z22: 0 | AB22: 0 | AD22: 0
E23: 0 | G23: 0 | I23: 0 | K23: 0 | M23: 0 | P23: 0 | R23: 0 | T23: 0 | V23: 0 | X23: 0 | Z23: 0 | AB23: 0 | AD23: 0
E24: 0 | G24: 0 | I24: 0 | K24: 0 | M24: 0 | P24: 0 | R24: 0 | T24: 0 | V24: 0 | X24: 0 | Z24: 0 | AB24: 0 | AD24: 0
E25: 0 | G25: 0 | I25: 0 | K25: 0 | M25: 0 | P25: 0 | R25: 0 | T25: 0 | V25: 0 | X25: 0 | Z25: 0 | AB25: 0 | AD25: 0
E26: 0 | G26: 0 | I26: 0 | K26: 0 | M26: 0 | P26: 0 | R26: 0 | T26: 0 | V26: 0 | X26: 0 | Z26: 0 | AB26: 0 | AD26: 0
E27: 0 | G27: 0 | I27: 0 | K27: 0 | M27: 0 | P27: 0 | R27: 0 | T27: 0 | V27: 0 | X27: 0 | Z27: 0 | AB27: 0 | AD27: 0
E28: 0 | G28: 0 | I28: 0 | K28: 0 | M28: 0 | P28: 0 | R28: 0 | T28: 0 | V28: 0 | X28: 0 | Z28: 0 | AB28: 0 | AD28: 0
E29: 0 | G29: 0 | I29: 0 | K29: 0 | M29: 0 | P29: 0 | R29: 0 | T29: 0 | V29: 0 | X29: 0 | Z29: 0 | AB29: 0 | AD29: 0
E30: 0 | G30: 0 | I30: 0 | K30: 0 | M30: 0 | P30: 0 | R30: 0 | T30: 0 | V30: 0 | X30: 0 | Z30: 0 | AB30: 0 | AD30: 0
E31: 0 | G31: 0 | I31: 0 | K31: 0 | M31: 0 | P31: 0 | R31: 0 | T31: 0 | V31: 0 | X31: 0 | Z31: 0 | AB31: 0 | AD31: 0
E32: 0 | G32: 0 | I32: 0 | K32: 0 | M32: 0 | P32: 0 | R32: 0 | T32: 0 | V32: 0 | X32: 0 | Z32: 0 | AB32: 0 | AD32: 0
E33: 0 | G33: 0 | I33: 0 | K33: 0 | M33: 0 | P33: 0 | R33: 0 | T33: 0 | V33: 0 | X33: 0 | Z33: 0 | AB33: 0 | AD33: 0
E34: 0 | G34: 0 | I34: 0 | K34: 0 | M34: 0 | P34: 0 | R34: 0 | T34: 0 | V34: 0 | X34: 0 | Z34: 0 | AB34: 0 | AD34: 0
E35: 0 | G35: 0 | I35: 0 | K35: 0 | M35: 0 | P35: 0 | R35: 0 | T35: 0 | V35: 0 | X35: 0 | Z35: 0 | AB35: 0 | AD35: 0
E36: 0 | G36: 0 | I36: 0 | K36: 0 | M36: 0 | P36: 0 | R36: 0 | T36: 0 | V36: 0 | X36: 0 | Z36: 0 | AB36: 0 | AD36: 0
E37: 0 | G37: 0 | I37: 0 | K37: 0 | M37: 0 | P37: 0 | R37: 0 | T37: 0 | V37: 0 | X37: 0 | Z37: 0 | AB37: 0 | AD37: 0
E38: 0 | G38: 0 | I38: 0 | K38: 0 | M38: 0 | P38: 0 | R38: 0 | T38: 0 | V38: 0 | X38: 0 | Z38: 0 | AB38: 0 | AD38: 0
E39: 0 | G39: 0 | I39: 0 | K39: 0 | M39: 0 | P39: 0 | R39: 0 | T39: 0 | V39: 0 | X39: 0 | Z39: 0 | AB39: 0 | AD39: 0
E40: 0 | G40: 0 | I40: 0 | K40: 0 | M40: 0 | P40: 0 | R40: 0 | T40: 0 | V40: 0 | X40: 0 | Z40: 0 | AB40: 0 | AD40: 0
E41: 0 | G41: 0 | I41: 0 | K41: 0 | M41: 0 | P41: 0 | R41: 0 | T41: 0 | V41: 0 | X41: 0 | Z41: 0 | AB41: 0 | AD41: 0
E42: 0 | G42: 0 | I42: 0 | K42: 0 | M42: 0 | P42: 0 | R42: 0 | T42: 0 | V42: 0 | X42: 0 | Z42: 0 | AB42: 0 | AD42: 0
E43: 0 | G43: 0 | I43: 0 | K43: 0 | M43: 0 | P43: 0 | R43: 0 | T43: 0 | V43: 0 | X43: 0 | Z43: 0 | AB43: 0 | AD43: 0
E44: 0 | G44: 0 | I44: 0 | K44: 0 | M44: 0 | P44: 0 | R44: 0 | T44: 0 | V44: 0 | X44: 0 | Z44: 0 | AB44: 0 | AD44: 0
E45: 0 | G45: 0 | I45: 0 | K45: 0 | M45: 0 | P45: 0 | R45: 0 | T45: 0 | V45: 0 | X45: 0 | Z45: 0 | AB45: 0 | AD45: 0
E46: 0 | G46: 0 | I46: 0 | K46: 0 | M46: 0 | P46: 0 | R46: 0 | T46: 0 | V46: 0 | X46: 0 | Z46: 0 | AB46: 0 | AD46: 0
E47: 0 | G47: 0 | I47: 0 | K47: 0 | M47: 0 | P47: 0 | R47: 0 | T47: 0 | V47: 0 | X47: 0 | Z47: 0 | AB47: 0 | AD47: 0
E48: 0 | G48: 0 | I48: 0 | K48: 0 | M48: 0 | P48: 0 | R48: 0 | T48: 0 | V48: 0 | X48: 0 | Z48: 0 | AB48: 0 | AD48: 0
E49: 0 | G49: 0 | I49: 0 | K49: 0 | M49: 0 | P49: 0 | R49: 0 | T49: 0 | V49: 0 | X49: 0 | Z49: 0 | AB49: 0 | AD49: 0
B50: Totals | E50: =SUM(E8:E49) -> 46160 | G50: =SUM(G8:G49) -> 0 | I50: =SUM(I8:I49) -> 366 | K50: =SUM(K8:K49) -> 0 | M50: =SUM(M8:M49) -> 0 | P50: =SUM(P8:P49) -> 0 | R50: =SUM(R8:R49) -> 0 | T50: =SUM(T8:T49) -> 0 | V50: =SUM(V8:V49) -> 0 | X50: =SUM(X8:X49) -> 0 | Z50: =SUM(Z8:Z49) -> 0 | AB50: =SUM(AB8:AB49) -> 0 | AD50: =SUM(AD8:AD49) -> 0

Sheet Fixt
A1: FIXTURE
A3: Company: | B3: =CompanyName -> Comfort Systems USA Arkansas
A4: JobName: | B4: =JobPath -> S:\FastEST\FastEST-Local.site\Jobs\MERCY 7TH FLOOR.job
D6: Materials | F6: Labor Hours | I6: SPWN | K6: Ferguson | M6: Star | O6: Sanders
A7: Mark | B7: Description | C7: Quantity | D7: Unit | E7: Total | F7: Unit | G7: Total | I7: Each | J7: Total | K7: Each | L7: Total | M7: Each | N7: Total | O7: Each | P7: Total
A8: DB1 | C8: 30 | D8: 34 | E8: =D8*C8 -> 1020 | F8: 2 | G8: =F8*C8 -> 60 | J8: =SUM(C8*I8) -> 0 | L8: =SUM(C8*K8) -> 0 | N8: =SUM(C8*M8) -> 0 | P8: =SUM(C8*O8) -> 0
A9: DF1 | C9: 1 | D9: 1260 | E9: 1260 | F9: 4 | G9: 4 | J9: 0 | L9: 0 | N9: 0 | P9: 0
A10: EE1 | C10: 3 | D10: 1100 | E10: 3300 | F10: 2 | G10: 6 | J10: 0 | L10: 0 | N10: 0 | P10: 0
A11: LV1 | C11: 41 | D11: 632 | E11: 25912 | F11: 3 | G11: 123 | J11: 0 | L11: 0 | N11: 0 | P11: 0
A12: LV2 | C12: 2 | D12: 2710 | E12: 5420 | F12: 3 | G12: 6 | J12: 0 | L12: 0 | N12: 0 | P12: 0
A13: MB1 | C13: 1 | D13: 620 | E13: 620 | F13: 4 | G13: 4 | J13: 0 | L13: 0 | N13: 0 | P13: 0
A14: SH1 | C14: 38 | D14: 320 | E14: 12160 | F14: 4 | G14: 152 | J14: 0 | L14: 0 | N14: 0 | P14: 0
A15: SK1 | C15: 2 | D15: 420 | E15: 840 | F15: 3 | G15: 6 | J15: 0 | L15: 0 | N15: 0 | P15: 0
A16: SK2 | C16: 3 | D16: 420 | E16: 1260 | F16: 3 | G16: 9 | J16: 0 | L16: 0 | N16: 0 | P16: 0
A17: SK3 | C17: 2 | D17: 660 | E17: 1320 | F17: 3 | G17: 6 | J17: 0 | L17: 0 | N17: 0 | P17: 0
A18: SK4 | C18: 36 | D18: 280 | E18: 10080 | F18: 3 | G18: 108 | J18: 0 | L18: 0 | N18: 0 | P18: 0
A19: SK5 | C19: 5 | D19: 660 | E19: 3300 | F19: 3 | G19: 15 | J19: 0 | L19: 0 | N19: 0 | P19: 0
A20: WB1 | C20: 3 | D20: 72 | E20: 216 | F20: 2 | G20: 6 | J20: 0 | L20: 0 | N20: 0 | P20: 0
A21: WC1 | B21: WM w/carrier | C21: 33 | D21: 768 | E21: 25344 | F21: 4 | G21: 132 | J21: 0 | L21: 0 | N21: 0 | P21: 0
A22: WC2 | B22: WM w/carrier | C22: 4 | D22: 494 | E22: 1976 | F22: 4 | G22: 16 | J22: 0 | L22: 0 | N22: 0 | P22: 0
A23: WC3 | B23: WM w/carrier | C23: 1 | D23: 880 | E23: 880 | F23: 4 | G23: 4 | J23: 0 | L23: 0 | N23: 0 | P23: 0
E24: 0 | G24: 0 | J24: 0 | L24: 0 | N24: 0 | P24: 0
E25: =D25*C25 -> 0 | G25: =F25*C25 -> 0 | J25: =SUM(C25*I25) -> 0 | L25: =SUM(C25*K25) -> 0 | N25: =SUM(C25*M25) -> 0 | P25: =SUM(C25*O25) -> 0
B26: Totals | C26: =SUM(C8:C25) -> 205 | E26: =SUM(E8:E25) -> 94908 | G26: =SUM(G8:G25) -> 657 | J26: =SUM(J8:J25) -> 0 | L26: =SUM(L8:L25) -> 0 | N26: =SUM(N8:N25) -> 0 | P26: =SUM(P8:P25) -> 0

Sheet Other
A1: OTHER JOB COSTS
A3: Company: | B3: =CompanyName -> Comfort Systems USA Arkansas
A4: JobName: | B4: =JobPath -> S:\FastEST\FastEST-Local.site\Jobs\MERCY 7TH FLOOR.job
C7: Materials | E7: Labor Hours
B8: Description | C8: Total | D8: Sheet Metal | E8: Hours | F8: Rate | G8: Total | H8: Shop Hrs | I8: Rate | J8: Total | K8: Field Hrs | L8: Rate | M8: Total
A9: 1 | B9: Small Tools (5% of Labor) | C9: =SUM(Recap!E20*0.06) -> 26788.99839 | E9: 0 | F9: 0 | G9: =IF(E9>0,IF(F9=0,"No Rate",E9*F9),0) -> 0 | J9: =IF(H9>0,IF(I9=0,"No Rate",H9*I9),0) -> 0 | M9: =IF(K9>0,IF(L9=0,"No Rate",K9*L9),0) -> 0
A10: 2 | G10: =IF(E10>0,IF(F10=0,"No Rate",E10*F10),0) -> 0 | J10: =IF(H10>0,IF(I10=0,"No Rate",H10*I10),0) -> 0 | M10: =IF(K10>0,IF(L10=0,"No Rate",K10*L10),0) -> 0
A11: 3 | B11: Supervision | E11: 1120 | F11: 40 | G11: 44800 | J11: 0 | M11: 0
A12: 4 | G12: 0 | J12: 0 | M12: 0
A13: 5 | B13: Permits - Plumbing | C13: 3000 | G13: 0 | J13: 0 | M13: 0
A14: 6 | B14: Permits - Mechanical | C14: 1225 | G14: 0 | J14: 0 | M14: 0
A15: 7 | G15: 0 | J15: 0 | M15: 0
A16: 8 | G16: 0 | J16: 0 | M16: 0
A17: 9 | B17: Mechanical ID | C17: 1200 | E17: 30 | F17: 35 | G17: 1050 | J17: 0 | M17: 0
A18: 10 | B18: Plumbing ID | C18: 1200 | E18: 30 | F18: 35 | G18: 1050 | J18: 0 | M18: 0
A19: 11 | G19: 0 | J19: 0 | M19: 0
A20: 12 | G20: 0 | J20: 0 | M20: 0
A21: 13 | G21: 0 | J21: 0 | M21: 0
A22: 14 | B22: Equipment Rental / Crane | C22: 10000 | G22: 0 | J22: 0 | M22: 0
A23: 15 | G23: 0 | J23: 0 | M23: 0
A24: 16 | B24: Consumables | C24: 5000 | G24: 0 | J24: 0 | M24: 0
A25: 17 | G25: 0 | J25: 0 | M25: 0
A26: 18 | B26: Firestop | C26: 3500 | E26: 65 | F26: 35 | G26: 2275 | J26: 0 | M26: 0
A27: 19 | F27: 35 | G27: 0 | J27: 0 | M27: 0
A28: 20 | B28: Demolition | C28: 5000 | E28: 120 | F28: 35 | G28: 4200 | J28: 0 | M28: 0
A29: 21 | B29: Core Drilling and Sleeves | C29: 68975 | E29: 300 | F29: 35 | G29: 10500 | J29: 0 | M29: 0
A30: 22 | B30: Connect to Existing | C30: 500 | E30: 80 | F30: 35 | G30: 2800 | J30: 0 | M30: 0
A31: 23 | B31: Draining & Refilling | C31: 500 | E31: 60 | F31: 35 | G31: 2100 | J31: 0 | M31: 0
A32: 24 | B32: Pressure Testing | C32: 500 | E32: 100 | F32: 35 | G32: 3500 | J32: 0 | M32: 0
A33: 25 | F33: 35 | G33: 0 | J33: 0 | M33: 0
A34: 26 | B34: Access Panels | C34: 1200 | E34: 5 | F34: 35 | G34: 175 | J34: 0 | M34: 0
A35: 27 | B35: Seismic Protection | C35: 84100 | E35: 300 | F35: 35 | G35: 10500 | J35: 0 | M35: 0
A36: 28 | B36: Med Gas Outlets | C36: 49850 | E36: 425 | F36: 35 | G36: 14875 | J36: 0 | M36: 0
A37: 29 | F37: 35 | G37: 0 | J37: 0 | M37: 0
A38: 30 | B38: Temporary Plumbing or HVAC | C38: 500 | E38: 20 | F38: 35 | G38: 700 | J38: 0 | M38: 0
A39: 31 | B39: Temp Filters | C39: 1200 | E39: 40 | F39: 35 | G39: 1400 | J39: 0 | M39: 0
A40: 32 | F40: 35 | G40: 0 | J40: 0 | M40: 0
A41: 33 | B41: Bim Coordination (pinnacle) | C41: 20000 | E41: 120 | F41: 35 | G41: 4200 | J41: 0 | M41: 0
A42: 34 | F42: 35 | G42: 0 | J42: 0 | M42: 0
A43: 35 | F43: 35 | G43: 0 | J43: 0 | M43: 0
A44: 36 | F44: 35 | G44: 0 | J44: 0 | M44: 0
A45: 37 | F45: 35 | G45: 0 | J45: 0 | M45: 0
A46: 38 | G46: 0 | J46: 0 | M46: 0
A47: 39 | G47: 0 | J47: 0 | M47: 0
A48: 40 | G48: 0 | J48: 0 | M48: 0
A49: 41 | G49: 0 | J49: 0 | M49: 0
A50: 42 | G50: 0 | J50: 0 | M50: 0
A51: 43 | G51: 0
A52: 44 | G52: 0
A53: 45 | G53: 0
A54: 46 | G54: 0
A55: 47 | G55: =IF(E55>0,IF(F55=0,"No Rate",E55*F55),0) -> 0
A56: 48 | G56: =IF(E56>0,IF(F56=0,"No Rate",E56*F56),0) -> 0
A57: 49 | G57: 0
A58: 50 | G58: 0
C59: =SUM(C9:C58) -> 284238.9984 | D59: =SUM(D9:D50) -> 0 | E59: =SUM(E9:E58) -> 2815 | G59: =SUM(G9:G58) -> 104125 | H59: =SUM(H9:H50) -> 0 | J59: =SUM(J9:J50) -> 0 | K59: =SUM(K9:K50) -> 0 | M59: =SUM(M9:M50) -> 0

Sheet Rental
A1: EQUIPMENT RENTAL
A3: Company: | B3: =CompanyName -> Comfort Systems USA Arkansas
A4: JobName: | B4: =JobPath -> S:\FastEST\FastEST-Local.site\Jobs\MERCY 7TH FLOOR.job
C7: Rental Rates
C8: Daily | E8: Weekly | G8: Monthly
B9: Description | C9: Days | D9: Rate | E9: Weeks | F9: Rate | G9: Months | H9: Rate | I9: Total
A10: 1 | B10: Automobile | D10: 0 | F10: 0 | H10: 5 | I10: =(C10*D10)+(E10*F10)+(G10*H10) -> 0
A11: 2 | B11: 1 1/2 Ton Stake | D11: 0 | F11: 0 | H11: 0 | I11: =(C11*D11)+(E11*F11)+(G11*H11) -> 0
A12: 3 | B12: 2 Ton Flat Bed | D12: 0 | F12: 0 | H12: 0 | I12: =(C12*D12)+(E12*F12)+(G12*H12) -> 0
A13: 4 | B13: 2" Pipe Machine | D13: 0 | F13: 0 | H13: 0 | I13: 0
A14: 5 | B14: 4" Pipe Machine | D14: 0 | F14: 0 | H14: 0 | I14: 0
A15: 6 | B15: 8" Pipe Machine | D15: 0 | F15: 0 | H15: 0 | I15: 0
A16: 7 | B16: Air Compressor | D16: 0 | F16: 0 | H16: 0 | I16: 0
A17: 8 | B17: Backhoe | D17: 0 | F17: 0 | H17: 0 | I17: 0
A18: 9 | B18: Band Saw | D18: 0 | F18: 0 | H18: 0 | I18: 0
A19: 10 | B19: Boom Lift | D19: 0 | F19: 0 | H19: 0 | I19: 0
A20: 11 | B20: Crane 18 ton | D20: 0 | F20: 0 | H20: 0 | I20: 0
A21: 12 | B21: Crane 25 ton | D21: 0 | F21: 0 | H21: 0 | I21: 0
A22: 13 | B22: Cut-off Saw | D22: 0 | F22: 0 | H22: 0 | I22: 0
A23: 14 | B23: Dewatering Equipment | D23: 0 | F23: 0 | H23: 0 | I23: 0
A24: 15 | B24: Fork Lift | D24: 0 | F24: 0 | H24: 0 | I24: 0
A25: 16 | B25: Grooving Machine | D25: 0 | F25: 0 | H25: 0 | I25: 0
A26: 17 | B26: High Jacks | D26: 0 | F26: 0 | H26: 0 | I26: 0
A27: 18 | B27: Hydraulic Lift | D27: 0 | F27: 0 | H27: 0 | I27: 0
A28: 19 | B28: Pick-up Truck | D28: 0 | F28: 0 | H28: 0 | I28: 0
A29: 20 | B29: Pipe Bender | D29: 0 | F29: 0 | H29: 0 | I29: 0
A30: 21 | B30: Pipe Machine | D30: 0 | F30: 0 | H30: 0 | I30: 0
A31: 22 | B31: Portable Building | D31: 0 | F31: 0 | H31: 0 | I31: 0
A32: 23 | B32: Portable Hoist | D32: 0 | F32: 0 | H32: 0 | I32: 0
A33: 24 | B33: Power Hoist | D33: 0 | F33: 0 | H33: 0 | I33: 0
A34: 25 | B34: Scaffolding | D34: 0 | F34: 0 | H34: 0 | I34: 0
A35: 26 | B35: Scissor Lift | D35: 0 | F35: 0 | H35: 0 | I35: 0
A36: 27 | B36: Tractor | D36: 0 | F36: 0 | H36: 0 | I36: 0
A37: 28 | B37: Trailer Van | D37: 0 | F37: 0 | H37: 0 | I37: 0
A38: 29 | B38: Trenching Machine | D38: 0 | F38: 0 | H38: 0 | I38: 0
A39: 30 | B39: Water Pump | D39: 0 | F39: 0 | H39: 0 | I39: 0
A40: 31 | B40: Welder Electric | D40: 0 | F40: 0 | H40: 0 | I40: 0
A41: 32 | B41: Welder Gas | D41: 0 | F41: 0 | H41: 0 | I41: 0
A42: 33 | B42: Welder Heli-arc | D42: 0 | F42: 0 | H42: 0 | I42: 0
A43: 34 | D43: 0 | F43: 0 | H43: 0 | I43: 0
A44: 35 | D44: 0 | F44: 0 | H44: 0 | I44: 0
A45: 36 | D45: 0 | F45: 0 | H45: 0 | I45: 0
A46: 37 | D46: 0 | F46: 0 | H46: 0 | I46: 0
A47: 38 | D47: 0 | F47: 0 | H47: 0 | I47: 0
A48: 39 | D48: 0 | F48: 0 | H48: 0 | I48: 0
A49: 40 | D49: 0 | F49: 0 | H49: 0 | I49: 0
A50: 41 | D50: 0 | F50: 0 | H50: 0 | I50: 0
A51: 42 | D51: 0 | F51: 0 | H51: 0 | I51: 0
I52: =SUM(I10:I51) -> 0

Sheet Subs
A1: SUBCONTRACTORS
B2: =IF(Info!F11="Y","NOT including Sales Tax",IF(Info!F12="Y","NOT including Sales Tax","including Sales Tax")) -> including Sales Tax
A3: Company: | B3: =CompanyName -> Comfort Systems USA Arkansas
A4: JobName: | B4: =JobPath -> S:\FastEST\FastEST-Local.site\Jobs\MERCY 7TH FLOOR.job
F6: Sheet Metal | H6: Insulation | J6: Controls | L6: Chemical Treatment | N6: Electrical
B7: Description | C7: Vendor | D7: Price | F7: Vendor | G7: Price | H7: Vendor | I7: Price | J7: Vendor | K7: Price | L7: Vendor | M7: Price | N7: Vendor | O7: Price
A8: 1 | B8: Sheet Metal | C8: Knight Wilson | D8: 420000
A9: 2 | B9: Insulation | C9: Midwest | D9: 90814
A10: 3 | B10: Temperature Controls | C10: Airetech | D10: 166000
A11: 4 | B11: TAB | C11: Powers | D11: 22800
A12: 5
A13: 6
A14: 7 | B14: Flintco Procore Charge | D14: 4000
A15: 8
A16: 9
A17: 10
A18: 11
A19: 12
A20: 13
A21: 14
A22: 15
A23: 16
A24: 17
A25: 18
A26: 19
A27: 20
A28: 21
A29: 22
A30: 23
A31: 24
A32: 25
A33: 26
A34: 27
A35: 28
A36: 29
A37: 30
A38: 31
A39: 32
A40: 33
A41: 34
A42: 35
A43: 36
A44: 37
A45: 38
A46: 39
A47: 40
B48: Totals | D48: =SUM(D8:D47) -> 703614 | F48: Totals | G48: =SUM(G8:G47) -> 0 | H48: Totals | I48: =SUM(I8:I47) -> 0 | J48: Totals | K48: =SUM(K8:K47) -> 0 | L48: Totals | M48: =SUM(M8:M47) -> 0 | N48: Totals | O48: =SUM(O8:O47) -> 0

Sheet Labor
A1: LABOR RATES
A3: Company: | B3: =CompanyName -> Comfort Systems USA Arkansas
A4: JobName: | B4: =JobPath -> S:\FastEST\FastEST-Local.site\Jobs\MERCY 7TH FLOOR.job
A7: Sheet Metal Shop | C7: Crew | D7: Rate | E7: Total | H7: Plumber/Pipefitter | J7: Crew | K7: Rate | L7: Total
A8: General Foreman | C8: 0 | D8: 42.56 | E8: =D8*C8 -> 0 | H8: General Foreman | J8: 0 | K8: 44.31 | L8: =K8*J8 -> 0
A9: Foreman | C9: 1 | D9: 39.67 | E9: =D9*C9 -> 39.67 | H9: Foreman | J9: 0 | K9: 41.43 | L9: 0
A10: Journeyman | C10: 1 | D10: 36.78 | E10: 36.78 | H10: Journeyman | J10: 1 | K10: 35 | L10: 35
A11: 5th Year Apprentice | C11: 0 | D11: 32.46 | E11: 0 | H11: 5th Year Apprentice | J11: 0 | K11: 35.68 | L11: 0
A12: 4th Year Apprentice | C12: 0 | D12: 29.57 | E12: 0 | H12: 4th Year Apprentice | J12: 0 | K12: 32.8 | L12: 0
A13: 3rd Year Apprentice | C13: 0 | D13: 26.68 | E13: 0 | H13: 3rd Year Apprentice | J13: 0 | K13: 29.93 | L13: 0
A14: 2nd Year Apprentice | C14: 0 | D14: 25.23 | E14: 0 | H14: 2nd Year Apprentice | J14: 0 | K14: 27.05 | L14: 0
A15: 1st Year Apprentice | C15: 0 | D15: 23.79 | E15: 0 | H15: 1st Year Apprentice | J15: 0 | K15: 19.07 | L15: 0
A16: Laborer | C16: 0 | D16: 18.02 | E16: 0 | H16: Laborer | J16: 0 | K16: 15.9 | L16: 0
C17: =SUM(C8:C16) -> 2 | D17: =E17/C17 -> 38.225 | E17: =SUM(E8:E16) -> 76.45 | J17: =SUM(J8:J16) -> 1 | K17: =L17/J17 -> 35 | L17: =SUM(L8:L16) -> 35
A20: Sheet Metal Field | C20: Crew | D20: Rate | E20: Total | H20: OTHER LABOR | K20: Rate
A21: General Foreman | C21: 0 | D21: 42.56 | E21: =D21*C21 -> 0 | H21: Supervision | K21: 38
A22: Foreman | C22: 1 | D22: 39.67 | E22: 39.67 | H22: Start-up | K22: 35
A23: Journeyman | C23: 1 | D23: 36.78 | E23: 36.78 | H23: Delivery | K23: 15
A24: 5th Year Apprentice | C24: 0 | D24: 32.46 | E24: 0 | H24: Engineer | K24: 50
A25: 4th Year Apprentice | C25: 0 | D25: 29.57 | E25: 0 | H25: Drafting | K25: 40
A26: 3rd Year Apprentice | C26: 0 | D26: 26.68 | E26: 0 | H26: Project Manager | K26: 50
A27: 2nd Year Apprentice | C27: 0 | D27: 25.23 | E27: 0 | H27: Other 1 | K27: 0
A28: 1st Year Apprentice | C28: 0 | D28: 23.79 | E28: 0 | H28: Other 2 | K28: 0
A29: Laborer | C29: 0 | D29: 18.02 | E29: 0 | H29: Other 3 | K29: 0
C30: =SUM(C21:C29) -> 2 | D30: =E30/C30 -> 38.225 | E30: =SUM(E21:E29) -> 76.45

Sheet Info
A1: JOB INFORMATION
A3: Company: | B3: =CompanyName -> Comfort Systems USA Arkansas
A4: JobName: | B4: =JobPath -> S:\FastEST\FastEST-Local.site\Jobs\MERCY 7TH FLOOR.job
A7: Sales Tax (Enter Y in only one)
A8: Is there sales tax on materials? | E8: (Y or N) | F8: Y | G8: Tax % | H8: 9.75
A9: Is there sales tax on labor? | E9: (Y or N) | F9: Y | G9: Tax % | H9: 48
A10: Is there sales tax on materials & labor? | E10: (Y or N) | F10: N | G10: Tax % | H10: 7.5
A11: Is there sales tax on the whole job? | E11: (Y or N) | F11: N | G11: Tax % | H11: 7.5
A12: Is the job tax exempt? | E12: (Y or N) | F12: N
A14: Bond
A15: Does the job require a performance bond? | E15: (Y or N) | F15: N | G15: Bond % | H15: 0.4

Sheet PipeSummary
B1: Company: | C1: =CompanyName -> Comfort Systems USA Arkansas
B2: JobName: | C2: =JobPath -> S:\FastEST\FastEST-Local.site\Jobs\MERCY 7TH FLOOR.job
B3: Material Set: | C3: =PipeCalcMaterialSetName -> Factor 1
B4: Labor Set: | C4: =PipeCalcLaborSetName -> 1
B5: Run Date: | C5: =PipeCalcDateTime -> 2025-01-07T10:20:37
B6: Sort Key: | C6: By Matl Group
H7: * - Group contains items with quoted prices
A8: Matl | D8: Last | G8: List | H8: Matl | I8: Net | J8: Base | K8: Adj | L8: Job | M8: Job
A9: Group | B9: Matl Group Name | C9: Manufacturer | D9: Update | E9: Qty | F9: Wt | G9: Total | H9: Disc | I9: Total | J9: Hours | K9: Hours | L9: Fact | M9: Total
A10: bline6 | B10: Threaded Rod | C10: B-Line | D10: 2022-06-15 | E10: 5436 | F10: 0 | G10: 27591.268 | H10: 0.2 | I10: 5518.2536 | J10: 544.5200079 | K10: 544.520009 | L10: =IF(K10=0,1,M10/K10) -> 1 | M10: 544.520009
A11: bolts | B11: Bolts | C11: Bolt-Pak | D11: 2021-06-08 | E11: 144 | F11: 0 | G11: 142.56 | H11: 0.8 | I11: 114.048 | J11: 0 | K11: 0 | L11: 1 | M11: 0
A12: copfcb | B12: Clean & Bag Cop Ftgs Elkhart | C12: Elkhart Prod | D12: 2024-06-20T10:51:44 | E12: 990 | F12: 810.4979887 | G12: 328174.02 | H12: 0.25 | I12: 82043.505 | J12: 937.5000082 | K12: 937.5000076 | L12: 1 | M12: 937.5000076
A13: copfit | B13: Copper Fittings Elkhart | C13: Elkhart Prod | D13: 2024-06-20T10:51:44 | E13: 5029 | F13: 1534.926998 | G13: 489744.9 | H13: 0.2 | I13: 97948.98 | J13: 3331.109958 | K13: 3331.10994 | L13: 1 | M13: 3331.10994
A14: coptub | B14: Copper Tube Mueller | C14: Mueller | D14: 2024-11-05T21:23:31 | E14: 14038.7131 | F14: 28024.11676 | G14: 770185.0582 | H14: 0.4 | I14: 308074.0233 | J14: 1448.871032 | K14: 1448.871028 | L14: 1 | M14: 1448.871028
A15: fnwhgr | B15: Hangers & Supports | C15: FNW | D15: 2023-05-22 | E15: 6240 | F15: 0 | G15: 5333.768 | H15: 1 | I15: 5333.768 | J15: 156.0000023 | K15: 156.0000007 | L15: 1 | M15: 156.0000007
A16: gasket | B16: Gaskets | C16: Industrial S | D16: 1999-02-01 | E16: 18 | F16: 0 | G16: 20.7 | H16: 1 | I16: 20.7 | J16: 0 | K16: 0 | L16: 1 | M16: 0
A17: hanger | B17: Hangers | C17: B-Line | D17: 2022-06-15 | E17: 1944 | F17: 3504.930058 | G17: 46526.36 | H17: 0.2 | I17: 9305.272 | J17: 482.1499889 | K17: 482.1499858 | L17: 1 | M17: 482.1499858
A18: joint | B18: Joints | C18: Varies | D18: 2021-08-17 | E18: 12987 | F18: 8.472000074 | G18: 11662.24 | H18: 1 | I18: 11662.24 | J18: 93.0299989 | K18: 93.02999997 | L18: 1 | M18: 93.02999997
A19: milbal | B19: Ball Valves Milwaukee | C19: Milwaukee | D19: 2024-07-23T09:27:00 | E19: 80 | F19: 0 | G19: 7936.8 | H19: 0.35 | I19: 2777.88 | J19: 44.00000095 | K19: 44 | L19: 1 | M19: 44
A20: nbball | B20: Ball Valves Nibco | C20: Nibco | D20: 2024-07-23T09:27:00 | E20: 12 | F20: 235.2000046 | G20: 32988 | H20: 1 | I20: 32988 | J20: 22.9199996 | K20: 22.92000008 | L20: 1 | M20: 22.92000008
A21: nhcpch | B21: No-Hub Clamps Charlotte | C21: Charlotte | D21: 2022-06-01 | E21: 756 | F21: 529.199991 | G21: 32810.4 | H21: 0.22 | I21: 7218.288 | J21: 0 | K21: 0 | L21: 1 | M21: 0
A22: nhftch | B22: Cast Iron Soil NH Ftgs Char | C22: Charlotte | D22: 2024-01-18T12:41:15 | E22: 158 | F22: 2291 | G22: 17948.8 | H22: 0.4 | I22: 7179.52 | J22: 188.020009 | K22: 188.0200043 | L22: 1 | M22: 188.0200043
A23: nhpich | B23: Cast Iron Soil NH Pipe Char | C23: Charlotte | D23: 2024-01-18T12:41:15 | E23: 3324.77417 | F23: 24603.32917 | G23: 103799.4496 | H23: 0.44 | I23: 45671.75782 | J23: 664.9548439 | K23: 664.954834 | L23: 1 | M23: 664.954834
A24: shield | B24: Shields/Saddles | C24: B-Line | D24: 2022-06-15 | E24: 1010 | F24: 1368.059978 | G24: 48029.26 | H24: 0.39 | I24: 18731.4114 | J24: 232.3000042 | K24: 232.3000107 | L24: 1 | M24: 232.3000107
A25: stlpip | B25: Steel Pipe Columbia | C25: Columbia | D25: 2024-02-27T07:27:07 | E25: 260.4549255 | F25: 1508.034009 | G25: 6786.673995 | H25: 0.25 | I25: 1696.668499 | J25: 57.30008331 | K25: 57.30008316 | L25: 1 | M25: 57.30008316
A26: uppera | B26: Upper Attachments | C26: B-Line | D26: 2022-06-15 | E26: 1944 | F26: 1114.389997 | G26: 40672 | H26: 0.2 | I26: 8134.4 | J26: 466.7899977 | K26: 466.79 | L26: 1 | M26: 466.79
A27: wldfit | B27: CS Weld Fittings Weldbend | C27: Weldbend | D27: 2022-08-01 | E27: 20 | F27: 91.99999809 | G27: 2660 | H27: 0.75 | I27: 1995 | J27: 89.20000076 | K27: 89.19999695 | L27: 1 | M27: 89.19999695
F28: =SUM(F10:F27) -> 65624.15695 | G28: =SUM(G10:G27) -> 1973012.258 | I28: =SUM(I10:I27) -> 646413.7156 | J28: =SUM(J10:J27) -> 8758.665936 | K28: =SUM(K10:K27) -> 8758.6659 | M28: =SUM(M10:M27) -> 8758.6659

Sheet PipeDetail
C1: Company: | D1: =CompanyName -> Comfort Systems USA Arkansas
C2: JobName: | D2: =JobPath -> S:\FastEST\FastEST-Local.site\Jobs\MERCY 7TH FLOOR.job
C3: Material Set: | D3: =PipeCalcMaterialSetName -> Factor 1
C4: Labor Set: | D4: =PipeCalcLaborSetName -> 1
C5: Run Date: | D5: =PipeCalcDateTime -> 2025-01-07T10:20:37
C6: Sort Key: | D6: By Matl Group
A8: Matl | E8: Matl | G8: Unit | H8: Matl | I8: Net | J8: Net | K8: Unit | L8: Adj | M8: Job | N8: Job
A9: Group | B9: Qty | C9: Size | D9: Description | E9: Group | F9: Wt | G9: Price | H9: Disc | I9: Price | J9: Total | K9: Hours | L9: Hours | M9: Fact | N9: Total
A10: bline6 | B10: 2156 | C10: ⅜ | D10: Plain Threaded Rod | E10: bline6 | F10: 0 | G10: 2.195 | H10: 0.2 | I10: =G10*IF(H10="Q",1,H10) -> 0.439 | J10: =B10*I10 -> 946.484 | K10: =L10/B10 -> 0.09000000441 | L10: 194.0400095 | M10: =IF(L10=0,1,N10/L10) -> 1 | N10: 194.0400095
A11: bline6 | B11: 1032 | C11: ½ | D11: Plain Threaded Rod | E11: bline6 | F11: 0 | G11: 4.532 | H11: 0.2 | I11: 0.9064 | J11: 935.4048 | K11: 0.09999999982 | L11: 103.1999998 | M11: 1 | N11: 103.1999998
A12: bline6 | B12: 2248 | C12: ⅝ | D12: Plain Threaded Rod | E12: bline6 | F12: 0 | G12: 8.088 | H12: 0.2 | I12: 1.6176 | J12: 3636.3648 | K12: 0.1099999999 | L12: 247.2799997 | M12: 1 | N12: 247.2799997
A13: bolts | B13: 144 | C13: ⅝ x3 | D13: Hex Head Bolt w/ Nut | E13: bolts | F13: 0 | G13: 0.99 | H13: 0.8 | I13: 0.792 | J13: 114.048 | K13: 0 | L13: 0 | M13: 1 | N13: 0
A14: copfcb | B14: 162 | C14: 1 | D14: Wrot Copper C & B 90 Ell | E14: copfcb | F14: 29.16000116 | G14: 65.036 | H14: 0.25 | I14: 16.259 | J14: 2633.958 | K14: 0.6299999849 | L14: 102.0599976 | M14: 1 | N14: 102.0599976
A15: copfcb | B15: 120 | C15: 1¼ | D15: Wrot Copper C & B 90 Ell | E15: copfcb | F15: 33.60000014 | G15: 96.362 | H15: 0.25 | I15: 24.0905 | J15: 2890.86 | K15: 0.7 | L15: 84 | M15: 1 | N15: 84
A16: copfcb | B16: 18 | C16: 1½ | D16: Wrot Copper C & B 90 Ell | E16: copfcb | F16: 7.200000107 | G16: 150.288 | H16: 0.25 | I16: 37.572 | J16: 676.296 | K16: 0.739999983 | L16: 13.31999969 | M16: 1 | N16: 13.31999969
A17: copfcb | B17: 336 | C17: 2 | D17: Wrot Copper C & B 90 Ell | E17: copfcb | F17: 252 | G17: 273.8 | H17: 0.25 | I17: 68.45 | J17: 22999.2 | K17: 0.8500000182 | L17: 285.6000061 | M17: 1 | N17: 285.6000061
A18: copfcb | B18: 12 | C18: 2½ | D18: Wrot Copper C & B 90 Ell | E18: copfcb | F18: 14.15999937 | G18: 499.094 | H18: 0.25 | I18: 124.7735 | J18: 1497.282 | K18: 1.359999975 | L18: 16.31999969 | M18: 1 | N18: 16.31999969
A19: copfcb | B19: 36 | C19: 4 | D19: Wrot Copper C & B 90 Ell | E19: copfcb | F19: 151.9199924 | G19: 1553.963 | H19: 0.25 | I19: 388.49075 | J19: 13985.667 | K19: 2.19000011 | L19: 78.84000397 | M19: 1 | N19: 78.84000397
A20: copfcb | B20: 12 | C20: 1 | D20: Wrot Copper C & B 45 Ell | E20: copfcb | F20: 1.800000072 | G20: 92.363 | H20: 0.25 | I20: 23.09075 | J20: 277.089 | K20: 0.6299999952 | L20: 7.559999943 | M20: 1 | N20: 7.559999943
A21: copfcb | B21: 12 | C21: 2 | D21: Wrot Copper C & B 45 Ell | E21: copfcb | F21: 7.440000057 | G21: 254 | H21: 0.25 | I21: 63.5 | J21: 762 | K21: 0.8500000636 | L21: 10.20000076 | M21: 1 | N21: 10.20000076
A22: copfcb | B22: 30 | C22: 1 | D22: Wrot Copper C & B Tee | E22: copfcb | F22: 8.730000257 | G22: 145.925 | H22: 0.25 | I22: 36.48125 | J22: 1094.4375 | K22: 0.9200000127 | L22: 27.60000038 | M22: 1 | N22: 27.60000038
A23: copfcb | B23: 36 | C23: 1¼ | D23: Wrot Copper C & B Tee | E23: copfcb | F23: 14.58000004 | G23: 201.25 | H23: 0.25 | I23: 50.3125 | J23: 1811.25 | K23: 1.029999945 | L23: 37.07999802 | M23: 1 | N23: 37.07999802
A24: copfcb | B24: 54 | C24: 2 | D24: Wrot Copper C & B Tee | E24: copfcb | F24: 69.65999794 | G24: 483.425 | H24: 0.25 | I24: 120.85625 | J24: 6526.2375 | K24: 1.260000017 | L24: 68.04000092 | M24: 1 | N24: 68.04000092
A25: copfcb | B25: 18 | C25: 4 | D25: Wrot Copper C & B Tee | E25: copfcb | F25: 119.1599979 | G25: 2993.75 | H25: 0.25 | I25: 748.4375 | J25: 13471.875 | K25: 3.260000017 | L25: 58.68000031 | M25: 1 | N25: 58.68000031
A26: copfcb | B26: 12 | C26: 1¼ | D26: Wrot Copper C & B Coupling | E26: copfcb | F26: 1.800000072 | G26: 61.15 | H26: 0.25 | I26: 15.2875 | J26: 183.45 | K26: 0.6999999682 | L26: 8.399999619 | M26: 1 | N26: 8.399999619
A27: copfcb | B27: 6 | C27: 1½ | D27: Wrot Copper C & B Coupling | E27: copfcb | F27: 1.301999956 | G27: 82.473 | H27: 0.25 | I27: 20.61825 | J27: 123.7095 | K27: 0.7400000095 | L27: 4.440000057 | M27: 1 | N27: 4.440000057
A28: copfcb | B28: 54 | C28: 2 | D28: Wrot Copper C & B Coupling | E28: copfcb | F28: 21.65399963 | G28: 137.638 | H28: 0.25 | I28: 34.4095 | J28: 1858.113 | K28: 0.8500000283 | L28: 45.90000153 | M28: 1 | N28: 45.90000153
A29: copfcb | B29: 6 | C29: 2½ | D29: Wrot Copper C & B Coupling | E29: copfcb | F29: 3.744000077 | G29: 266.501 | H29: 0.25 | I29: 66.62525 | J29: 399.7515 | K29: 1.359999975 | L29: 8.159999847 | M29: 1 | N29: 8.159999847
A30: copfcb | B30: 18 | C30: 2x1 | D30: Wrot Copper C & B Concentric Red | E30: copfcb | F30: 6.875999987 | G30: 219.238 | H30: 0.25 | I30: 54.8095 | J30: 986.571 | K30: 0.739999983 | L30: 13.31999969 | M30: 1 | N30: 13.31999969
A31: copfcb | B31: 6 | C31: 2½ x2 | D31: Wrot Copper C & B Concentric Red | E31: copfcb | F31: 3.671999931 | G31: 418.775 | H31: 0.25 | I31: 104.69375 | J31: 628.1625 | K31: 1.100000064 | L31: 6.600000381 | M31: 1 | N31: 6.600000381
A32: copfcb | B32: 12 | C32: 4x2½ | D32: Wrot Copper C & B Concentric Red | E32: copfcb | F32: 24.23999977 | G32: 1171.498 | H32: 0.25 | I32: 292.8745 | J32: 3514.494 | K32: 1.769999981 | L32: 21.23999977 | M32: 1 | N32: 21.23999977
A33: copfcb | B33: 6 | C33: 2x1½ | D33: Wrot Copper C & B Reducing Tee | E33: copfcb | F33: 6.480000257 | G33: 376.45 | H33: 0.25 | I33: 94.1125 | J33: 564.675 | K33: 1.200000048 | L33: 7.200000286 | M33: 1 | N33: 7.200000286
A34: copfcb | B34: 6 | C34: 2½ x2 | D34: Wrot Copper C & B Reducing Tee | E34: copfcb | F34: 9.9599998 | G34: 1037.5 | H34: 0.25 | I34: 259.375 | J34: 1556.25 | K34: 1.769999981 | L34: 10.61999989 | M34: 1 | N34: 10.61999989
A35: copfcb | B35: 6 | C35: 1½ x1¼ x1¼ | D35: Wrot Copper C & B Reducing Tee | E35: copfcb | F35: 3.839999914 | G35: 472.138 | H35: 0.25 | I35: 118.0345 | J35: 708.207 | K35: 1.049999952 | L35: 6.299999714 | M35: 1 | N35: 6.299999714
A36: copfcb | B36: 6 | C36: 2x1x2 | D36: Wrot Copper C & B Reducing Tee | E36: copfcb | F36: 7.739999771 | G36: 629.313 | H36: 0.25 | I36: 157.32825 | J36: 943.9695 | K36: 1.149999936 | L36: 6.899999619 | M36: 1 | N36: 6.899999619
A37: copfcb | B37: 6 | C37: 2½ x2x2 | D37: Wrot Copper C & B Reducing Tee | E37: copfcb | F37: 9.779999971 | G37: 1300 | H37: 0.25 | I37: 325 | J37: 1950 | K37: 1.519999981 | L37: 9.119999886 | M37: 1 | N37: 9.119999886
A38: copfit | B38: 1200 | C38: ½ | D38: Wrot Copper 90 Ell | E38: copfit | F38: 47.99999893 | G38: 9.63 | H38: 0.2 | I38: 1.926 | J38: 2311.2 | K38: 0.4 | L38: 480 | M38: 1 | N38: 480
A39: copfit | B39: 1750 | C39: ¾ | D39: Wrot Copper 90 Ell | E39: copfit | F39: 175.0000026 | G39: 21.22 | H39: 0.2 | I39: 4.244 | J39: 7427 | K39: 0.5299999651 | L39: 927.499939 | M39: 1 | N39: 927.499939
A40: copfit | B40: 600 | C40: 1 | D40: Wrot Copper 90 Ell | E40: copfit | F40: 108.0000043 | G40: 52.03 | H40: 0.2 | I40: 10.406 | J40: 6243.6 | K40: 0.63 | L40: 378 | M40: 1 | N40: 378
A41: copfit | B41: 150 | C41: 1½ | D41: Wrot Copper 90 Ell | E41: copfit | F41: 60.00000089 | G41: 120.23 | H41: 0.2 | I41: 24.046 | J41: 3606.9 | K41: 0.74 | L41: 111 | M41: 1 | N41: 111
A42: copfit | B42: 150 | C42: 2 | D42: Wrot Copper 90 Ell | E42: copfit | F42: 112.5 | G42: 219.04 | H42: 0.2 | I42: =G42*IF(H42="Q",1,H42) -> 43.808 | J42: =B42*I42 -> 6571.2 | K42: =L42/B42 -> 0.85 | L42: 127.5 | M42: =IF(L42=0,1,N42/L42) -> 1 | N42: 127.5
A43: copfit | B43: 150 | C43: 2½ | D43: Wrot Copper 90 Ell | E43: copfit | F43: 176.9999921 | G43: 399.28 | H43: 0.2 | I43: 79.856 | J43: 11978.4 | K43: 1.36 | L43: 204 | M43: 1 | N43: 204
A44: copfit | B44: 75 | C44: ½ | D44: Wrot Copper Tee | E44: copfit | F44: 3.750000056 | G44: 16.17 | H44: 0.2 | I44: 3.234 | J44: 242.55 | K44: 0.57 | L44: 42.75 | M44: 1 | N44: 42.75
A45: copfit | B45: 74 | C45: 2 | D45: Wrot Copper Coupling | E45: copfit | F45: 29.67399949 | G45: 110.11 | H45: 0.2 | I45: 22.022 | J45: 1629.628 | K45: 0.8500000206 | L45: 62.90000153 | M45: 1 | N45: 62.90000153
A46: copfit | B46: 252 | C46: 2½ | D46: Wrot Copper Coupling | E46: copfit | F46: 157.2480032 | G46: 213.2 | H46: 0.2 | I46: 42.64 | J46: 10745.28 | K46: 1.360000005 | L46: 342.7200012 | M46: 1 | N46: 342.7200012
A47: copfit | B47: 160 | C47: ¾ | D47: Wrot Copper Male Adapter | E47: copfit | F47: 18.55999947 | G47: 33.18 | H47: 0.2 | I47: 6.636 | J47: 1061.76 | K47: 0.2899999857 | L47: 46.39999771 | M47: 1 | N47: 46.39999771
A48: copfit | B48: 75 | C48: 1x¾ | D48: Wrot Copper Reducing Tee | E48: copfit | F48: 16.72500037 | G48: 119.39 | H48: 0.2 | I48: 23.878 | J48: 1790.85 | K48: 0.87 | L48: 65.25 | M48: 1 | N48: 65.25
A49: copfit | B49: 75 | C49: 1½ x1 | D49: Wrot Copper Reducing Tee | E49: copfit | F49: 45.75000107 | G49: 184.7 | H49: 0.2 | I49: 36.94 | J49: 2770.5 | K49: 1.03 | L49: 77.25 | M49: 1 | N49: 77.25
A50: copfit | B50: 150 | C50: 2x1 | D50: Wrot Copper Reducing Tee | E50: copfit | F50: 148.5000014 | G50: 301.16 | H50: 0.2 | I50: 60.232 | J50: 9034.8 | K50: 1.14 | L50: 171 | M50: 1 | N50: 171
A51: copfit | B51: 150 | C51: 2½ x2 | D51: Wrot Copper Reducing Tee | E51: copfit | F51: 248.999995 | G51: 830 | H51: 0.2 | I51: 166 | J51: 24900 | K51: 1.77 | L51: 265.5 | M51: 1 | N51: 265.5
A52: copfit | B52: 18 | C52: 4 | D52: 150# Wrot Copper Flange | E52: copfit | F52: 185.2199993 | G52: 2120.92 | H52: 0.2 | I52: 424.184 | J52: 7635.312 | K52: 1.630000008 | L52: 29.34000015 | M52: 1 | N52: 29.34000015
A53: coptub | B53: 1555.223755 | C53: 2 | D53: Type L Hard Copper Tube | E53: coptub | F53: 2721.641571 | G53: 46.23 | H53: 0.4 | I53: 18.492 | J53: 28759.19768 | K53: 0.09000000039 | L53: 139.9701385 | M53: 1 | N53: 139.9701385
A54: coptub | B54: 6203.047852 | C54: 2½ | D54: Type L Hard Copper Tube | E54: coptub | F54: 15383.55879 | G54: 66.69 | H54: 0.4 | I54: 26.676 | J54: 165472.5045 | K54: 0.1199999969 | L54: 744.3657227 | M54: 1 | N54: 744.3657227
A55: coptub | B55: 1216.525818 | C55: 1 | D55: Type L Oxygen Copper Tube | E55: coptub | F55: 796.8243759 | G55: 18.74 | H55: 0.4 | I55: 7.496 | J55: 9119.077531 | K55: 0.07000000288 | L55: 85.15681076 | M55: 1 | N55: 85.15681076
A56: coptub | B56: 1082.180542 | C56: 1¼ | D56: Type L Oxygen Copper Tube | E56: coptub | F56: 956.6476027 | G56: 24.97 | H56: 0.4 | I56: 9.988 | J56: 10808.81925 | K56: 0.0799999969 | L56: 86.57444 | M56: 1 | N56: 86.57444
A57: coptub | B57: 214.7374496 | C57: 1½ | D57: Type L Oxygen Copper Tube | E57: coptub | F57: 244.8006895 | G57: 32.44 | H57: 0.4 | I57: 12.976 | J57: 2786.433147 | K57: 0.08000000053 | L57: 17.17899609 | M57: 1 | N57: 17.17899609
A58: coptub | B58: 3155.378052 | C58: 2 | D58: Type L Oxygen Copper Tube | E58: coptub | F58: 5521.911591 | G58: 48.94 | H58: 0.4 | I58: 19.576 | J58: 61769.68074 | K58: 0.09000000464 | L58: 283.9840393 | M58: 1 | N58: 283.9840393
A59: coptub | B59: 307.5108643 | C59: 2½ | D59: Type L Oxygen Copper Tube | E59: coptub | F59: 762.6269492 | G59: 70.36 | H59: 0.4 | I59: 28.144 | J59: 8654.585764 | K59: 0.1199999955 | L59: 36.90130234 | M59: 1 | N59: 36.90130234
A60: coptub | B60: 304.1087646 | C60: 4 | D60: Type L Oxygen Copper Tube | E60: coptub | F60: 1636.105189 | G60: 170.2 | H60: 0.4 | I60: 68.08 | J60: 20703.7247 | K60: 0.180000002 | L60: 54.73957825 | M60: 1 | N60: 54.73957825
A61: fnwhgr | B61: 394 | C61: ⅜ | D61: Hex Nuts | E61: fnwhgr | F61: 0 | G61: 0.308 | H61: 1 | I61: 0.308 | J61: 121.352 | K61: 0.05000000194 | L61: 19.70000076 | M61: 1 | N61: 19.70000076
A62: fnwhgr | B62: 1626 | C62: ½ | D62: Hex Nuts | E62: fnwhgr | F62: 0 | G62: 0.696 | H62: 1 | I62: 0.696 | J62: 1131.696 | K62: 0.04999999997 | L62: 81.29999995 | M62: 1 | N62: 81.29999995
A63: fnwhgr | B63: 1100 | C63: ⅝ | D63: Hex Nuts | E63: fnwhgr | F63: 0 | G63: 1.392 | H63: 1 | I63: 1.392 | J63: 1531.2 | K63: 0.05 | L63: 55 | M63: 1 | N63: 55
A64: fnwhgr | B64: 394 | C64: ⅜ | D64: Plain Washer | E64: fnwhgr | F64: 0 | G64: 0.27 | H64: 1 | I64: 0.27 | J64: 106.38 | K64: 0 | L64: 0 | M64: 1 | N64: 0
A65: fnwhgr | B65: 1626 | C65: ½ | D65: Plain Washer | E65: fnwhgr | F65: 0 | G65: 0.64 | H65: 1 | I65: 0.64 | J65: 1040.64 | K65: 0 | L65: 0 | M65: 1 | N65: 0
A66: fnwhgr | B66: 1100 | C66: ⅝ | D66: Plain Washer | E66: fnwhgr | F66: 0 | G66: 1.275 | H66: 1 | I66: 1.275 | J66: 1402.5 | K66: 0 | L66: 0 | M66: 1 | N66: 0
A67: gasket | B67: 18 | C67: 4x⅛ | D67: 150# Red Rubber FF Gasket | E67: gasket | F67: 0 | G67: 1.15 | H67: 1 | I67: 1.15 | J67: 20.7 | K67: 0 | L67: 0 | M67: 1 | N67: 0
A68: hanger | B68: 48 | C68: 1 | D68: Copper Adj Swivel Ring Hanger | E68: hanger | F68: 4.800000072 | G68: 4.82 | H68: 0.2 | I68: 0.964 | J68: 46.272 | K68: 0.2099999984 | L68: 10.07999992 | M68: 1 | N68: 10.07999992
A69: hanger | B69: 66 | C69: 1¼ | D69: Copper Adj Swivel Ring Hanger | E69: hanger | F69: 7.919999823 | G69: 4.82 | H69: 0.2 | I69: 0.964 | J69: 63.624 | K69: 0.2099999948 | L69: 13.85999966 | M69: 1 | N69: 13.85999966
A70: hanger | B70: 24 | C70: 1½ | D70: Copper Adj Swivel Ring Hanger | E70: hanger | F70: 2.879999936 | G70: 5.26 | H70: 0.2 | I70: 1.052 | J70: 25.248 | K70: 0.2099999984 | L70: 5.039999962 | M70: 1 | N70: 5.039999962
A71: hanger | B71: 204 | C71: 2 | D71: Copper Adj Swivel Ring Hanger | E71: hanger | F71: 24.47999945 | G71: 5.26 | H71: 0.2 | I71: 1.052 | J71: 214.608 | K71: 0.2100000007 | L71: 42.84000015 | M71: 1 | N71: 42.84000015
A72: hanger | B72: 30 | C72: 2½ | D72: Copper Adj Swivel Ring Hanger | E72: hanger | F72: 9.300000072 | G72: 13.79 | H72: 0.2 | I72: 2.758 | J72: 82.74 | K72: 0.2300000032 | L72: 6.900000095 | M72: 1 | N72: 6.900000095
A73: hanger | B73: 12 | C73: 4 | D73: Copper Adj Swivel Ring Hanger | E73: hanger | F73: 4.800000072 | G73: 22.41 | H73: 0.2 | I73: 4.482 | J73: 53.784 | K73: 0.25 | L73: 3 | M73: 1 | N73: 3
A74: hanger | B74: 550 | C74: 4 | D74: Plain Standard Clevis Hanger | E74: hanger | F74: 951.5000105 | G74: 22.51 | H74: 0.2 | I74: =G74*IF(H74="Q",1,H74) -> 4.502 | J74: =B74*I74 -> 2476.1 | K74: =L74/B74 -> 0.25 | L74: 137.5 | M74: =IF(L74=0,1,N74/L74) -> 1 | N74: 137.5
A75: hanger | B75: 977 | C75: 5 | D75: Plain Standard Clevis Hanger | E75: hanger | F75: 2393.650047 | G75: 31.16 | H75: 0.2 | I75: 6.232 | J75: 6088.664 | K75: 0.2599999849 | L75: 254.0199852 | M75: 1 | N75: 254.0199852
A76: hanger | B76: 33 | C76: 6 | D76: Plain Standard Clevis Hanger | E76: hanger | F76: 105.6000016 | G76: 38.52 | H76: 0.2 | I76: 7.704 | J76: 254.232 | K76: 0.2700000243 | L76: 8.910000801 | M76: 1 | N76: 8.910000801
A77: joint | B77: 2625 | C77: ½ | D77: Lead-Free Solder Joints | E77: joint | F77: 0 | G77: 0.2 | H77: 1 | I77: 0.2 | J77: 525 | K77: 0 | L77: 0 | M77: 1 | N77: 0
A78: joint | B78: 3075 | C78: ¾ | D78: Lead-Free Solder Joints | E78: joint | F78: 0 | G78: 0.24 | H78: 1 | I78: 0.24 | J78: 738 | K78: 0 | L78: 0 | M78: 1 | N78: 0
A79: joint | B79: 1575 | C79: 1 | D79: Lead-Free Solder Joints | E79: joint | F79: 0 | G79: 0.36 | H79: 1 | I79: 0.36 | J79: 567 | K79: 0 | L79: 0 | M79: 1 | N79: 0
A80: joint | B80: 450 | C80: 1½ | D80: Lead-Free Solder Joints | E80: joint | F80: 0 | G80: 0.48 | H80: 1 | I80: 0.48 | J80: 216 | K80: 0 | L80: 0 | M80: 1 | N80: 0
A81: joint | B81: 750 | C81: 2 | D81: Lead-Free Solder Joints | E81: joint | F81: 0 | G81: 0.6 | H81: 1 | I81: 0.6 | J81: 450 | K81: 0 | L81: 0 | M81: 1 | N81: 0
A82: joint | B82: 1104 | C82: 2½ | D82: Lead-Free Solder Joints | E82: joint | F82: 0 | G82: 0.8 | H82: 1 | I82: 0.8 | J82: 883.2 | K82: 0 | L82: 0 | M82: 1 | N82: 0
A83: joint | B83: 820 | C83: ¾ | D83: 95/5 Solder Joints | E83: joint | F83: 4.920000043 | G83: 0.48 | H83: 1 | I83: 0.48 | J83: 393.6 | K83: 0 | L83: 0 | M83: 1 | N83: 0
A84: joint | B84: 148 | C84: 2 | D84: 95/5 Solder Joints | E84: joint | F84: 3.552000031 | G84: 1.2 | H84: 1 | I84: 1.2 | J84: 177.6 | K84: 0 | L84: 0 | M84: 1 | N84: 0
A85: joint | B85: 462 | C85: 1 | D85: Silfos Joints | E85: joint | F85: 0 | G85: 2.16 | H85: 1 | I85: 2.16 | J85: 997.92 | K85: 0.02899999949 | L85: 13.39799976 | M85: 1 | N85: 13.39799976
A86: joint | B86: 384 | C86: 1¼ | D86: Silfos Joints | E86: joint | F86: 0 | G86: 2.64 | H86: 1 | I86: 2.64 | J86: 1013.76 | K86: 0.02899999917 | L86: 11.13599968 | M86: 1 | N86: 11.13599968
A87: joint | B87: 60 | C87: 1½ | D87: Silfos Joints | E87: joint | F87: 0 | G87: 2.88 | H87: 1 | I87: 2.88 | J87: 172.8 | K87: 0.02900000016 | L87: 1.74000001 | M87: 1 | N87: 1.74000001
A88: joint | B88: 1032 | C88: 2 | D88: Silfos Joints | E88: joint | F88: 0 | G88: 3.6 | H88: 1 | I88: 3.6 | J88: 3715.2 | K88: 0.02899999951 | L88: 29.9279995 | M88: 1 | N88: 29.9279995
A89: joint | B89: 96 | C89: 2½ | D89: Silfos Joints | E89: joint | F89: 0 | G89: 4.8 | H89: 1 | I89: 4.8 | J89: 460.8 | K89: 0.05000000199 | L89: 4.800000191 | M89: 1 | N89: 4.800000191
A90: joint | B90: 156 | C90: 4 | D90: Silfos Joints | E90: joint | F90: 0 | G90: 8.16 | H90: 1 | I90: 8.16 | J90: 1272.96 | K90: 0.06300000044 | L90: 9.828000069 | M90: 1 | N90: 9.828000069
A91: joint | B91: 160 | C91: ¾ | D91: Male Iron Pipe Thread Joints | E91: joint | F91: 0 | G91: 0 | H91: 1 | I91: 0 | J91: 0 | K91: 0 | L91: 0 | M91: 1 | N91: 0
A92: joint | B92: 18 | C92: 4 | D92: 150# Flange Joints | E92: joint | F92: 0 | G92: 0 | H92: 1 | I92: 0 | J92: 0 | K92: 0 | L92: 0 | M92: 1 | N92: 0
A93: joint | B93: 20 | C93: 1 | D93: Sch 40 Butt Weld Joints | E93: joint | F93: 0 | G93: 0.8 | H93: 1 | I93: 0.8 | J93: 16 | K93: 0 | L93: 0 | M93: 1 | N93: 0
A94: joint | B94: 40 | C94: 2½ | D94: Sch 40 Butt Weld Joints | E94: joint | F94: 0 | G94: 1.2 | H94: 1 | I94: 1.2 | J94: 48 | K94: 0 | L94: 0 | M94: 1 | N94: 0
A95: joint | B95: 12 | C95: 2½ | D95: Sch 40 Butt Weld Pipe Joint | E95: joint | F95: 0 | G95: 1.2 | H95: 1 | I95: 1.2 | J95: 14.4 | K95: 1.850000064 | L95: 22.20000076 | M95: 1 | N95: 22.20000076
A96: milbal | B96: 80 | C96: ¾ | D96: BA450 2Pc FP Brnz Swt Ball Valve w/CP Ball | E96: milbal | F96: 0 | G96: 99.21 | H96: 0.35 | I96: 34.7235 | J96: 2777.88 | K96: 0.55 | L96: 44 | M96: 1 | N96: 44
A97: nbball | B97: 12 | C97: 2½ | D97: 200# 3Pc FP SS B&S Swt Ball Vlv | E97: nbball | F97: 235.2000046 | G97: 2749 | H97: 1 | I97: 2749 | J97: 32988 | K97: 1.910000006 | L97: 22.92000008 | M97: 1 | N97: 22.92000008
A98: nhcpch | B98: 756 | C98: 4 | D98: No-hub Couplings | E98: nhcpch | F98: 529.199991 | G98: 43.4 | H98: 0.22 | I98: 9.548 | J98: 7218.288 | K98: 0 | L98: 0 | M98: 1 | N98: 0
A99: nhftch | B99: 158 | C99: 4 | D99: NH CI Soil Combo | E99: nhftch | F99: 2291 | G99: 113.6 | H99: 0.4 | I99: 45.44 | J99: 7179.52 | K99: 1.190000027 | L99: 188.0200043 | M99: 1 | N99: 188.0200043
A100: nhpich | B100: 3324.77417 | C100: 4 | D100: No-Hub Cast Iron Soil Pipe | E100: nhpich | F100: 24603.32917 | G100: 31.22 | H100: 0.44 | I100: 13.7368 | J100: 45671.75782 | K100: 0.2 | L100: 664.954834 | M100: 1 | N100: 664.954834
A101: shield | B101: 780 | C101: 4½ x12 | D101: Galv Insulation Prot Shield | E101: shield | F101: 1006.19997 | G101: 46.6 | H101: 0.39 | I101: 18.174 | J101: 14175.72 | K101: 0.2300000117 | L101: 179.4000092 | M101: 1 | N101: 179.4000092
A102: shield | B102: 197 | C102: 5x12 | D102: Galv Insulation Prot Shield | E102: shield | F102: 289.5900056 | G102: 49.91 | H102: 0.39 | I102: 19.4649 | J102: 3834.5853 | K102: 0.230000007 | L102: 45.31000137 | M102: 1 | N102: 45.31000137
A103: shield | B103: 33 | C103: 6x12 | D103: Galv Insulation Prot Shield | E103: shield | F103: 72.27000189 | G103: 56.03 | H103: 0.39 | I103: 21.8517 | J103: 721.1061 | K103: 0.2300000046 | L103: 7.590000153 | M103: 1 | N103: 7.590000153
A104: stlpip | B104: 260.4549255 | C104: 2½ | D104: Sch 40 ERW Blk Stl Pipe A53B PE | E104: stlpip | F104: 1508.034009 | G104: 26.057 | H104: 0.25 | I104: 6.51425 | J104: 1696.668499 | K104: 0.2199999982 | L104: 57.30008316 | M104: 1 | N104: 57.30008316
A105: uppera | B105: 539 | C105: ⅜ | D105: Plain Wide Jaw Top C-Clamp | E105: uppera | F105: 291.0600116 | G105: 13.07 | H105: 0.2 | I105: 2.614 | J105: 1408.946 | K105: 0.2300000067 | L105: 123.9700036 | M105: 1 | N105: 123.9700036
A106: uppera | B106: 843 | C106: ½ | D106: Plain Wide Jaw Top C-Clamp | E106: uppera | F106: 429.929992 | G106: 17.97 | H106: 0.2 | I106: =G106*IF(H106="Q",1,H106) -> 3.594 | J106: =B106*I106 -> 3029.742 | K106: =L106/B106 -> 0.2399999957 | L106: 202.3199964 | M106: =IF(L106=0,1,N106/L106) -> 1 | N106: 202.3199964
A107: uppera | B107: 562 | C107: ⅝ | D107: Plain Wide Jaw Top C-Clamp | E107: uppera | F107: 393.3999933 | G107: 32.88 | H107: 0.2 | I107: 6.576 | J107: 3695.712 | K107: 0.25 | L107: 140.5 | M107: 1 | N107: 140.5
A108: wldfit | B108: 20 | C108: 2½ x1 | D108: Std Wt Steel Weld Red Tee | E108: wldfit | F108: 91.99999809 | G108: 133 | H108: 0.75 | I108: 99.75 | J108: 1995 | K108: 4.459999847 | L108: 89.19999695 | M108: 1 | N108: 89.19999695
F109: =SUM(F10:F108) -> 65624.15695 | J109: =SUM(J10:J108) -> 646413.7156 | L109: =SUM(L10:L108) -> 8758.6659 | N109: =SUM(N10:N108) -> 8758.6659

Sheet PipeEquipment
H1: Company: | I1: =CompanyName -> Comfort Systems USA Arkansas
H2: JobName: | I2: =JobPath -> S:\FastEST\FastEST-Local.site\Jobs\MERCY 7TH FLOOR.job
H3: Material Set: | I3: =PipeCalcMaterialSetName -> Factor 1
H4: Labor Set: | I4: =PipeCalcLaborSetName -> 1
H5: Run Date: | I5: =PipeCalcDateTime -> 2025-01-07T10:20:37
H6: Expanded View:
J8: Matl | K8: Quote Info | M8: Cost | N8: Quoted Costs
A9: Code | B9: S1 | C9: S2 | D9: S3 | E9: S4 | F9: Qty | G9: Mark | H9: Size | I9: Description | J9: Group | K9: Source | L9: Date | M9: Code | N9: Unit | O9: Total
O10: 0

Sheet PipeFixtures
H1: Company: | I1: =CompanyName -> Comfort Systems USA Arkansas
H2: JobName: | I2: =JobPath -> S:\FastEST\FastEST-Local.site\Jobs\MERCY 7TH FLOOR.job
H3: Material Set: | I3: =PipeCalcMaterialSetName -> Factor 1
H4: Labor Set: | I4: =PipeCalcLaborSetName -> 1
H5: Run Date: | I5: =PipeCalcDateTime -> 2025-01-07T10:20:37
H6: Expanded View:
J8: Matl | K8: Quote Info | M8: Cost | N8: Quoted Costs
A9: Code | B9: S1 | C9: S2 | D9: S3 | E9: S4 | F9: Qty | G9: Mark | H9: Size | I9: Description | J9: Group | K9: Source | L9: Date | M9: Code | N9: Unit | O9: Total
O10: 0

Sheet PipeSpecialties
H1: Company: | I1: =CompanyName -> Comfort Systems USA Arkansas
H2: JobName: | I2: =JobPath -> S:\FastEST\FastEST-Local.site\Jobs\MERCY 7TH FLOOR.job
H3: Material Set: | I3: =PipeCalcMaterialSetName -> Factor 1
H4: Labor Set: | I4: =PipeCalcLaborSetName -> 1
H5: Run Date: | I5: =PipeCalcDateTime -> 2025-01-07T10:20:37
H6: Expanded View:
J8: Matl | K8: Quote Info | M8: Cost | N8: Quoted Costs
A9: Code | B9: S1 | C9: S2 | D9: S3 | E9: S4 | F9: Qty | G9: Mark | H9: Size | I9: Description | J9: Group | K9: Source | L9: Date | M9: Code | N9: Unit | O9: Total
O10: 0

Sheet PipeOther
H1: Company: | I1: =CompanyName -> Comfort Systems USA Arkansas
H2: JobName: | I2: =JobPath -> S:\FastEST\FastEST-Local.site\Jobs\MERCY 7TH FLOOR.job
H3: Material Set: | I3: =PipeCalcMaterialSetName -> Factor 1
H4: Labor Set: | I4: =PipeCalcLaborSetName -> 1
H5: Run Date: | I5: =PipeCalcDateTime -> 2025-01-07T10:20:37
H6: Expanded View:
J8: Matl | K8: Quote Info | M8: Cost | N8: Quoted Costs
A9: Code | B9: S1 | C9: S2 | D9: S3 | E9: S4 | F9: Qty | G9: Mark | H9: Size | I9: Description | J9: Group | K9: Source | L9: Date | M9: Code | N9: Unit | O9: Total
O10: 0

Sheet PipeExceptions
C1: Company: | D1: =CompanyName -> Comfort Systems USA Arkansas
C2: JobName: | D2: =JobPath -> S:\FastEST\FastEST-Local.site\Jobs\MERCY 7TH FLOOR.job
C3: Material Set: | D3: =PipeCalcMaterialSetName -> Factor 1
C4: Labor Set: | D4: =PipeCalcLaborSetName -> 1
C5: Run Date: | D5: =PipeCalcDateTime -> 2025-01-07T10:20:37
A9: Sect | B9: Qty | C9: Size | D9: Description

Sheet Extra
A1: Extra
C4: Material | E4: Labor
A5: Description | B5: Quantity | C5: Unit | D5: Total | E5: Unit | F5: Total
D6: =SUM(B6*C6) -> 0 | F6: =SUM(B6*E6) -> 0
D7: =SUM(B7*C7) -> 0 | F7: =SUM(B7*E7) -> 0
D8: 0 | F8: 0
D9: 0 | F9: 0
D10: 0 | F10: 0
D11: 0 | F11: 0
D12: 0 | F12: 0
D13: 0 | F13: 0
D14: 0 | F14: 0
D15: 0 | F15: 0
D16: 0 | F16: 0
D17: 0 | F17: 0
D18: 0 | F18: 0
D19: 0 | F19: 0
D20: 0 | F20: 0
D21: 0 | F21: 0
D22: 0 | F22: 0
D23: 0 | F23: 0
D24: 0 | F24: 0
D25: 0 | F25: 0
D26: 0 | F26: 0
D27: 0 | F27: 0
D28: 0 | F28: 0
D29: 0 | F29: 0
D30: 0 | F30: 0
D31: 0 | F31: 0
D32: 0 | F32: 0
D33: 0 | F33: 0
D34: 0 | F34: 0
D35: 0 | F35: 0
D36: 0 | F36: 0
D37: 0 | F37: 0
D38: 0 | F38: 0
D39: 0 | F39: 0
D40: 0 | F40: 0
D41: 0 | F41: 0
D42: 0 | F42: 0
D43: 0 | F43: 0
D44: 0 | F44: 0
D45: 0 | F45: 0
A46: Total | D46: =SUM(D6:D45) -> 0 | F46: =SUM(F6:F45) -> 0

Sheet PipeData (hidden)
A1: 193 | B1: Parent | C1: ExceptionID | D1: SectionID | E1: Multiplier | F1: SpecName | G1: SpecDescription | H1: AreaName | I1: SystemName | J1: Remarks | K1: MaterialGroupCode | L1: MaterialGroupName | M1: MaterialGroupID | N1: Manufacturer | O1: PartNumber | P1: UnitPriceDate | Q1: Quantity | R1: Description | S1: TagName | T1: ZoneName | U1: UnitWeight | V1: UnitVolume | W1: UnitSurfaceArea | X1: DiameterInches | Y1: FamilyID | Z1: CostCode | AA1: RFU | AB1: RFU | AC1: PartSize | AD1: PartSize1 | AE1: PartSize2 | AF1: PartSize3 | AG1: PartSize4 | AH1: PartName | AI1: UnitPrice | AJ1: UnitPriceType | AK1: MatlDisc | AL1: UnitHours | AM1: AdjustedHours | AN1: JobFactor | AO1: PrimarySortKey | AP1: SecondarySortKey | AQ1: LaborGroupCode | AR1: LaborGroupName | AS1: LaborGroupID | AT1: PlanName | AU1: OptionalHeader1 | AV1: OptionalHeader2 | AW1: OptionalHeader3 | AX1: OptionalHeader4 | AY1: ListPrice | AZ1: SpecName1 | BA1: SpecName2 | BB1: SpecType | BC1: PartKey | BD1: GroupID | BE1: ClassID | BF1: TypeID
A2: 145 | B2: -4 | C2: 0 | D2: 4 | E2: 3 | F2: MEDAIR | G2: Cleaned/Capped Copper Med Air | H2: 7th floor | I2: Med Gas | J2: Above | M2: -1 | P2: 12:00:00 AM | Q2: 24 | R2: Suspended Hanger | S2: <None> | T2: <None> | U2: 0 | V2: 0 | W2: 0 | X2: 0 | Y2: 44 | Z2: <None> | AC2: 1 | AD2: 64 | AE2: 0 | AF2: 0 | AG2: 0 | AH2: Suspended | AI2: 0 | AJ2: V | AK2: 0 | AL2: 0 | AM2: 0 | AN2: 0 | AO2: 74752 | AP2: 99 | AS2: -1 | AT2: Plumbing#0011.pdf | AY2: 0 | AZ2: MEDAIR | BB2: 1 | BD2: 0 | BE2: 0 | BF2: 0
A3: 149 | B3: -4 | C3: 0 | D3: 4 | E3: 3 | F3: MEDAIR | G3: Cleaned/Capped Copper Med Air | H3: 7th floor | I3: Med Gas | J3: Above | M3: -1 | P3: 12:00:00 AM | Q3: 24 | R3: Suspended Hanger | S3: <None> | T3: <None> | U3: 0 | V3: 0 | W3: 0 | X3: 0 | Y3: 44 | Z3: <None> | AC3: 1 | AD3: 64 | AE3: 0 | AF3: 0 | AG3: 0 | AH3: Suspended | AI3: 0 | AJ3: V | AK3: 0 | AL3: 0 | AM3: 0 | AN3: 0 | AO3: 74752 | AP3: 99 | AS3: -1 | AT3: Plumbing#0012.pdf | AY3: 0 | AZ3: MEDAIR | BB3: 1 | BD3: 0 | BE3: 0 | BF3: 0
A4: 153 | B4: -4 | C4: 0 | D4: 4 | E4: 3 | F4: MEDAIR | G4: Cleaned/Capped Copper Med Air | H4: 7th floor | I4: Med Gas | J4: Above | M4: -1 | P4: 12:00:00 AM | Q4: 33 | R4: Suspended Hanger | S4: <None> | T4: <None> | U4: 0 | V4: 0 | W4: 0 | X4: 0 | Y4: 44 | Z4: <None> | AC4: 1¼ | AD4: 80 | AE4: 0 | AF4: 0 | AG4: 0 | AH4: Suspended | AI4: 0 | AJ4: V | AK4: 0 | AL4: 0 | AM4: 0 | AN4: 0 | AO4: 75776 | AP4: 100 | AS4: -1 | AT4: Plumbing#0011.pdf | AY4: 0 | AZ4: MEDAIR | BB4: 1 | BD4: 0 | BE4: 0 | BF4: 0
A5: 157 | B5: -4 | C5: 0 | D5: 4 | E5: 3 | F5: MEDAIR | G5: Cleaned/Capped Copper Med Air | H5: 7th floor | I5: Med Gas | J5: Above | M5: -1 | P5: 12:00:00 AM | Q5: 33 | R5: Suspended Hanger | S5: <None> | T5: <None> | U5: 0 | V5: 0 | W5: 0 | X5: 0 | Y5: 44 | Z5: <None> | AC5: 1¼ | AD5: 80 | AE5: 0 | AF5: 0 | AG5: 0 | AH5: Suspended | AI5: 0 | AJ5: V | AK5: 0 | AL5: 0 | AM5: 0 | AN5: 0 | AO5: 75776 | AP5: 100 | AS5: -1 | AT5: Plumbing#0012.pdf | AY5: 0 | AZ5: MEDAIR | BB5: 1 | BD5: 0 | BE5: 0 | BF5: 0
A6: 161 | B6: -4 | C6: 0 | D6: 4 | E6: 3 | F6: MEDAIR | G6: Cleaned/Capped Copper Med Air | H6: 7th floor | I6: Med Gas | J6: Above | M6: -1 | P6: 12:00:00 AM | Q6: 12 | R6: Suspended Hanger | S6: <None> | T6: <None> | U6: 0 | V6: 0 | W6: 0 | X6: 0 | Y6: 44 | Z6: <None> | AC6: 1½ | AD6: 96 | AE6: 0 | AF6: 0 | AG6: 0 | AH6: Suspended | AI6: 0 | AJ6: V | AK6: 0 | AL6: 0 | AM6: 0 | AN6: 0 | AO6: 76800 | AP6: 101 | AS6: -1 | AT6: Plumbing#0011.pdf | AY6: 0 | AZ6: MEDAIR | BB6: 1 | BD6: 0 | BE6: 0 | BF6: 0
A7: 165 | B7: -4 | C7: 0 | D7: 4 | E7: 3 | F7: MEDAIR | G7: Cleaned/Capped Copper Med Air | H7: 7th floor | I7: Med Gas | J7: Above | M7: -1 | P7: 12:00:00 AM | Q7: 12 | R7: Suspended Hanger | S7: <None> | T7: <None> | U7: 0 | V7: 0 | W7: 0 | X7: 0 | Y7: 44 | Z7: <None> | AC7: 1½ | AD7: 96 | AE7: 0 | AF7: 0 | AG7: 0 | AH7: Suspended | AI7: 0 | AJ7: V | AK7: 0 | AL7: 0 | AM7: 0 | AN7: 0 | AO7: 76800 | AP7: 101 | AS7: -1 | AT7: Plumbing#0012.pdf | AY7: 0 | AZ7: MEDAIR | BB7: 1 | BD7: 0 | BE7: 0 | BF7: 0
A8: 169 | B8: -4 | C8: 0 | D8: 4 | E8: 3 | F8: MEDAIR | G8: Cleaned/Capped Copper Med Air | H8: 7th floor | I8: Med Gas | J8: Above | M8: -1 | P8: 12:00:00 AM | Q8: 102 | R8: Suspended Hanger | S8: <None> | T8: <None> | U8: 0 | V8: 0 | W8: 0 | X8: 0 | Y8: 44 | Z8: <None> | AC8: 2 | AD8: 128 | AE8: 0 | AF8: 0 | AG8: 0 | AH8: Suspended | AI8: 0 | AJ8: V | AK8: 0 | AL8: 0 | AM8: 0 | AN8: 0 | AO8: 77824 | AP8: 102 | AS8: -1 | AT8: Plumbing#0011.pdf | AY8: 0 | AZ8: MEDAIR | BB8: 1 | BD8: 0 | BE8: 0 | BF8: 0
A9: 173 | B9: -4 | C9: 0 | D9: 4 | E9: 3 | F9: MEDAIR | G9: Cleaned/Capped Copper Med Air | H9: 7th floor | I9: Med Gas | J9: Above | M9: -1 | P9: 12:00:00 AM | Q9: 102 | R9: Suspended Hanger | S9: <None> | T9: <None> | U9: 0 | V9: 0 | W9: 0 | X9: 0 | Y9: 44 | Z9: <None> | AC9: 2 | AD9: 128 | AE9: 0 | AF9: 0 | AG9: 0 | AH9: Suspended | AI9: 0 | AJ9: V | AK9: 0 | AL9: 0 | AM9: 0 | AN9: 0 | AO9: 77824 | AP9: 102 | AS9: -1 | AT9: Plumbing#0012.pdf | AY9: 0 | AZ9: MEDAIR | BB9: 1 | BD9: 0 | BE9: 0 | BF9: 0
A10: 49 | B10: -7 | C10: 0 | D10: 3 | E10: 1 | F10: HWSHWR4 | G10: Copper/Welded Heating Water | H10: 7th floor | I10: Heating Water | J10: Above | M10: -1 | P10: 12:00:00 AM | Q10: 197 | R10: Suspended Hanger | S10: <None> | T10: <None> | U10: 0 | V10: 0 | W10: 0 | X10: 0 | Y10: 44 | Z10: <None> | AC10: 2 | AD10: 128 | AE10: 0 | AF10: 0 | AG10: 0 | AH10: Suspended | AI10: 0 | AJ10: V | AK10: 0 | AL10: 0 | AM10: 0 | AN10: 0 | AO10: 78848 | AP10: 102 | AS10: -1 | AT10: Mechanical#0010.pdf | AY10: 0 | AZ10: HWSHWR4 | BB10: 1 | BD10: 0 | BE10: 0 | BF10: 0
A11: 177 | B11: -4 | C11: 0 | D11: 4 | E11: 3 | F11: MEDAIR | G11: Cleaned/Capped Copper Med Air | H11: 7th floor | I11: Med Gas | J11: Above | M11: -1 | P11: 12:00:00 AM | Q11: 15 | R11: Suspended Hanger | S11: <None> | T11: <None> | U11: 0 | V11: 0 | W11: 0 | X11: 0 | Y11: 44 | Z11: <None> | AC11: 2½ | AD11: 160 | AE11: 0 | AF11: 0 | AG11: 0 | AH11: Suspended | AI11: 0 | AJ11: V | AK11: 0 | AL11: 0 | AM11: 0 | AN11: 0 | AO11: 79872 | AP11: 103 | AS11: -1 | AT11: Plumbing#0011.pdf | AY11: 0 | AZ11: MEDAIR | BB11: 1 | BD11: 0 | BE11: 0 | BF11: 0
A12: 181 | B12: -4 | C12: 0 | D12: 4 | E12: 3 | F12: MEDAIR | G12: Cleaned/Capped Copper Med Air | H12: 7th floor | I12: Med Gas | J12: Above | M12: -1 | P12: 12:00:00 AM | Q12: 15 | R12: Suspended Hanger | S12: <None> | T12: <None> | U12: 0 | V12: 0 | W12: 0 | X12: 0 | Y12: 44 | Z12: <None> | AC12: 2½ | AD12: 160 | AE12: 0 | AF12: 0 | AG12: 0 | AH12: Suspended | AI12: 0 | AJ12: V | AK12: 0 | AL12: 0 | AM12: 0 | AN12: 0 | AO12: 79872 | AP12: 103 | AS12: -1 | AT12: Plumbing#0012.pdf | AY12: 0 | AZ12: MEDAIR | BB12: 1 | BD12: 0 | BE12: 0 | BF12: 0
A13: 29 | B13: -7 | C13: 0 | D13: 2 | E13: 3 | F13: DOMWATER | G13: Copper Domestic Water | H13: All 7th Floor | I13: Water | J13: Above | M13: -1 | P13: 12:00:00 AM | Q13: 780 | R13: Suspended Hanger | S13: <None> | T13: <None> | U13: 0 | V13: 0 | W13: 0 | X13: 0 | Y13: 44 | Z13: <None> | AC13: 2½ | AD13: 160 | AE13: 0 | AF13: 0 | AG13: 0 | AH13: Suspended | AI13: 0 | AJ13: V | AK13: 0 | AL13: 0 | AM13: 0 | AN13: 0 | AO13: 80896 | AP13: 103 | AS13: -1 | AT13: Plumbing#0007.pdf | AY13: 0 | AZ13: DOMWATER | BB13: 1 | BD13: 0 | BE13: 0 | BF13: 0
A14: 56 | B14: -7 | C14: 0 | D14: 3 | E14: 1 | F14: HWSHWR4 | G14: Copper/Welded Heating Water | H14: 7th floor | I14: Heating Water | J14: Above | M14: -1 | P14: 12:00:00 AM | Q14: 33 | R14: Suspended Hanger | S14: <None> | T14: <None> | U14: 0 | V14: 0 | W14: 0 | X14: 0 | Y14: 44 | Z14: <None> | AC14: 2½ | AD14: 160 | AE14: 0 | AF14: 0 | AG14: 0 | AH14: Suspended | AI14: 0 | AJ14: V | AK14: 0 | AL14: 0 | AM14: 0 | AN14: 0 | AO14: 81920 | AP14: 103 | AS14: -1 | AT14: Mechanical#0010.pdf | AY14: 0 | AZ14: HWSHWR4 | BB14: 1 | BD14: 0 | BE14: 0 | BF14: 0
A15: 185 | B15: -4 | C15: 0 | D15: 4 | E15: 3 | F15: MEDAIR | G15: Cleaned/Capped Copper Med Air | H15: 7th floor | I15: Med Gas | J15: Above | M15: -1 | P15: 12:00:00 AM | Q15: 6 | R15: Suspended Hanger | S15: <None> | T15: <None> | U15: 0 | V15: 0 | W15: 0 | X15: 0 | Y15: 44 | Z15: <None> | AC15: 4 | AD15: 256 | AE15: 0 | AF15: 0 | AG15: 0 | AH15: Suspended | AI15: 0 | AJ15: V | AK15: 0 | AL15: 0 | AM15: 0 | AN15: 0 | AO15: 82944 | AP15: 104 | AS15: -1 | AT15: Plumbing#0011.pdf | AY15: 0 | AZ15: MEDAIR | BB15: 1 | BD15: 0 | BE15: 0 | BF15: 0
A16: 189 | B16: -4 | C16: 0 | D16: 4 | E16: 3 | F16: MEDAIR | G16: Cleaned/Capped Copper Med Air | H16: 7th floor | I16: Med Gas | J16: Above | M16: -1 | P16: 12:00:00 AM | Q16: 6 | R16: Suspended Hanger | S16: <None> | T16: <None> | U16: 0 | V16: 0 | W16: 0 | X16: 0 | Y16: 44 | Z16: <None> | AC16: 4 | AD16: 256 | AE16: 0 | AF16: 0 | AG16: 0 | AH16: Suspended | AI16: 0 | AJ16: V | AK16: 0 | AL16: 0 | AM16: 0 | AN16: 0 | AO16: 82944 | AP16: 104 | AS16: -1 | AT16: Plumbing#0012.pdf | AY16: 0 | AZ16: MEDAIR | BB16: 1 | BD16: 0 | BE16: 0 | BF16: 0
A17: 3 | B17: -6 | C17: 0 | D17: 1 | E17: 1 | F17: NO-HUBCH | G17: Above Grade No-Hub DWV | H17: All 7th Floor | I17: DWV | J17: Above | M17: -1 | P17: 12:00:00 AM | Q17: 550 | R17: Suspended Hanger | S17: <None> | T17: <None> | U17: 0 | V17: 0 | W17: 0 | X17: 0 | Y17: 44 | Z17: <None> | AC17: 4 | AD17: 256 | AE17: 0 | AF17: 0 | AG17: 0 | AH17: Suspended | AI17: 0 | AJ17: V | AK17: 0 | AL17: 0 | AM17: 0 | AN17: 0 | AO17: 83968 | AP17: 104 | AS17: -1 | AT17: Plumbing#0004.pdf | AY17: 0 | AZ17: NO-HUBCH | BB17: 1 | BD17: 0 | BE17: 0 | BF17: 0
A18: 148 | B18: 0 | C18: 0 | D18: 4 | E18: 3 | F18: MEDAIR | G18: Cleaned/Capped Copper Med Air | H18: 7th floor | I18: Med Gas | J18: Above | K18: bline6 | L18: Threaded Rod | M18: 198 | N18: B-Line | O18: B3205 | P18: 6/15/2022 | Q18: 96 | R18: Plain Threaded Rod | S18: <None> | T18: <None> | U18: 0 | V18: 0 | W18: 0 | X18: 0 | Y18: 5 | Z18: <None> | AC18: ⅜ | AD18: -128 | AE18: 24 | AF18: 0 | AG18: 0 | AI18: 2.195 | AJ18: V | AK18: 0.2 | AL18: 0.09000000358 | AM18: 8.640000343 | AN18: 1 | AO18: 74755 | AP18: 73 | AQ18: hngrod | AR18: Hanger Rod | AS18: 52 | AT18: Plumbing#0011.pdf | AY18: 2.195 | AZ18: MEDAIR | BB18: 1 | BC18: HE32421FF800018 | BD18: 36 | BE18: 33 | BF18: 0
A19: 152 | B19: 0 | C19: 0 | D19: 4 | E19: 3 | F19: MEDAIR | G19: Cleaned/Capped Copper Med Air | H19: 7th floor | I19: Med Gas | J19: Above | K19: bline6 | L19: Threaded Rod | M19: 198 | N19: B-Line | O19: B3205 | P19: 6/15/2022 | Q19: 96 | R19: Plain Threaded Rod | S19: <None> | T19: <None> | U19: 0 | V19: 0 | W19: 0 | X19: 0 | Y19: 5 | Z19: <None> | AC19: ⅜ | AD19: -128 | AE19: 24 | AF19: 0 | AG19: 0 | AI19: 2.195 | AJ19: V | AK19: 0.2 | AL19: 0.09000000358 | AM19: 8.640000343 | AN19: 1 | AO19: 74755 | AP19: 73 | AQ19: hngrod | AR19: Hanger Rod | AS19: 52 | AT19: Plumbing#0012.pdf | AY19: 2.195 | AZ19: MEDAIR | BB19: 1 | BC19: HE32421FF800018 | BD19: 36 | BE19: 33 | BF19: 0
A20: 156 | B20: 0 | C20: 0 | D20: 4 | E20: 3 | F20: MEDAIR | G20: Cleaned/Capped Copper Med Air | H20: 7th floor | I20: Med Gas | J20: Above | K20: bline6 | L20: Threaded Rod | M20: 198 | N20: B-Line | O20: B3205 | P20: 6/15/2022 | Q20: 132 | R20: Plain Threaded Rod | S20: <None> | T20: <None> | U20: 0 | V20: 0 | W20: 0 | X20: 0 | Y20: 5 | Z20: <None> | AC20: ⅜ | AD20: -128 | AE20: 24 | AF20: 0 | AG20: 0 | AI20: 2.195 | AJ20: V | AK20: 0.2 | AL20: 0.09000000358 | AM20: 11.88000011 | AN20: 1 | AO20: 75779 | AP20: 73 | AQ20: hngrod | AR20: Hanger Rod | AS20: 52 | AT20: Plumbing#0011.pdf | AY20: 2.195 | AZ20: MEDAIR | BB20: 1 | BC20: HE32421FF800018 | BD20: 36 | BE20: 33 | BF20: 0
A21: 160 | B21: 0 | C21: 0 | D21: 4 | E21: 3 | F21: MEDAIR | G21: Cleaned/Capped Copper Med Air | H21: 7th floor | I21: Med Gas | J21: Above | K21: bline6 | L21: Threaded Rod | M21: 198 | N21: B-Line | O21: B3205 | P21: 6/15/2022 | Q21: 132 | R21: Plain Threaded Rod | S21: <None> | T21: <None> | U21: 0 | V21: 0 | W21: 0 | X21: 0 | Y21: 5 | Z21: <None> | AC21: ⅜ | AD21: -128 | AE21: 24 | AF21: 0 | AG21: 0 | AI21: 2.195 | AJ21: V | AK21: 0.2 | AL21: 0.09000000358 | AM21: 11.88000011 | AN21: 1 | AO21: 75779 | AP21: 73 | AQ21: hngrod | AR21: Hanger Rod | AS21: 52 | AT21: Plumbing#0012.pdf | AY21: 2.195 | AZ21: MEDAIR | BB21: 1 | BC21: HE32421FF800018 | BD21: 36 | BE21: 33 | BF21: 0
A22: 164 | B22: 0 | C22: 0 | D22: 4 | E22: 3 | F22: MEDAIR | G22: Cleaned/Capped Copper Med Air | H22: 7th floor | I22: Med Gas | J22: Above | K22: bline6 | L22: Threaded Rod | M22: 198 | N22: B-Line | O22: B3205 | P22: 6/15/2022 | Q22: 48 | R22: Plain Threaded Rod | S22: <None> | T22: <None> | U22: 0 | V22: 0 | W22: 0 | X22: 0 | Y22: 5 | Z22: <None> | AC22: ⅜ | AD22: -128 | AE22: 24 | AF22: 0 | AG22: 0 | AI22: 2.195 | AJ22: V | AK22: 0.2 | AL22: 0.09000000358 | AM22: 4.320000172 | AN22: 1 | AO22: 76803 | AP22: 73 | AQ22: hngrod | AR22: Hanger Rod | AS22: 52 | AT22: Plumbing#0011.pdf | AY22: 2.195 | AZ22: MEDAIR | BB22: 1 | BC22: HE32421FF800018 | BD22: 36 | BE22: 33 | BF22: 0
A23: 168 | B23: 0 | C23: 0 | D23: 4 | E23: 3 | F23: MEDAIR | G23: Cleaned/Capped Copper Med Air | H23: 7th floor | I23: Med Gas | J23: Above | K23: bline6 | L23: Threaded Rod | M23: 198 | N23: B-Line | O23: B3205 | P23: 6/15/2022 | Q23: 48 | R23: Plain Threaded Rod | S23: <None> | T23: <None> | U23: 0 | V23: 0 | W23: 0 | X23: 0 | Y23: 5 | Z23: <None> | AC23: ⅜ | AD23: -128 | AE23: 24 | AF23: 0 | AG23: 0 | AI23: 2.195 | AJ23: V | AK23: 0.2 | AL23: 0.09000000358 | AM23: 4.320000172 | AN23: 1 | AO23: 76803 | AP23: 73 | AQ23: hngrod | AR23: Hanger Rod | AS23: 52 | AT23: Plumbing#0012.pdf | AY23: 2.195 | AZ23: MEDAIR | BB23: 1 | BC23: HE32421FF800018 | BD23: 36 | BE23: 33 | BF23: 0
A24: 172 | B24: 0 | C24: 0 | D24: 4 | E24: 3 | F24: MEDAIR | G24: Cleaned/Capped Copper Med Air | H24: 7th floor | I24: Med Gas | J24: Above | K24: bline6 | L24: Threaded Rod | M24: 198 | N24: B-Line | O24: B3205 | P24: 6/15/2022 | Q24: 408 | R24: Plain Threaded Rod | S24: <None> | T24: <None> | U24: 0 | V24: 0 | W24: 0 | X24: 0 | Y24: 5 | Z24: <None> | AC24: ⅜ | AD24: -128 | AE24: 24 | AF24: 0 | AG24: 0 | AI24: 2.195 | AJ24: V | AK24: 0.2 | AL24: 0.09000000358 | AM24: 36.72000122 | AN24: 1 | AO24: 77827 | AP24: 73 | AQ24: hngrod | AR24: Hanger Rod | AS24: 52 | AT24: Plumbing#0011.pdf | AY24: 2.195 | AZ24: MEDAIR | BB24: 1 | BC24: HE32421FF800018 | BD24: 36 | BE24: 33 | BF24: 0
A25: 176 | B25: 0 | C25: 0 | D25: 4 | E25: 3 | F25: MEDAIR | G25: Cleaned/Capped Copper Med Air | H25: 7th floor | I25: Med Gas | J25: Above | K25: bline6 | L25: Threaded Rod | M25: 198 | N25: B-Line | O25: B3205 | P25: 6/15/2022 | Q25: 408 | R25: Plain Threaded Rod | S25: <None> | T25: <None> | U25: 0 | V25: 0 | W25: 0 | X25: 0 | Y25: 5 | Z25: <None> | AC25: ⅜ | AD25: -128 | AE25: 24 | AF25: 0 | AG25: 0 | AI25: 2.195 | AJ25: V | AK25: 0.2 | AL25: 0.09000000358 | AM25: 36.72000122 | AN25: 1 | AO25: 77827 | AP25: 73 | AQ25: hngrod | AR25: Hanger Rod | AS25: 52 | AT25: Plumbing#0012.pdf | AY25: 2.195 | AZ25: MEDAIR | BB25: 1 | BC25: HE32421FF800018 | BD25: 36 | BE25: 33 | BF25: 0
A26: 54 | B26: 0 | C26: 0 | D26: 3 | E26: 1 | F26: HWSHWR4 | G26: Copper/Welded Heating Water | H26: 7th floor | I26: Heating Water | J26: Above | K26: bline6 | L26: Threaded Rod | M26: 198 | N26: B-Line | O26: B3205 | P26: 6/15/2022 | Q26: 788 | R26: Plain Threaded Rod | S26: <None> | T26: <None> | U26: 0 | V26: 0 | W26: 0 | X26: 0 | Y26: 5 | Z26: <None> | AC26: ⅜ | AD26: -128 | AE26: 24 | AF26: 0 | AG26: 0 | AI26: 2.195 | AJ26: V | AK26: 0.2 | AL26: 0.09000000358 | AM26: 70.9200058 | AN26: 1 | AO26: 78853 | AP26: 73 | AQ26: hngrod | AR26: Hanger Rod | AS26: 52 | AT26: Mechanical#0010.pdf | AY26: 2.195 | AZ26: HWSHWR4 | BB26: 1 | BC26: HE32421FF800018 | BD26: 36 | BE26: 33 | BF26: 0
A27: 180 | B27: 0 | C27: 0 | D27: 4 | E27: 3 | F27: MEDAIR | G27: Cleaned/Capped Copper Med Air | H27: 7th floor | I27: Med Gas | J27: Above | K27: bline6 | L27: Threaded Rod | M27: 198 | N27: B-Line | O27: B3205 | P27: 6/15/2022 | Q27: 60 | R27: Plain Threaded Rod | S27: <None> | T27: <None> | U27: 0 | V27: 0 | W27: 0 | X27: 0 | Y27: 5 | Z27: <None> | AC27: ½ | AD27: -224 | AE27: 32 | AF27: 0 | AG27: 0 | AI27: 4.532 | AJ27: V | AK27: 0.2 | AL27: 0.1000000015 | AM27: 6 | AN27: 1 | AO27: 79875 | AP27: 74 | AQ27: hngrod | AR27: Hanger Rod | AS27: 52 | AT27: Plumbing#0011.pdf | AY27: 4.532 | AZ27: MEDAIR | BB27: 1 | BC27: HE32421FF200020 | BD27: 36 | BE27: 33 | BF27: 0
A28: 184 | B28: 0 | C28: 0 | D28: 4 | E28: 3 | F28: MEDAIR | G28: Cleaned/Capped Copper Med Air | H28: 7th floor | I28: Med Gas | J28: Above | K28: bline6 | L28: Threaded Rod | M28: 198 | N28: B-Line | O28: B3205 | P28: 6/15/2022 | Q28: 60 | R28: Plain Threaded Rod | S28: <None> | T28: <None> | U28: 0 | V28: 0 | W28: 0 | X28: 0 | Y28: 5 | Z28: <None> | AC28: ½ | AD28: -224 | AE28: 32 | AF28: 0 | AG28: 0 | AI28: 4.532 | AJ28: V | AK28: 0.2 | AL28: 0.1000000015 | AM28: 6 | AN28: 1 | AO28: 79875 | AP28: 74 | AQ28: hngrod | AR28: Hanger Rod | AS28: 52 | AT28: Plumbing#0012.pdf | AY28: 4.532 | AZ28: MEDAIR | BB28: 1 | BC28: HE32421FF200020 | BD28: 36 | BE28: 33 | BF28: 0
A29: 34 | B29: 0 | C29: 0 | D29: 2 | E29: 3 | F29: DOMWATER | G29: Copper Domestic Water | H29: All 7th Floor | I29: Water | J29: Above | K29: bline6 | L29: Threaded Rod | M29: 198 | N29: B-Line | O29: B3205 | P29: 6/15/2022 | Q29: 780 | R29: Plain Threaded Rod | S29: <None> | T29: <None> | U29: 0 | V29: 0 | W29: 0 | X29: 0 | Y29: 5 | Z29: <None> | AC29: ½ | AD29: -224 | AE29: 32 | AF29: 0 | AG29: 0 | AI29: 4.532 | AJ29: V | AK29: 0.2 | AL29: 0.1000000015 | AM29: 78 | AN29: 1 | AO29: 80901 | AP29: 74 | AQ29: hngrod | AR29: Hanger Rod | AS29: 52 | AT29: Plumbing#0007.pdf | AY29: 4.532 | AZ29: DOMWATER | BB29: 1 | BC29: HE32421FF200020 | BD29: 36 | BE29: 33 | BF29: 0
A30: 61 | B30: 0 | C30: 0 | D30: 3 | E30: 1 | F30: HWSHWR4 | G30: Copper/Welded Heating Water | H30: 7th floor | I30: Heating Water | J30: Above | K30: bline6 | L30: Threaded Rod | M30: 198 | N30: B-Line | O30: B3205 | P30: 6/15/2022 | Q30: 132 | R30: Plain Threaded Rod | S30: <None> | T30: <None> | U30: 0 | V30: 0 | W30: 0 | X30: 0 | Y30: 5 | Z30: <None> | AC30: ½ | AD30: -224 | AE30: 32 | AF30: 0 | AG30: 0 | AI30: 4.532 | AJ30: V | AK30: 0.2 | AL30: 0.1000000015 | AM30: 13.19999981 | AN30: 1 | AO30: 81925 | AP30: 74 | AQ30: hngrod | AR30: Hanger Rod | AS30: 52 | AT30: Mechanical#0010.pdf | AY30: 4.532 | AZ30: HWSHWR4 | BB30: 1 | BC30: HE32421FF200020 | BD30: 36 | BE30: 33 | BF30: 0
A31: 188 | B31: 0 | C31: 0 | D31: 4 | E31: 3 | F31: MEDAIR | G31: Cleaned/Capped Copper Med Air | H31: 7th floor | I31: Med Gas | J31: Above | K31: bline6 | L31: Threaded Rod | M31: 198 | N31: B-Line | O31: B3205 | P31: 6/15/2022 | Q31: 24 | R31: Plain Threaded Rod | S31: <None> | T31: <None> | U31: 0 | V31: 0 | W31: 0 | X31: 0 | Y31: 5 | Z31: <None> | AC31: ⅝ | AD31: -256 | AE31: 40 | AF31: 0 | AG31: 0 | AI31: 8.088 | AJ31: V | AK31: 0.2 | AL31: 0.1099999994 | AM31: 2.639999866 | AN31: 1 | AO31: 82947 | AP31: 75 | AQ31: hngrod | AR31: Hanger Rod | AS31: 52 | AT31: Plumbing#0011.pdf | AY31: 8.088 | AZ31: MEDAIR | BB31: 1 | BC31: HE32421FF000028 | BD31: 36 | BE31: 33 | BF31: 0
A32: 192 | B32: 0 | C32: 0 | D32: 4 | E32: 3 | F32: MEDAIR | G32: Cleaned/Capped Copper Med Air | H32: 7th floor | I32: Med Gas | J32: Above | K32: bline6 | L32: Threaded Rod | M32: 198 | N32: B-Line | O32: B3205 | P32: 6/15/2022 | Q32: 24 | R32: Plain Threaded Rod | S32: <None> | T32: <None> | U32: 0 | V32: 0 | W32: 0 | X32: 0 | Y32: 5 | Z32: <None> | AC32: ⅝ | AD32: -256 | AE32: 40 | AF32: 0 | AG32: 0 | AI32: 8.088 | AJ32: V | AK32: 0.2 | AL32: 0.1099999994 | AM32: 2.639999866 | AN32: 1 | AO32: 82947 | AP32: 75 | AQ32: hngrod | AR32: Hanger Rod | AS32: 52 | AT32: Plumbing#0012.pdf | AY32: 8.088 | AZ32: MEDAIR | BB32: 1 | BC32: HE32421FF000028 | BD32: 36 | BE32: 33 | BF32: 0
A33: 8 | B33: 0 | C33: 0 | D33: 1 | E33: 1 | F33: NO-HUBCH | G33: Above Grade No-Hub DWV | H33: All 7th Floor | I33: DWV | J33: Above | K33: bline6 | L33: Threaded Rod | M33: 198 | N33: B-Line | O33: B3205 | P33: 6/15/2022 | Q33: 2200 | R33: Plain Threaded Rod | S33: <None> | T33: <None> | U33: 0 | V33: 0 | W33: 0 | X33: 0 | Y33: 5 | Z33: <None> | AC33: ⅝ | AD33: -256 | AE33: 40 | AF33: 0 | AG33: 0 | AI33: 8.088 | AJ33: V | AK33: 0.2 | AL33: 0.1099999994 | AM33: 242 | AN33: 1 | AO33: 83973 | AP33: 75 | AQ33: hngrod | AR33: Hanger Rod | AS33: 52 | AT33: Plumbing#0004.pdf | AY33: 8.088 | AZ33: NO-HUBCH | BB33: 1 | BC33: HE32421FF000028 | BD33: 36 | BE33: 33 | BF33: 0
A34: 127 | B34: 0 | C34: 0 | D34: 4 | E34: 3 | F34: MEDAIR | G34: Cleaned/Capped Copper Med Air | H34: 7th floor | I34: Med Gas | J34: Above | K34: bolts | L34: Bolts | M34: 35 | N34: Bolt-Pak | P34: 6/8/2021 | Q34: 72 | R34: Hex Head Bolt w/ Nut | S34: <None> | T34: <None> | U34: 0 | V34: 0 | W34: 0 | X34: 0 | Y34: 4 | Z34: <None> | AC34: ⅝ x3 | AD34: 40 | AE34: 192 | AF34: 0 | AG34: 0 | AI34: 0.99 | AJ34: V | AK34: 0.8 | AL34: 0 | AM34: 0 | AN34: 1 | AO34: 53250 | AP34: 54 | AQ34: csfgwn | AR34: Steel Weld Neck Flanges | AS34: 31 | AT34: Plumbing#0011.pdf | AY34: 0.99 | AZ34: MEDAIR | BB34: 1 | BC34: LC324210FA3002800C0 | BD34: 36 | BE34: 33 | BF34: 4003
A35: 130 | B35: 0 | C35: 0 | D35: 4 | E35: 3 | F35: MEDAIR | G35: Cleaned/Capped Copper Med Air | H35: 7th floor | I35: Med Gas | J35: Above | K35: bolts | L35: Bolts | M35: 35 | N35: Bolt-Pak | P35: 6/8/2021 | Q35: 72 | R35: Hex Head Bolt w/ Nut | S35: <None> | T35: <None> | U35: 0 | V35: 0 | W35: 0 | X35: 0 | Y35: 4 | Z35: <None> | AC35: ⅝ x3 | AD35: 40 | AE35: 192 | AF35: 0 | AG35: 0 | AI35: 0.99 | AJ35: V | AK35: 0.8 | AL35: 0 | AM35: 0 | AN35: 1 | AO35: 53250 | AP35: 54 | AQ35: csfgwn | AR35: Steel Weld Neck Flanges | AS35: 31 | AT35: Plumbing#0012.pdf | AY35: 0.99 | AZ35: MEDAIR | BB35: 1 | BC35: LC324210FA3002800C0 | BD35: 36 | BE35: 33 | BF35: 4003
A36: 75 | B36: -1 | C36: 0 | D36: 4 | E36: 3 | F36: MEDAIR | G36: Cleaned/Capped Copper Med Air | H36: 7th floor | I36: Med Gas | J36: Above | K36: copfcb | L36: Clean & Bag Cop Ftgs Elkhart | M36: 109 | N36: Elkhart Prod | O36: 107-C | P36: 6/20/2024 10:51:44 AM | Q36: 81 | R36: Wrot Copper C & B 90 Ell | S36: <None> | T36: <None> | U36: 0.1800000072 | V36: 0.001000000047 | W36: 0.112999998 | X36: 0 | Y36: 2 | Z36: <None> | AC36: 1 | AD36: 64 | AE36: -64 | AF36: 0 | AG36: 0 | AI36: 65.036 | AJ36: V | AK36: 0.25 | AL36: 0.6299999952 | AM36: 51.02999878 | AN36: 1 | AO36: 25600 | AP36: 25 | AQ36: copfsf | AR36: Copper Ftgs Silfos | AS36: 41 | AT36: Plumbing#0011.pdf | AY36: 65.036 | AZ36: MEDAIR | BB36: 1 | BC36: FC329250FA10040FFC0 | BD36: 41 | BE36: 37 | BF36: 4001
A37: 76 | B37: -1 | C37: 0 | D37: 4 | E37: 3 | F37: MEDAIR | G37: Cleaned/Capped Copper Med Air | H37: 7th floor | I37: Med Gas | J37: Above | K37: copfcb | L37: Clean & Bag Cop Ftgs Elkhart | M37: 109 | N37: Elkhart Prod | O37: 107-C | P37: 6/20/2024 10:51:44 AM | Q37: 81 | R37: Wrot Copper C & B 90 Ell | S37: <None> | T37: <None> | U37: 0.1800000072 | V37: 0.001000000047 | W37: 0.112999998 | X37: 0 | Y37: 2 | Z37: <None> | AC37: 1 | AD37: 64 | AE37: -64 | AF37: 0 | AG37: 0 | AI37: 65.036 | AJ37: V | AK37: 0.25 | AL37: 0.6299999952 | AM37: 51.02999878 | AN37: 1 | AO37: 25600 | AP37: 25 | AQ37: copfsf | AR37: Copper Ftgs Silfos | AS37: 41 | AT37: Plumbing#0012.pdf | AY37: 65.036 | AZ37: MEDAIR | BB37: 1 | BC37: FC329250FA10040FFC0 | BD37: 41 | BE37: 37 | BF37: 4001
A38: 77 | B38: -1 | C38: 0 | D38: 4 | E38: 3 | F38: MEDAIR | G38: Cleaned/Capped Copper Med Air | H38: 7th floor | I38: Med Gas | J38: Above | K38: copfcb | L38: Clean & Bag Cop Ftgs Elkhart | M38: 109 | N38: Elkhart Prod | O38: 107-C | P38: 6/20/2024 10:51:44 AM | Q38: 60 | R38: Wrot Copper C & B 90 Ell | S38: <None> | T38: <None> | U38: 0.2800000012 | V38: 0.003000000026 | W38: 0.1599999964 | X38: 0 | Y38: 2 | Z38: <None> | AC38: 1¼ | AD38: 80 | AE38: -80 | AF38: 0 | AG38: 0 | AI38: 96.362 | AJ38: V | AK38: 0.25 | AL38: 0.6999999881 | AM38: 42 | AN38: 1 | AO38: 26624 | AP38: 26 | AQ38: copfsf | AR38: Copper Ftgs Silfos | AS38: 41 | AT38: Plumbing#0011.pdf | AY38: 96.362 | AZ38: MEDAIR | BB38: 1 | BC38: FC329250FA10050FFB0 | BD38: 41 | BE38: 37 | BF38: 4001
A39: 78 | B39: -1 | C39: 0 | D39: 4 | E39: 3 | F39: MEDAIR | G39: Cleaned/Capped Copper Med Air | H39: 7th floor | I39: Med Gas | J39: Above | K39: copfcb | L39: Clean & Bag Cop Ftgs Elkhart | M39: 109 | N39: Elkhart Prod | O39: 107-C | P39: 6/20/2024 10:51:44 AM | Q39: 60 | R39: Wrot Copper C & B 90 Ell | S39: <None> | T39: <None> | U39: 0.2800000012 | V39: 0.003000000026 | W39: 0.1599999964 | X39: 0 | Y39: 2 | Z39: <None> | AC39: 1¼ | AD39: 80 | AE39: -80 | AF39: 0 | AG39: 0 | AI39: 96.362 | AJ39: V | AK39: 0.25 | AL39: 0.6999999881 | AM39: 42 | AN39: 1 | AO39: 26624 | AP39: 26 | AQ39: copfsf | AR39: Copper Ftgs Silfos | AS39: 41 | AT39: Plumbing#0012.pdf | AY39: 96.362 | AZ39: MEDAIR | BB39: 1 | BC39: FC329250FA10050FFB0 | BD39: 41 | BE39: 37 | BF39: 4001
A40: 79 | B40: -1 | C40: 0 | D40: 4 | E40: 3 | F40: MEDAIR | G40: Cleaned/Capped Copper Med Air | H40: 7th floor | I40: Med Gas | J40: Above | K40: copfcb | L40: Clean & Bag Cop Ftgs Elkhart | M40: 109 | N40: Elkhart Prod | O40: 107-C | P40: 6/20/2024 10:51:44 AM | Q40: 9 | R40: Wrot Copper C & B 90 Ell | S40: <None> | T40: <None> | U40: 0.400000006 | V40: 0.004999999888 | W40: 0.2150000036 | X40: 0 | Y40: 2 | Z40: <None> | AC40: 1½ | AD40: 96 | AE40: -96 | AF40: 0 | AG40: 0 | AI40: 150.288 | AJ40: V | AK40: 0.25 | AL40: 0.7400000095 | AM40: 6.659999847 | AN40: 1 | AO40: 27648 | AP40: 27 | AQ40: copfsf | AR40: Copper Ftgs Silfos | AS40: 41 | AT40: Plumbing#0011.pdf | AY40: 150.288 | AZ40: MEDAIR | BB40: 1 | BC40: FC329250FA10060FFA0 | BD40: 41 | BE40: 37 | BF40: 4001
A41: 80 | B41: -1 | C41: 0 | D41: 4 | E41: 3 | F41: MEDAIR | G41: Cleaned/Capped Copper Med Air | H41: 7th floor | I41: Med Gas | J41: Above | K41: copfcb | L41: Clean & Bag Cop Ftgs Elkhart | M41: 109 | N41: Elkhart Prod | O41: 107-C | P41: 6/20/2024 10:51:44 AM | Q41: 9 | R41: Wrot Copper C & B 90 Ell | S41: <None> | T41: <None> | U41: 0.400000006 | V41: 0.004999999888 | W41: 0.2150000036 | X41: 0 | Y41: 2 | Z41: <None> | AC41: 1½ | AD41: 96 | AE41: -96 | AF41: 0 | AG41: 0 | AI41: 150.288 | AJ41: V | AK41: 0.25 | AL41: 0.7400000095 | AM41: 6.659999847 | AN41: 1 | AO41: 27648 | AP41: 27 | AQ41: copfsf | AR41: Copper Ftgs Silfos | AS41: 41 | AT41: Plumbing#0012.pdf | AY41: 150.288 | AZ41: MEDAIR | BB41: 1 | BC41: FC329250FA10060FFA0 | BD41: 41 | BE41: 37 | BF41: 4001
A42: 81 | B42: -1 | C42: 0 | D42: 4 | E42: 3 | F42: MEDAIR | G42: Cleaned/Capped Copper Med Air | H42: 7th floor | I42: Med Gas | J42: Above | K42: copfcb | L42: Clean & Bag Cop Ftgs Elkhart | M42: 109 | N42: Elkhart Prod | O42: 107-C | P42: 6/20/2024 10:51:44 AM | Q42: 168 | R42: Wrot Copper C & B 90 Ell | S42: <None> | T42: <None> | U42: 0.75 | V42: 0.01099999994 | W42: 0.3689999878 | X42: 0 | Y42: 2 | Z42: <None> | AC42: 2 | AD42: 128 | AE42: -128 | AF42: 0 | AG42: 0 | AI42: 273.8 | AJ42: V | AK42: 0.25 | AL42: 0.8500000238 | AM42: 142.8000031 | AN42: 1 | AO42: 28672 | AP42: 28 | AQ42: copfsf | AR42: Copper Ftgs Silfos | AS42: 41 | AT42: Plumbing#0011.pdf | AY42: 273.8 | AZ42: MEDAIR | BB42: 1 | BC42: FC329250FA10080FF80 | BD42: 41 | BE42: 37 | BF42: 4001
A43: 82 | B43: -1 | C43: 0 | D43: 4 | E43: 3 | F43: MEDAIR | G43: Cleaned/Capped Copper Med Air | H43: 7th floor | I43: Med Gas | J43: Above | K43: copfcb | L43: Clean & Bag Cop Ftgs Elkhart | M43: 109 | N43: Elkhart Prod | O43: 107-C | P43: 6/20/2024 10:51:44 AM | Q43: 168 | R43: Wrot Copper C & B 90 Ell | S43: <None> | T43: <None> | U43: 0.75 | V43: 0.01099999994 | W43: 0.3689999878 | X43: 0 | Y43: 2 | Z43: <None> | AC43: 2 | AD43: 128 | AE43: -128 | AF43: 0 | AG43: 0 | AI43: 273.8 | AJ43: V | AK43: 0.25 | AL43: 0.8500000238 | AM43: 142.8000031 | AN43: 1 | AO43: 28672 | AP43: 28 | AQ43: copfsf | AR43: Copper Ftgs Silfos | AS43: 41 | AT43: Plumbing#0012.pdf | AY43: 273.8 | AZ43: MEDAIR | BB43: 1 | BC43: FC329250FA10080FF80 | BD43: 41 | BE43: 37 | BF43: 4001
A44: 83 | B44: -1 | C44: 0 | D44: 4 | E44: 3 | F44: MEDAIR | G44: Cleaned/Capped Copper Med Air | H44: 7th floor | I44: Med Gas | J44: Above | K44: copfcb | L44: Clean & Bag Cop Ftgs Elkhart | M44: 109 | N44: Elkhart Prod | O44: 107-C | P44: 6/20/2024 10:51:44 AM | Q44: 6 | R44: Wrot Copper C & B 90 Ell | S44: <None> | T44: <None> | U44: 1.179999948 | V44: 0.02099999972 | W44: 0.5410000086 | X44: 0 | Y44: 2 | Z44: <None> | AC44: 2½ | AD44: 160 | AE44: -160 | AF44: 0 | AG44: 0 | AI44: 499.094 | AJ44: V | AK44: 0.25 | AL44: 1.360000014 | AM44: 8.159999847 | AN44: 1 | AO44: 29696 | AP44: 29 | AQ44: copfsf | AR44: Copper Ftgs Silfos | AS44: 41 | AT44: Plumbing#0011.pdf | AY44: 499.094 | AZ44: MEDAIR | BB44: 1 | BC44: FC329250FA100A0FF60 | BD44: 41 | BE44: 37 | BF44: 4001
A45: 84 | B45: -1 | C45: 0 | D45: 4 | E45: 3 | F45: MEDAIR | G45: Cleaned/Capped Copper Med Air | H45: 7th floor | I45: Med Gas | J45: Above | K45: copfcb | L45: Clean & Bag Cop Ftgs Elkhart | M45: 109 | N45: Elkhart Prod | O45: 107-C | P45: 6/20/2024 10:51:44 AM | Q45: 6 | R45: Wrot Copper C & B 90 Ell | S45: <None> | T45: <None> | U45: 1.179999948 | V45: 0.02099999972 | W45: 0.5410000086 | X45: 0 | Y45: 2 | Z45: <None> | AC45: 2½ | AD45: 160 | AE45: -160 | AF45: 0 | AG45: 0 | AI45: 499.094 | AJ45: V | AK45: 0.25 | AL45: 1.360000014 | AM45: 8.159999847 | AN45: 1 | AO45: 29696 | AP45: 29 | AQ45: copfsf | AR45: Copper Ftgs Silfos | AS45: 41 | AT45: Plumbing#0012.pdf | AY45: 499.094 | AZ45: MEDAIR | BB45: 1 | BC45: FC329250FA100A0FF60 | BD45: 41 | BE45: 37 | BF45: 4001
A46: 85 | B46: -1 | C46: 0 | D46: 4 | E46: 3 | F46: MEDAIR | G46: Cleaned/Capped Copper Med Air | H46: 7th floor | I46: Med Gas | J46: Above | K46: copfcb | L46: Clean & Bag Cop Ftgs Elkhart | M46: 109 | N46: Elkhart Prod | O46: 107-C | P46: 6/20/2024 10:51:44 AM | Q46: 18 | R46: Wrot Copper C & B 90 Ell | S46: <None> | T46: <None> | U46: 4.21999979 | V46: 0.0869999975 | W46: 1.325000048 | X46: 0 | Y46: 2 | Z46: <None> | AC46: 4 | AD46: 256 | AE46: -256 | AF46: 0 | AG46: 0 | AI46: 1553.963 | AJ46: V | AK46: 0.25 | AL46: 2.190000057 | AM46: 39.42000198 | AN46: 1 | AO46: 30720 | AP46: 30 | AQ46: copfsf | AR46: Copper Ftgs Silfos | AS46: 41 | AT46: Plumbing#0011.pdf | AY46: 1553.963 | AZ46: MEDAIR | BB46: 1 | BC46: FC329250FA10100FF00 | BD46: 41 | BE46: 37 | BF46: 4001
A47: 86 | B47: -1 | C47: 0 | D47: 4 | E47: 3 | F47: MEDAIR | G47: Cleaned/Capped Copper Med Air | H47: 7th floor | I47: Med Gas | J47: Above | K47: copfcb | L47: Clean & Bag Cop Ftgs Elkhart | M47: 109 | N47: Elkhart Prod | O47: 107-C | P47: 6/20/2024 10:51:44 AM | Q47: 18 | R47: Wrot Copper C & B 90 Ell | S47: <None> | T47: <None> | U47: 4.21999979 | V47: 0.0869999975 | W47: 1.325000048 | X47: 0 | Y47: 2 | Z47: <None> | AC47: 4 | AD47: 256 | AE47: -256 | AF47: 0 | AG47: 0 | AI47: 1553.963 | AJ47: V | AK47: 0.25 | AL47: 2.190000057 | AM47: 39.42000198 | AN47: 1 | AO47: 30720 | AP47: 30 | AQ47: copfsf | AR47: Copper Ftgs Silfos | AS47: 41 | AT47: Plumbing#0012.pdf | AY47: 1553.963 | AZ47: MEDAIR | BB47: 1 | BC47: FC329250FA10100FF00 | BD47: 41 | BE47: 37 | BF47: 4001
A48: 87 | B48: -1 | C48: 0 | D48: 4 | E48: 3 | F48: MEDAIR | G48: Cleaned/Capped Copper Med Air | H48: 7th floor | I48: Med Gas | J48: Above | K48: copfcb | L48: Clean & Bag Cop Ftgs Elkhart | M48: 109 | N48: Elkhart Prod | O48: 106 | P48: 6/20/2024 10:51:44 AM | Q48: 6 | R48: Wrot Copper C & B 45 Ell | S48: <None> | T48: <None> | U48: 0.150000006 | V48: 0.001000000047 | W48: 0.05600000173 | X48: 0 | Y48: 2 | Z48: <None> | AC48: 1 | AD48: 64 | AE48: -64 | AF48: 0 | AG48: 0 | AI48: 92.363 | AJ48: V | AK48: 0.25 | AL48: 0.6299999952 | AM48: 3.779999971 | AN48: 1 | AO48: 31744 | AP48: 31 | AQ48: copfsf | AR48: Copper Ftgs Silfos | AS48: 41 | AT48: Plumbing#0011.pdf | AY48: 92.363 | AZ48: MEDAIR | BB48: 1 | BC48: FC329250FA50040FFC0 | BD48: 41 | BE48: 37 | BF48: 4005
A49: 88 | B49: -1 | C49: 0 | D49: 4 | E49: 3 | F49: MEDAIR | G49: Cleaned/Capped Copper Med Air | H49: 7th floor | I49: Med Gas | J49: Above | K49: copfcb | L49: Clean & Bag Cop Ftgs Elkhart | M49: 109 | N49: Elkhart Prod | O49: 106 | P49: 6/20/2024 10:51:44 AM | Q49: 6 | R49: Wrot Copper C & B 45 Ell | S49: <None> | T49: <None> | U49: 0.150000006 | V49: 0.001000000047 | W49: 0.05600000173 | X49: 0 | Y49: 2 | Z49: <None> | AC49: 1 | AD49: 64 | AE49: -64 | AF49: 0 | AG49: 0 | AI49: 92.363 | AJ49: V | AK49: 0.25 | AL49: 0.6299999952 | AM49: 3.779999971 | AN49: 1 | AO49: 31744 | AP49: 31 | AQ49: copfsf | AR49: Copper Ftgs Silfos | AS49: 41 | AT49: Plumbing#0012.pdf | AY49: 92.363 | AZ49: MEDAIR | BB49: 1 | BC49: FC329250FA50040FFC0 | BD49: 41 | BE49: 37 | BF49: 4005
A50: 89 | B50: -1 | C50: 0 | D50: 4 | E50: 3 | F50: MEDAIR | G50: Cleaned/Capped Copper Med Air | H50: 7th floor | I50: Med Gas | J50: Above | K50: copfcb | L50: Clean & Bag Cop Ftgs Elkhart | M50: 109 | N50: Elkhart Prod | O50: 106 | P50: 6/20/2024 10:51:44 AM | Q50: 6 | R50: Wrot Copper C & B 45 Ell | S50: <None> | T50: <None> | U50: 0.6200000048 | V50: 0.004999999888 | W50: 0.1850000024 | X50: 0 | Y50: 2 | Z50: <None> | AC50: 2 | AD50: 128 | AE50: -128 | AF50: 0 | AG50: 0 | AI50: 254 | AJ50: V | AK50: 0.25 | AL50: 0.8500000238 | AM50: 5.100000381 | AN50: 1 | AO50: 32768 | AP50: 32 | AQ50: copfsf | AR50: Copper Ftgs Silfos | AS50: 41 | AT50: Plumbing#0011.pdf | AY50: 254 | AZ50: MEDAIR | BB50: 1 | BC50: FC329250FA50080FF80 | BD50: 41 | BE50: 37 | BF50: 4005
A51: 90 | B51: -1 | C51: 0 | D51: 4 | E51: 3 | F51: MEDAIR | G51: Cleaned/Capped Copper Med Air | H51: 7th floor | I51: Med Gas | J51: Above | K51: copfcb | L51: Clean & Bag Cop Ftgs Elkhart | M51: 109 | N51: Elkhart Prod | O51: 106 | P51: 6/20/2024 10:51:44 AM | Q51: 6 | R51: Wrot Copper C & B 45 Ell | S51: <None> | T51: <None> | U51: 0.6200000048 | V51: 0.004999999888 | W51: 0.1850000024 | X51: 0 | Y51: 2 | Z51: <None> | AC51: 2 | AD51: 128 | AE51: -128 | AF51: 0 | AG51: 0 | AI51: 254 | AJ51: V | AK51: 0.25 | AL51: 0.8500000238 | AM51: 5.100000381 | AN51: 1 | AO51: 32768 | AP51: 32 | AQ51: copfsf | AR51: Copper Ftgs Silfos | AS51: 41 | AT51: Plumbing#0012.pdf | AY51: 254 | AZ51: MEDAIR | BB51: 1 | BC51: FC329250FA50080FF80 | BD51: 41 | BE51: 37 | BF51: 4005
A52: 91 | B52: -1 | C52: 0 | D52: 4 | E52: 3 | F52: MEDAIR | G52: Cleaned/Capped Copper Med Air | H52: 7th floor | I52: Med Gas | J52: Above | K52: copfcb | L52: Clean & Bag Cop Ftgs Elkhart | M52: 109 | N52: Elkhart Prod | O52: 111 | P52: 6/20/2024 10:51:44 AM | Q52: 15 | R52: Wrot Copper C & B Tee | S52: <None> | T52: <None> | U52: 0.2910000086 | V52: 0.001000000047 | W52: 0.07500000298 | X52: 0 | Y52: 2 | Z52: <None> | AC52: 1 | AD52: 64 | AE52: -64 | AF52: -64 | AG52: 0 | AI52: 145.925 | AJ52: V | AK52: 0.25 | AL52: 0.9200000167 | AM52: 13.80000019 | AN52: 1 | AO52: 33792 | AP52: 33 | AQ52: copfsf | AR52: Copper Ftgs Silfos | AS52: 41 | AT52: Plumbing#0011.pdf | AY52: 145.925 | AZ52: MEDAIR | BB52: 1 | BC52: FC129250FA70040FFC0FFC0 | BD52: 41 | BE52: 37 | BF52: 4007
A53: 92 | B53: -1 | C53: 0 | D53: 4 | E53: 3 | F53: MEDAIR | G53: Cleaned/Capped Copper Med Air | H53: 7th floor | I53: Med Gas | J53: Above | K53: copfcb | L53: Clean & Bag Cop Ftgs Elkhart | M53: 109 | N53: Elkhart Prod | O53: 111 | P53: 6/20/2024 10:51:44 AM | Q53: 15 | R53: Wrot Copper C & B Tee | S53: <None> | T53: <None> | U53: 0.2910000086 | V53: 0.001000000047 | W53: 0.07500000298 | X53: 0 | Y53: 2 | Z53: <None> | AC53: 1 | AD53: 64 | AE53: -64 | AF53: -64 | AG53: 0 | AI53: 145.925 | AJ53: V | AK53: 0.25 | AL53: 0.9200000167 | AM53: 13.80000019 | AN53: 1 | AO53: 33792 | AP53: 33 | AQ53: copfsf | AR53: Copper Ftgs Silfos | AS53: 41 | AT53: Plumbing#0012.pdf | AY53: 145.925 | AZ53: MEDAIR | BB53: 1 | BC53: FC129250FA70040FFC0FFC0 | BD53: 41 | BE53: 37 | BF53: 4007
A54: 93 | B54: -1 | C54: 0 | D54: 4 | E54: 3 | F54: MEDAIR | G54: Cleaned/Capped Copper Med Air | H54: 7th floor | I54: Med Gas | J54: Above | K54: copfcb | L54: Clean & Bag Cop Ftgs Elkhart | M54: 109 | N54: Elkhart Prod | O54: 111 | P54: 6/20/2024 10:51:44 AM | Q54: 18 | R54: Wrot Copper C & B Tee | S54: <None> | T54: <None> | U54: 0.4050000012 | V54: 0.002000000095 | W54: 0.1070000008 | X54: 0 | Y54: 2 | Z54: <None> | AC54: 1¼ | AD54: 80 | AE54: -80 | AF54: -80 | AG54: 0 | AI54: 201.25 | AJ54: V | AK54: 0.25 | AL54: 1.029999971 | AM54: 18.53999901 | AN54: 1 | AO54: 34816 | AP54: 34 | AQ54: copfsf | AR54: Copper Ftgs Silfos | AS54: 41 | AT54: Plumbing#0011.pdf | AY54: 201.25 | AZ54: MEDAIR | BB54: 1 | BC54: FC129250FA70050FFB0FFB0 | BD54: 41 | BE54: 37 | BF54: 4007
A55: 94 | B55: -1 | C55: 0 | D55: 4 | E55: 3 | F55: MEDAIR | G55: Cleaned/Capped Copper Med Air | H55: 7th floor | I55: Med Gas | J55: Above | K55: copfcb | L55: Clean & Bag Cop Ftgs Elkhart | M55: 109 | N55: Elkhart Prod | O55: 111 | P55: 6/20/2024 10:51:44 AM | Q55: 18 | R55: Wrot Copper C & B Tee | S55: <None> | T55: <None> | U55: 0.4050000012 | V55: 0.002000000095 | W55: 0.1070000008 | X55: 0 | Y55: 2 | Z55: <None> | AC55: 1¼ | AD55: 80 | AE55: -80 | AF55: -80 | AG55: 0 | AI55: 201.25 | AJ55: V | AK55: 0.25 | AL55: 1.029999971 | AM55: 18.53999901 | AN55: 1 | AO55: 34816 | AP55: 34 | AQ55: copfsf | AR55: Copper Ftgs Silfos | AS55: 41 | AT55: Plumbing#0012.pdf | AY55: 201.25 | AZ55: MEDAIR | BB55: 1 | BC55: FC129250FA70050FFB0FFB0 | BD55: 41 | BE55: 37 | BF55: 4007
A56: 95 | B56: -1 | C56: 0 | D56: 4 | E56: 3 | F56: MEDAIR | G56: Cleaned/Capped Copper Med Air | H56: 7th floor | I56: Med Gas | J56: Above | K56: copfcb | L56: Clean & Bag Cop Ftgs Elkhart | M56: 109 | N56: Elkhart Prod | O56: 111 | P56: 6/20/2024 10:51:44 AM | Q56: 27 | R56: Wrot Copper C & B Tee | S56: <None> | T56: <None> | U56: 1.289999962 | V56: 0.007000000216 | W56: 0.2460000068 | X56: 0 | Y56: 2 | Z56: <None> | AC56: 2 | AD56: 128 | AE56: -128 | AF56: -128 | AG56: 0 | AI56: 483.425 | AJ56: V | AK56: 0.25 | AL56: 1.25999999 | AM56: 34.02000046 | AN56: 1 | AO56: 35840 | AP56: 35 | AQ56: copfsf | AR56: Copper Ftgs Silfos | AS56: 41 | AT56: Plumbing#0011.pdf | AY56: 483.425 | AZ56: MEDAIR | BB56: 1 | BC56: FC129250FA70080FF80FF80 | BD56: 41 | BE56: 37 | BF56: 4007
A57: 96 | B57: -1 | C57: 0 | D57: 4 | E57: 3 | F57: MEDAIR | G57: Cleaned/Capped Copper Med Air | H57: 7th floor | I57: Med Gas | J57: Above | K57: copfcb | L57: Clean & Bag Cop Ftgs Elkhart | M57: 109 | N57: Elkhart Prod | O57: 111 | P57: 6/20/2024 10:51:44 AM | Q57: 27 | R57: Wrot Copper C & B Tee | S57: <None> | T57: <None> | U57: 1.289999962 | V57: 0.007000000216 | W57: 0.2460000068 | X57: 0 | Y57: 2 | Z57: <None> | AC57: 2 | AD57: 128 | AE57: -128 | AF57: -128 | AG57: 0 | AI57: 483.425 | AJ57: V | AK57: 0.25 | AL57: 1.25999999 | AM57: 34.02000046 | AN57: 1 | AO57: 35840 | AP57: 35 | AQ57: copfsf | AR57: Copper Ftgs Silfos | AS57: 41 | AT57: Plumbing#0012.pdf | AY57: 483.425 | AZ57: MEDAIR | BB57: 1 | BC57: FC129250FA70080FF80FF80 | BD57: 41 | BE57: 37 | BF57: 4007
A58: 97 | B58: -1 | C58: 0 | D58: 4 | E58: 3 | F58: MEDAIR | G58: Cleaned/Capped Copper Med Air | H58: 7th floor | I58: Med Gas | J58: Above | K58: copfcb | L58: Clean & Bag Cop Ftgs Elkhart | M58: 109 | N58: Elkhart Prod | O58: 111 | P58: 6/20/2024 10:51:44 AM | Q58: 9 | R58: Wrot Copper C & B Tee | S58: <None> | T58: <None> | U58: 6.619999886 | V58: 0.05799999833 | W58: 0.8840000033 | X58: 0 | Y58: 2 | Z58: <None> | AC58: 4 | AD58: 256 | AE58: -256 | AF58: -256 | AG58: 0 | AI58: 2993.75 | AJ58: V | AK58: 0.25 | AL58: 3.25999999 | AM58: 29.34000015 | AN58: 1 | AO58: 36864 | AP58: 36 | AQ58: copfsf | AR58: Copper Ftgs Silfos | AS58: 41 | AT58: Plumbing#0011.pdf | AY58: 2993.75 | AZ58: MEDAIR | BB58: 1 | BC58: FC129250FA70100FF00FF00 | BD58: 41 | BE58: 37 | BF58: 4007
A59: 98 | B59: -1 | C59: 0 | D59: 4 | E59: 3 | F59: MEDAIR | G59: Cleaned/Capped Copper Med Air | H59: 7th floor | I59: Med Gas | J59: Above | K59: copfcb | L59: Clean & Bag Cop Ftgs Elkhart | M59: 109 | N59: Elkhart Prod | O59: 111 | P59: 6/20/2024 10:51:44 AM | Q59: 9 | R59: Wrot Copper C & B Tee | S59: <None> | T59: <None> | U59: 6.619999886 | V59: 0.05799999833 | W59: 0.8840000033 | X59: 0 | Y59: 2 | Z59: <None> | AC59: 4 | AD59: 256 | AE59: -256 | AF59: -256 | AG59: 0 | AI59: 2993.75 | AJ59: V | AK59: 0.25 | AL59: 3.25999999 | AM59: 29.34000015 | AN59: 1 | AO59: 36864 | AP59: 36 | AQ59: copfsf | AR59: Copper Ftgs Silfos | AS59: 41 | AT59: Plumbing#0012.pdf | AY59: 2993.75 | AZ59: MEDAIR | BB59: 1 | BC59: FC129250FA70100FF00FF00 | BD59: 41 | BE59: 37 | BF59: 4007
A60: 99 | B60: -1 | C60: 0 | D60: 4 | E60: 3 | F60: MEDAIR | G60: Cleaned/Capped Copper Med Air | H60: 7th floor | I60: Med Gas | J60: Above | K60: copfcb | L60: Clean & Bag Cop Ftgs Elkhart | M60: 109 | N60: Elkhart Prod | O60: 100 | P60: 6/20/2024 10:51:44 AM | Q60: 6 | R60: Wrot Copper C & B Coupling | S60: <None> | T60: <None> | U60: 0.150000006 | V60: 0 | W60: 0 | X60: 0 | Y60: 2 | Z60: <None> | AC60: 1¼ | AD60: 80 | AE60: -80 | AF60: 0 | AG60: 0 | AI60: 61.15 | AJ60: V | AK60: 0.25 | AL60: 0.6999999881 | AM60: 4.199999809 | AN60: 1 | AO60: 37888 | AP60: 37 | AQ60: copfsf | AR60: Copper Ftgs Silfos | AS60: 41 | AT60: Plumbing#0011.pdf | AY60: 61.15 | AZ60: MEDAIR | BB60: 1 | BC60: FC329250FAD0050FFB0 | BD60: 41 | BE60: 37 | BF60: 4013
A61: 100 | B61: -1 | C61: 0 | D61: 4 | E61: 3 | F61: MEDAIR | G61: Cleaned/Capped Copper Med Air | H61: 7th floor | I61: Med Gas | J61: Above | K61: copfcb | L61: Clean & Bag Cop Ftgs Elkhart | M61: 109 | N61: Elkhart Prod | O61: 100 | P61: 6/20/2024 10:51:44 AM | Q61: 6 | R61: Wrot Copper C & B Coupling | S61: <None> | T61: <None> | U61: 0.150000006 | V61: 0 | W61: 0 | X61: 0 | Y61: 2 | Z61: <None> | AC61: 1¼ | AD61: 80 | AE61: -80 | AF61: 0 | AG61: 0 | AI61: 61.15 | AJ61: V | AK61: 0.25 | AL61: 0.6999999881 | AM61: 4.199999809 | AN61: 1 | AO61: 37888 | AP61: 37 | AQ61: copfsf | AR61: Copper Ftgs Silfos | AS61: 41 | AT61: Plumbing#0012.pdf | AY61: 61.15 | AZ61: MEDAIR | BB61: 1 | BC61: FC329250FAD0050FFB0 | BD61: 41 | BE61: 37 | BF61: 4013
A62: 101 | B62: -1 | C62: 0 | D62: 4 | E62: 3 | F62: MEDAIR | G62: Cleaned/Capped Copper Med Air | H62: 7th floor | I62: Med Gas | J62: Above | K62: copfcb | L62: Clean & Bag Cop Ftgs Elkhart | M62: 109 | N62: Elkhart Prod | O62: 100 | P62: 6/20/2024 10:51:44 AM | Q62: 3 | R62: Wrot Copper C & B Coupling | S62: <None> | T62: <None> | U62: 0.2169999927 | V62: 0 | W62: 0 | X62: 0 | Y62: 2 | Z62: <None> | AC62: 1½ | AD62: 96 | AE62: -96 | AF62: 0 | AG62: 0 | AI62: 82.473 | AJ62: V | AK62: 0.25 | AL62: 0.7400000095 | AM62: 2.220000029 | AN62: 1 | AO62: 38912 | AP62: 38 | AQ62: copfsf | AR62: Copper Ftgs Silfos | AS62: 41 | AT62: Plumbing#0011.pdf | AY62: 82.473 | AZ62: MEDAIR | BB62: 1 | BC62: FC329250FAD0060FFA0 | BD62: 41 | BE62: 37 | BF62: 4013
A63: 102 | B63: -1 | C63: 0 | D63: 4 | E63: 3 | F63: MEDAIR | G63: Cleaned/Capped Copper Med Air | H63: 7th floor | I63: Med Gas | J63: Above | K63: copfcb | L63: Clean & Bag Cop Ftgs Elkhart | M63: 109 | N63: Elkhart Prod | O63: 100 | P63: 6/20/2024 10:51:44 AM | Q63: 3 | R63: Wrot Copper C & B Coupling | S63: <None> | T63: <None> | U63: 0.2169999927 | V63: 0 | W63: 0 | X63: 0 | Y63: 2 | Z63: <None> | AC63: 1½ | AD63: 96 | AE63: -96 | AF63: 0 | AG63: 0 | AI63: 82.473 | AJ63: V | AK63: 0.25 | AL63: 0.7400000095 | AM63: 2.220000029 | AN63: 1 | AO63: 38912 | AP63: 38 | AQ63: copfsf | AR63: Copper Ftgs Silfos | AS63: 41 | AT63: Plumbing#0012.pdf | AY63: 82.473 | AZ63: MEDAIR | BB63: 1 | BC63: FC329250FAD0060FFA0 | BD63: 41 | BE63: 37 | BF63: 4013
A64: 103 | B64: -1 | C64: 0 | D64: 4 | E64: 3 | F64: MEDAIR | G64: Cleaned/Capped Copper Med Air | H64: 7th floor | I64: Med Gas | J64: Above | K64: copfcb | L64: Clean & Bag Cop Ftgs Elkhart | M64: 109 | N64: Elkhart Prod | O64: 100 | P64: 6/20/2024 10:51:44 AM | Q64: 27 | R64: Wrot Copper C & B Coupling | S64: <None> | T64: <None> | U64: 0.4009999931 | V64: 0 | W64: 0 | X64: 0 | Y64: 2 | Z64: <None> | AC64: 2 | AD64: 128 | AE64: -128 | AF64: 0 | AG64: 0 | AI64: 137.638 | AJ64: V | AK64: 0.25 | AL64: 0.8500000238 | AM64: 22.95000076 | AN64: 1 | AO64: 39936 | AP64: 39 | AQ64: copfsf | AR64: Copper Ftgs Silfos | AS64: 41 | AT64: Plumbing#0011.pdf | AY64: 137.638 | AZ64: MEDAIR | BB64: 1 | BC64: FC329250FAD0080FF80 | BD64: 41 | BE64: 37 | BF64: 4013
A65: 104 | B65: -1 | C65: 0 | D65: 4 | E65: 3 | F65: MEDAIR | G65: Cleaned/Capped Copper Med Air | H65: 7th floor | I65: Med Gas | J65: Above | K65: copfcb | L65: Clean & Bag Cop Ftgs Elkhart | M65: 109 | N65: Elkhart Prod | O65: 100 | P65: 6/20/2024 10:51:44 AM | Q65: 27 | R65: Wrot Copper C & B Coupling | S65: <None> | T65: <None> | U65: 0.4009999931 | V65: 0 | W65: 0 | X65: 0 | Y65: 2 | Z65: <None> | AC65: 2 | AD65: 128 | AE65: -128 | AF65: 0 | AG65: 0 | AI65: 137.638 | AJ65: V | AK65: 0.25 | AL65: 0.8500000238 | AM65: 22.95000076 | AN65: 1 | AO65: 39936 | AP65: 39 | AQ65: copfsf | AR65: Copper Ftgs Silfos | AS65: 41 | AT65: Plumbing#0012.pdf | AY65: 137.638 | AZ65: MEDAIR | BB65: 1 | BC65: FC329250FAD0080FF80 | BD65: 41 | BE65: 37 | BF65: 4013
A66: 105 | B66: -1 | C66: 0 | D66: 4 | E66: 3 | F66: MEDAIR | G66: Cleaned/Capped Copper Med Air | H66: 7th floor | I66: Med Gas | J66: Above | K66: copfcb | L66: Clean & Bag Cop Ftgs Elkhart | M66: 109 | N66: Elkhart Prod | O66: 100 | P66: 6/20/2024 10:51:44 AM | Q66: 3 | R66: Wrot Copper C & B Coupling | S66: <None> | T66: <None> | U66: 0.6240000129 | V66: 0 | W66: 0 | X66: 0 | Y66: 2 | Z66: <None> | AC66: 2½ | AD66: 160 | AE66: -160 | AF66: 0 | AG66: 0 | AI66: 266.501 | AJ66: V | AK66: 0.25 | AL66: 1.360000014 | AM66: 4.079999924 | AN66: 1 | AO66: 40960 | AP66: 40 | AQ66: copfsf | AR66: Copper Ftgs Silfos | AS66: 41 | AT66: Plumbing#0011.pdf | AY66: 266.501 | AZ66: MEDAIR | BB66: 1 | BC66: FC329250FAD00A0FF60 | BD66: 41 | BE66: 37 | BF66: 4013
A67: 106 | B67: -1 | C67: 0 | D67: 4 | E67: 3 | F67: MEDAIR | G67: Cleaned/Capped Copper Med Air | H67: 7th floor | I67: Med Gas | J67: Above | K67: copfcb | L67: Clean & Bag Cop Ftgs Elkhart | M67: 109 | N67: Elkhart Prod | O67: 100 | P67: 6/20/2024 10:51:44 AM | Q67: 3 | R67: Wrot Copper C & B Coupling | S67: <None> | T67: <None> | U67: 0.6240000129 | V67: 0 | W67: 0 | X67: 0 | Y67: 2 | Z67: <None> | AC67: 2½ | AD67: 160 | AE67: -160 | AF67: 0 | AG67: 0 | AI67: 266.501 | AJ67: V | AK67: 0.25 | AL67: 1.360000014 | AM67: 4.079999924 | AN67: 1 | AO67: 40960 | AP67: 40 | AQ67: copfsf | AR67: Copper Ftgs Silfos | AS67: 41 | AT67: Plumbing#0012.pdf | AY67: 266.501 | AZ67: MEDAIR | BB67: 1 | BC67: FC329250FAD00A0FF60 | BD67: 41 | BE67: 37 | BF67: 4013
A68: 107 | B68: -1 | C68: 0 | D68: 4 | E68: 3 | F68: MEDAIR | G68: Cleaned/Capped Copper Med Air | H68: 7th floor | I68: Med Gas | J68: Above | K68: copfcb | L68: Clean & Bag Cop Ftgs Elkhart | M68: 109 | N68: Elkhart Prod | O68: 101-R | P68: 6/20/2024 10:51:44 AM | Q68: 9 | R68: Wrot Copper C & B Concentric Red | S68: <None> | T68: <None> | U68: 0.3819999993 | V68: 0.002000000095 | W68: 0.06199999899 | X68: 0 | Y68: 2 | Z68: <None> | AC68: 2x1 | AD68: 128 | AE68: 64 | AF68: 0 | AG68: 0 | AI68: 219.238 | AJ68: V | AK68: 0.25 | AL68: 0.7400000095 | AM68: 6.659999847 | AN68: 1 | AO68: 41984 | AP68: 41 | AQ68: copfsf | AR68: Copper Ftgs Silfos | AS68: 41 | AT68: Plumbing#0011.pdf | AY68: 219.238 | AZ68: MEDAIR | BB68: 1 | BC68: FC329250FCB00800040 | BD68: 41 | BE68: 37 | BF68: 4043
A69: 108 | B69: -1 | C69: 0 | D69: 4 | E69: 3 | F69: MEDAIR | G69: Cleaned/Capped Copper Med Air | H69: 7th floor | I69: Med Gas | J69: Above | K69: copfcb | L69: Clean & Bag Cop Ftgs Elkhart | M69: 109 | N69: Elkhart Prod | O69: 101-R | P69: 6/20/2024 10:51:44 AM | Q69: 9 | R69: Wrot Copper C & B Concentric Red | S69: <None> | T69: <None> | U69: 0.3819999993 | V69: 0.002000000095 | W69: 0.06199999899 | X69: 0 | Y69: 2 | Z69: <None> | AC69: 2x1 | AD69: 128 | AE69: 64 | AF69: 0 | AG69: 0 | AI69: 219.238 | AJ69: V | AK69: 0.25 | AL69: 0.7400000095 | AM69: 6.659999847 | AN69: 1 | AO69: 41984 | AP69: 41 | AQ69: copfsf | AR69: Copper Ftgs Silfos | AS69: 41 | AT69: Plumbing#0012.pdf | AY69: 219.238 | AZ69: MEDAIR | BB69: 1 | BC69: FC329250FCB00800040 | BD69: 41 | BE69: 37 | BF69: 4043
A70: 109 | B70: -1 | C70: 0 | D70: 4 | E70: 3 | F70: MEDAIR | G70: Cleaned/Capped Copper Med Air | H70: 7th floor | I70: Med Gas | J70: Above | K70: copfcb | L70: Clean & Bag Cop Ftgs Elkhart | M70: 109 | N70: Elkhart Prod | O70: 101-R | P70: 6/20/2024 10:51:44 AM | Q70: 3 | R70: Wrot Copper C & B Concentric Red | S70: <None> | T70: <None> | U70: 0.6119999886 | V70: 0.00400000019 | W70: 0.09000000358 | X70: 0 | Y70: 2 | Z70: <None> | AC70: 2½ x2 | AD70: 160 | AE70: 128 | AF70: 0 | AG70: 0 | AI70: 418.775 | AJ70: V | AK70: 0.25 | AL70: 1.100000024 | AM70: 3.300000191 | AN70: 1 | AO70: 43008 | AP70: 42 | AQ70: copfsf | AR70: Copper Ftgs Silfos | AS70: 41 | AT70: Plumbing#0011.pdf | AY70: 418.775 | AZ70: MEDAIR | BB70: 1 | BC70: FC329250FCB00A00080 | BD70: 41 | BE70: 37 | BF70: 4043
A71: 110 | B71: -1 | C71: 0 | D71: 4 | E71: 3 | F71: MEDAIR | G71: Cleaned/Capped Copper Med Air | H71: 7th floor | I71: Med Gas | J71: Above | K71: copfcb | L71: Clean & Bag Cop Ftgs Elkhart | M71: 109 | N71: Elkhart Prod | O71: 101-R | P71: 6/20/2024 10:51:44 AM | Q71: 3 | R71: Wrot Copper C & B Concentric Red | S71: <None> | T71: <None> | U71: 0.6119999886 | V71: 0.00400000019 | W71: 0.09000000358 | X71: 0 | Y71: 2 | Z71: <None> | AC71: 2½ x2 | AD71: 160 | AE71: 128 | AF71: 0 | AG71: 0 | AI71: 418.775 | AJ71: V | AK71: 0.25 | AL71: 1.100000024 | AM71: 3.300000191 | AN71: 1 | AO71: 43008 | AP71: 42 | AQ71: copfsf | AR71: Copper Ftgs Silfos | AS71: 41 | AT71: Plumbing#0012.pdf | AY71: 418.775 | AZ71: MEDAIR | BB71: 1 | BC71: FC329250FCB00A00080 | BD71: 41 | BE71: 37 | BF71: 4043
A72: 111 | B72: -1 | C72: 0 | D72: 4 | E72: 3 | F72: MEDAIR | G72: Cleaned/Capped Copper Med Air | H72: 7th floor | I72: Med Gas | J72: Above | K72: copfcb | L72: Clean & Bag Cop Ftgs Elkhart | M72: 109 | N72: Elkhart Prod | O72: 101-R | P72: 6/20/2024 10:51:44 AM | Q72: 6 | R72: Wrot Copper C & B Concentric Red | S72: <None> | T72: <None> | U72: 2.019999981 | V72: 0.01499999966 | W72: 0.2210000008 | X72: 0 | Y72: 2 | Z72: <None> | AC72: 4x2½ | AD72: 256 | AE72: 160 | AF72: 0 | AG72: 0 | AI72: 1171.498 | AJ72: V | AK72: 0.25 | AL72: 1.769999981 | AM72: 10.61999989 | AN72: 1 | AO72: 44032 | AP72: 43 | AQ72: copfsf | AR72: Copper Ftgs Silfos | AS72: 41 | AT72: Plumbing#0011.pdf | AY72: 1171.498 | AZ72: MEDAIR | BB72: 1 | BC72: FC329250FCB010000A0 | BD72: 41 | BE72: 37 | BF72: 4043
A73: 112 | B73: -1 | C73: 0 | D73: 4 | E73: 3 | F73: MEDAIR | G73: Cleaned/Capped Copper Med Air | H73: 7th floor | I73: Med Gas | J73: Above | K73: copfcb | L73: Clean & Bag Cop Ftgs Elkhart | M73: 109 | N73: Elkhart Prod | O73: 101-R | P73: 6/20/2024 10:51:44 AM | Q73: 6 | R73: Wrot Copper C & B Concentric Red | S73: <None> | T73: <None> | U73: 2.019999981 | V73: 0.01499999966 | W73: 0.2210000008 | X73: 0 | Y73: 2 | Z73: <None> | AC73: 4x2½ | AD73: 256 | AE73: 160 | AF73: 0 | AG73: 0 | AI73: 1171.498 | AJ73: V | AK73: 0.25 | AL73: 1.769999981 | AM73: 10.61999989 | AN73: 1 | AO73: 44032 | AP73: 43 | AQ73: copfsf | AR73: Copper Ftgs Silfos | AS73: 41 | AT73: Plumbing#0012.pdf | AY73: 1171.498 | AZ73: MEDAIR | BB73: 1 | BC73: FC329250FCB010000A0 | BD73: 41 | BE73: 37 | BF73: 4043
A74: 113 | B74: -1 | C74: 0 | D74: 4 | E74: 3 | F74: MEDAIR | G74: Cleaned/Capped Copper Med Air | H74: 7th floor | I74: Med Gas | J74: Above | K74: copfcb | L74: Clean & Bag Cop Ftgs Elkhart | M74: 109 | N74: Elkhart Prod | O74: 111-R | P74: 6/20/2024 10:51:44 AM | Q74: 3 | R74: Wrot Copper C & B Reducing Tee | S74: <None> | T74: <None> | U74: 1.080000043 | V74: 0.007000000216 | W74: 0.2460000068 | X74: 0 | Y74: 2 | Z74: <None> | AC74: 2x1½ | AD74: 128 | AE74: -128 | AF74: 96 | AG74: 0 | AI74: 376.45 | AJ74: V | AK74: 0.25 | AL74: 1.200000048 | AM74: 3.600000143 | AN74: 1 | AO74: 45056 | AP74: 44 | AQ74: copfsf | AR74: Copper Ftgs Silfos | AS74: 41 | AT74: Plumbing#0011.pdf | AY74: 376.45 | AZ74: MEDAIR | BB74: 1 | BC74: FC12925100F0080FF800060 | BD74: 41 | BE74: 37 | BF74: 4111
A75: 114 | B75: -1 | C75: 0 | D75: 4 | E75: 3 | F75: MEDAIR | G75: Cleaned/Capped Copper Med Air | H75: 7th floor | I75: Med Gas | J75: Above | K75: copfcb | L75: Clean & Bag Cop Ftgs Elkhart | M75: 109 | N75: Elkhart Prod | O75: 111-R | P75: 6/20/2024 10:51:44 AM | Q75: 3 | R75: Wrot Copper C & B Reducing Tee | S75: <None> | T75: <None> | U75: 1.080000043 | V75: 0.007000000216 | W75: 0.2460000068 | X75: 0 | Y75: 2 | Z75: <None> | AC75: 2x1½ | AD75: 128 | AE75: -128 | AF75: 96 | AG75: 0 | AI75: 376.45 | AJ75: V | AK75: 0.25 | AL75: 1.200000048 | AM75: 3.600000143 | AN75: 1 | AO75: 45056 | AP75: 44 | AQ75: copfsf | AR75: Copper Ftgs Silfos | AS75: 41 | AT75: Plumbing#0012.pdf | AY75: 376.45 | AZ75: MEDAIR | BB75: 1 | BC75: FC12925100F0080FF800060 | BD75: 41 | BE75: 37 | BF75: 4111
A76: 115 | B76: -1 | C76: 0 | D76: 4 | E76: 3 | F76: MEDAIR | G76: Cleaned/Capped Copper Med Air | H76: 7th floor | I76: Med Gas | J76: Above | K76: copfcb | L76: Clean & Bag Cop Ftgs Elkhart | M76: 109 | N76: Elkhart Prod | O76: 111-R | P76: 6/20/2024 10:51:44 AM | Q76: 3 | R76: Wrot Copper C & B Reducing Tee | S76: <None> | T76: <None> | U76: 1.659999967 | V76: 0.01400000043 | W76: 0.3610000014 | X76: 0 | Y76: 2 | Z76: <None> | AC76: 2½ x2 | AD76: 160 | AE76: -160 | AF76: 128 | AG76: 0 | AI76: 1037.5 | AJ76: V | AK76: 0.25 | AL76: 1.769999981 | AM76: 5.309999943 | AN76: 1 | AO76: 46080 | AP76: 45 | AQ76: copfsf | AR76: Copper Ftgs Silfos | AS76: 41 | AT76: Plumbing#0011.pdf | AY76: 1037.5 | AZ76: MEDAIR | BB76: 1 | BC76: FC12925100F00A0FF600080 | BD76: 41 | BE76: 37 | BF76: 4111
A77: 116 | B77: -1 | C77: 0 | D77: 4 | E77: 3 | F77: MEDAIR | G77: Cleaned/Capped Copper Med Air | H77: 7th floor | I77: Med Gas | J77: Above | K77: copfcb | L77: Clean & Bag Cop Ftgs Elkhart | M77: 109 | N77: Elkhart Prod | O77: 111-R | P77: 6/20/2024 10:51:44 AM | Q77: 3 | R77: Wrot Copper C & B Reducing Tee | S77: <None> | T77: <None> | U77: 1.659999967 | V77: 0.01400000043 | W77: 0.3610000014 | X77: 0 | Y77: 2 | Z77: <None> | AC77: 2½ x2 | AD77: 160 | AE77: -160 | AF77: 128 | AG77: 0 | AI77: 1037.5 | AJ77: V | AK77: 0.25 | AL77: 1.769999981 | AM77: 5.309999943 | AN77: 1 | AO77: 46080 | AP77: 45 | AQ77: copfsf | AR77: Copper Ftgs Silfos | AS77: 41 | AT77: Plumbing#0012.pdf | AY77: 1037.5 | AZ77: MEDAIR | BB77: 1 | BC77: FC12925100F00A0FF600080 | BD77: 41 | BE77: 37 | BF77: 4111
A78: 117 | B78: -1 | C78: 0 | D78: 4 | E78: 3 | F78: MEDAIR | G78: Cleaned/Capped Copper Med Air | H78: 7th floor | I78: Med Gas | J78: Above | K78: copfcb | L78: Clean & Bag Cop Ftgs Elkhart | M78: 109 | N78: Elkhart Prod | O78: 111-R | P78: 6/20/2024 10:51:44 AM | Q78: 3 | R78: Wrot Copper C & B Reducing Tee | S78: <None> | T78: <None> | U78: 0.6399999857 | V78: 0.003000000026 | W78: 0.1430000067 | X78: 0 | Y78: 2 | Z78: <None> | AC78: 1½ x1¼ x1¼ | AD78: 96 | AE78: 80 | AF78: 80 | AG78: 0 | AI78: 472.138 | AJ78: V | AK78: 0.25 | AL78: 1.049999952 | AM78: 3.149999857 | AN78: 1 | AO78: 47104 | AP78: 46 | AQ78: copfsf | AR78: Copper Ftgs Silfos | AS78: 41 | AT78: Plumbing#0011.pdf | AY78: 472.138 | AZ78: MEDAIR | BB78: 1 | BC78: FC129251013006000500050 | BD78: 41 | BE78: 37 | BF78: 4115
A79: 118 | B79: -1 | C79: 0 | D79: 4 | E79: 3 | F79: MEDAIR | G79: Cleaned/Capped Copper Med Air | H79: 7th floor | I79: Med Gas | J79: Above | K79: copfcb | L79: Clean & Bag Cop Ftgs Elkhart | M79: 109 | N79: Elkhart Prod | O79: 111-R | P79: 6/20/2024 10:51:44 AM | Q79: 3 | R79: Wrot Copper C & B Reducing Tee | S79: <None> | T79: <None> | U79: 0.6399999857 | V79: 0.003000000026 | W79: 0.1430000067 | X79: 0 | Y79: 2 | Z79: <None> | AC79: 1½ x1¼ x1¼ | AD79: 96 | AE79: 80 | AF79: 80 | AG79: 0 | AI79: 472.138 | AJ79: V | AK79: 0.25 | AL79: 1.049999952 | AM79: 3.149999857 | AN79: 1 | AO79: 47104 | AP79: 46 | AQ79: copfsf | AR79: Copper Ftgs Silfos | AS79: 41 | AT79: Plumbing#0012.pdf | AY79: 472.138 | AZ79: MEDAIR | BB79: 1 | BC79: FC129251013006000500050 | BD79: 41 | BE79: 37 | BF79: 4115
A80: 119 | B80: -1 | C80: 0 | D80: 4 | E80: 3 | F80: MEDAIR | G80: Cleaned/Capped Copper Med Air | H80: 7th floor | I80: Med Gas | J80: Above | K80: copfcb | L80: Clean & Bag Cop Ftgs Elkhart | M80: 109 | N80: Elkhart Prod | O80: 111-R | P80: 6/20/2024 10:51:44 AM | Q80: 3 | R80: Wrot Copper C & B Reducing Tee | S80: <None> | T80: <None> | U80: 1.289999962 | V80: 0.007000000216 | W80: 0.2460000068 | X80: 0 | Y80: 2 | Z80: <None> | AC80: 2x1x2 | AD80: 128 | AE80: 64 | AF80: 128 | AG80: 0 | AI80: 629.313 | AJ80: V | AK80: 0.25 | AL80: 1.149999976 | AM80: 3.449999809 | AN80: 1 | AO80: 48128 | AP80: 47 | AQ80: copfsf | AR80: Copper Ftgs Silfos | AS80: 41 | AT80: Plumbing#0011.pdf | AY80: 629.313 | AZ80: MEDAIR | BB80: 1 | BC80: FC129251013008000400080 | BD80: 41 | BE80: 37 | BF80: 4115
A81: 120 | B81: -1 | C81: 0 | D81: 4 | E81: 3 | F81: MEDAIR | G81: Cleaned/Capped Copper Med Air | H81: 7th floor | I81: Med Gas | J81: Above | K81: copfcb | L81: Clean & Bag Cop Ftgs Elkhart | M81: 109 | N81: Elkhart Prod | O81: 111-R | P81: 6/20/2024 10:51:44 AM | Q81: 3 | R81: Wrot Copper C & B Reducing Tee | S81: <None> | T81: <None> | U81: 1.289999962 | V81: 0.007000000216 | W81: 0.2460000068 | X81: 0 | Y81: 2 | Z81: <None> | AC81: 2x1x2 | AD81: 128 | AE81: 64 | AF81: 128 | AG81: 0 | AI81: 629.313 | AJ81: V | AK81: 0.25 | AL81: 1.149999976 | AM81: 3.449999809 | AN81: 1 | AO81: 48128 | AP81: 47 | AQ81: copfsf | AR81: Copper Ftgs Silfos | AS81: 41 | AT81: Plumbing#0012.pdf | AY81: 629.313 | AZ81: MEDAIR | BB81: 1 | BC81: FC129251013008000400080 | BD81: 41 | BE81: 37 | BF81: 4115
A82: 121 | B82: -1 | C82: 0 | D82: 4 | E82: 3 | F82: MEDAIR | G82: Cleaned/Capped Copper Med Air | H82: 7th floor | I82: Med Gas | J82: Above | K82: copfcb | L82: Clean & Bag Cop Ftgs Elkhart | M82: 109 | N82: Elkhart Prod | O82: 111-R | P82: 6/20/2024 10:51:44 AM | Q82: 3 | R82: Wrot Copper C & B Reducing Tee | S82: <None> | T82: <None> | U82: 1.629999995 | V82: 0.01400000043 | W82: 0.3610000014 | X82: 0 | Y82: 2 | Z82: <None> | AC82: 2½ x2x2 | AD82: 160 | AE82: 128 | AF82: 128 | AG82: 0 | AI82: 1300 | AJ82: V | AK82: 0.25 | AL82: 1.519999981 | AM82: 4.559999943 | AN82: 1 | AO82: 49152 | AP82: 48 | AQ82: copfsf | AR82: Copper Ftgs Silfos | AS82: 41 | AT82: Plumbing#0011.pdf | AY82: 1300 | AZ82: MEDAIR | BB82: 1 | BC82: FC12925101300A000800080 | BD82: 41 | BE82: 37 | BF82: 4115
A83: 122 | B83: -1 | C83: 0 | D83: 4 | E83: 3 | F83: MEDAIR | G83: Cleaned/Capped Copper Med Air | H83: 7th floor | I83: Med Gas | J83: Above | K83: copfcb | L83: Clean & Bag Cop Ftgs Elkhart | M83: 109 | N83: Elkhart Prod | O83: 111-R | P83: 6/20/2024 10:51:44 AM | Q83: 3 | R83: Wrot Copper C & B Reducing Tee | S83: <None> | T83: <None> | U83: 1.629999995 | V83: 0.01400000043 | W83: 0.3610000014 | X83: 0 | Y83: 2 | Z83: <None> | AC83: 2½ x2x2 | AD83: 160 | AE83: 128 | AF83: 128 | AG83: 0 | AI83: 1300 | AJ83: V | AK83: 0.25 | AL83: 1.519999981 | AM83: 4.559999943 | AN83: 1 | AO83: 49152 | AP83: 48 | AQ83: copfsf | AR83: Copper Ftgs Silfos | AS83: 41 | AT83: Plumbing#0012.pdf | AY83: 1300 | AZ83: MEDAIR | BB83: 1 | BC83: FC12925101300A000800080 | BD83: 41 | BE83: 37 | BF83: 4115
A84: 10 | B84: -1 | C84: 0 | D84: 2 | E84: 3 | F84: DOMWATER | G84: Copper Domestic Water | H84: All 7th Floor | I84: Water | J84: Above | K84: copfit | L84: Copper Fittings Elkhart | M84: 11 | N84: Elkhart Prod | O84: 107-C | P84: 6/20/2024 10:51:44 AM | Q84: 1200 | R84: Wrot Copper 90 Ell | S84: <None> | T84: <None> | U84: 0.03999999911 | V84: 0 | W84: 0.04699999839 | X84: 0 | Y84: 2 | Z84: <None> | AC84: ½ | AD84: 32 | AE84: -32 | AF84: 0 | AG84: 0 | AI84: 9.63 | AJ84: V | AK84: 0.2 | AL84: 0.400000006 | AM84: 480 | AN84: 1 | AO84: 11264 | AP84: 11 | AQ84: copf95 | AR84: Copper Ftgs 95/5 Solder | AS84: 39 | AT84: <None> | AY84: 9.63 | AZ84: DOMWATER | BB84: 1 | BC84: FC329210FA10020FFE0 | BD84: 41 | BE84: 33 | BF84: 4001
A85: 11 | B85: -1 | C85: 0 | D85: 2 | E85: 3 | F85: DOMWATER | G85: Copper Domestic Water | H85: All 7th Floor | I85: Water | J85: Above | K85: copfit | L85: Copper Fittings Elkhart | M85: 11 | N85: Elkhart Prod | O85: 107-C | P85: 6/20/2024 10:51:44 AM | Q85: 1500 | R85: Wrot Copper 90 Ell | S85: <None> | T85: <None> | U85: 0.1000000015 | V85: 0.001000000047 | W85: 0.0719999969 | X85: 0 | Y85: 2 | Z85: <None> | AC85: ¾ | AD85: 48 | AE85: -48 | AF85: 0 | AG85: 0 | AI85: 21.22 | AJ85: V | AK85: 0.2 | AL85: 0.5299999714 | AM85: 794.999939 | AN85: 1 | AO85: 12288 | AP85: 12 | AQ85: copf95 | AR85: Copper Ftgs 95/5 Solder | AS85: 39 | AT85: <None> | AY85: 21.22 | AZ85: DOMWATER | BB85: 1 | BC85: FC329210FA10030FFD0 | BD85: 41 | BE85: 33 | BF85: 4001
A86: 39 | B86: -1 | C86: 0 | D86: 3 | E86: 1 | F86: HWSHWR4 | G86: Copper/Welded Heating Water | H86: 7th floor | I86: Heating Water | J86: Above | K86: copfit | L86: Copper Fittings Elkhart | M86: 11 | N86: Elkhart Prod | O86: 107-C | P86: 6/20/2024 10:51:44 AM | Q86: 250 | R86: Wrot Copper 90 Ell | S86: <None> | T86: <None> | U86: 0.1000000015 | V86: 0.001000000047 | W86: 0.0719999969 | X86: 0 | Y86: 2 | Z86: <None> | AC86: ¾ | AD86: 48 | AE86: -48 | AF86: 0 | AG86: 0 | AI86: 21.22 | AJ86: V | AK86: 0.2 | AL86: 0.5299999714 | AM86: 132.5 | AN86: 1 | AO86: 12288 | AP86: 12 | AQ86: copf95 | AR86: Copper Ftgs 95/5 Solder | AS86: 39 | AT86: <None> | AY86: 21.22 | AZ86: HWSHWR4 | BB86: 1 | BC86: FC329210FA10030FFD0 | BD86: 41 | BE86: 33 | BF86: 4001
A87: 12 | B87: -1 | C87: 0 | D87: 2 | E87: 3 | F87: DOMWATER | G87: Copper Domestic Water | H87: All 7th Floor | I87: Water | J87: Above | K87: copfit | L87: Copper Fittings Elkhart | M87: 11 | N87: Elkhart Prod | O87: 107-C | P87: 6/20/2024 10:51:44 AM | Q87: 600 | R87: Wrot Copper 90 Ell | S87: <None> | T87: <None> | U87: 0.1800000072 | V87: 0.001000000047 | W87: 0.112999998 | X87: 0 | Y87: 2 | Z87: <None> | AC87: 1 | AD87: 64 | AE87: -64 | AF87: 0 | AG87: 0 | AI87: 52.03 | AJ87: V | AK87: 0.2 | AL87: 0.6299999952 | AM87: 378 | AN87: 1 | AO87: 13312 | AP87: 13 | AQ87: copf95 | AR87: Copper Ftgs 95/5 Solder | AS87: 39 | AT87: <None> | AY87: 52.03 | AZ87: DOMWATER | BB87: 1 | BC87: FC329210FA10040FFC0 | BD87: 41 | BE87: 33 | BF87: 4001
A88: 13 | B88: -1 | C88: 0 | D88: 2 | E88: 3 | F88: DOMWATER | G88: Copper Domestic Water | H88: All 7th Floor | I88: Water | J88: Above | K88: copfit | L88: Copper Fittings Elkhart | M88: 11 | N88: Elkhart Prod | O88: 107-C | P88: 6/20/2024 10:51:44 AM | Q88: 150 | R88: Wrot Copper 90 Ell | S88: <None> | T88: <None> | U88: 0.400000006 | V88: 0.004999999888 | W88: 0.2150000036 | X88: 0 | Y88: 2 | Z88: <None> | AC88: 1½ | AD88: 96 | AE88: -96 | AF88: 0 | AG88: 0 | AI88: 120.23 | AJ88: V | AK88: 0.2 | AL88: 0.7400000095 | AM88: 111 | AN88: 1 | AO88: 14336 | AP88: 14 | AQ88: copf95 | AR88: Copper Ftgs 95/5 Solder | AS88: 39 | AT88: <None> | AY88: 120.23 | AZ88: DOMWATER | BB88: 1 | BC88: FC329210FA10060FFA0 | BD88: 41 | BE88: 33 | BF88: 4001
A89: 14 | B89: -1 | C89: 0 | D89: 2 | E89: 3 | F89: DOMWATER | G89: Copper Domestic Water | H89: All 7th Floor | I89: Water | J89: Above | K89: copfit | L89: Copper Fittings Elkhart | M89: 11 | N89: Elkhart Prod | O89: 107-C | P89: 6/20/2024 10:51:44 AM | Q89: 150 | R89: Wrot Copper 90 Ell | S89: <None> | T89: <None> | U89: 0.75 | V89: 0.01099999994 | W89: 0.3689999878 | X89: 0 | Y89: 2 | Z89: <None> | AC89: 2 | AD89: 128 | AE89: -128 | AF89: 0 | AG89: 0 | AI89: 219.04 | AJ89: V | AK89: 0.2 | AL89: 0.8500000238 | AM89: 127.5 | AN89: 1 | AO89: 15360 | AP89: 15 | AQ89: copf95 | AR89: Copper Ftgs 95/5 Solder | AS89: 39 | AT89: <None> | AY89: 219.04 | AZ89: DOMWATER | BB89: 1 | BC89: FC329210FA10080FF80 | BD89: 41 | BE89: 33 | BF89: 4001
A90: 15 | B90: -1 | C90: 0 | D90: 2 | E90: 3 | F90: DOMWATER | G90: Copper Domestic Water | H90: All 7th Floor | I90: Water | J90: Above | K90: copfit | L90: Copper Fittings Elkhart | M90: 11 | N90: Elkhart Prod | O90: 107-C | P90: 6/20/2024 10:51:44 AM | Q90: 150 | R90: Wrot Copper 90 Ell | S90: <None> | T90: <None> | U90: 1.179999948 | V90: 0.02099999972 | W90: 0.5410000086 | X90: 0 | Y90: 2 | Z90: <None> | AC90: 2½ | AD90: 160 | AE90: -160 | AF90: 0 | AG90: 0 | AI90: 399.28 | AJ90: V | AK90: 0.2 | AL90: 1.360000014 | AM90: 204 | AN90: 1 | AO90: 16384 | AP90: 16 | AQ90: copf95 | AR90: Copper Ftgs 95/5 Solder | AS90: 39 | AT90: <None> | AY90: 399.28 | AZ90: DOMWATER | BB90: 1 | BC90: FC329210FA100A0FF60 | BD90: 41 | BE90: 33 | BF90: 4001
A91: 16 | B91: -1 | C91: 0 | D91: 2 | E91: 3 | F91: DOMWATER | G91: Copper Domestic Water | H91: All 7th Floor | I91: Water | J91: Above | K91: copfit | L91: Copper Fittings Elkhart | M91: 11 | N91: Elkhart Prod | O91: 111 | P91: 6/20/2024 10:51:44 AM | Q91: 75 | R91: Wrot Copper Tee | S91: <None> | T91: <None> | U91: 0.05000000075 | V91: 0 | W91: 0.03099999949 | X91: 0 | Y91: 2 | Z91: <None> | AC91: ½ | AD91: 32 | AE91: -32 | AF91: -32 | AG91: 0 | AI91: 16.17 | AJ91: V | AK91: 0.2 | AL91: 0.5699999928 | AM91: 42.75 | AN91: 1 | AO91: 17408 | AP91: 17 | AQ91: copf95 | AR91: Copper Ftgs 95/5 Solder | AS91: 39 | AT91: <None> | AY91: 16.17 | AZ91: DOMWATER | BB91: 1 | BC91: FC129210FA70020FFE0FFE0 | BD91: 41 | BE91: 33 | BF91: 4007
A92: 40 | B92: -1 | C92: 0 | D92: 3 | E92: 1 | F92: HWSHWR4 | G92: Copper/Welded Heating Water | H92: 7th floor | I92: Heating Water | J92: Above | K92: copfit | L92: Copper Fittings Elkhart | M92: 11 | N92: Elkhart Prod | O92: 100 | P92: 6/20/2024 10:51:44 AM | Q92: 74 | R92: Wrot Copper Coupling | S92: <None> | T92: <None> | U92: 0.4009999931 | V92: 0 | W92: 0 | X92: 0 | Y92: 2 | Z92: <None> | AC92: 2 | AD92: 128 | AE92: -128 | AF92: 0 | AG92: 0 | AI92: 110.11 | AJ92: V | AK92: 0.2 | AL92: 0.8500000238 | AM92: 62.90000153 | AN92: 1 | AO92: 18432 | AP92: 18 | AQ92: copf95 | AR92: Copper Ftgs 95/5 Solder | AS92: 39 | AT92: Mechanical#0010.pdf | AY92: 110.11 | AZ92: HWSHWR4 | BB92: 1 | BC92: FC329210FAD0080FF80 | BD92: 41 | BE92: 33 | BF92: 4013
A93: 17 | B93: -1 | C93: 0 | D93: 2 | E93: 3 | F93: DOMWATER | G93: Copper Domestic Water | H93: All 7th Floor | I93: Water | J93: Above | K93: copfit | L93: Copper Fittings Elkhart | M93: 11 | N93: Elkhart Prod | O93: 100 | P93: 6/20/2024 10:51:44 AM | Q93: 252 | R93: Wrot Copper Coupling | S93: <None> | T93: <None> | U93: 0.6240000129 | V93: 0 | W93: 0 | X93: 0 | Y93: 2 | Z93: <None> | AC93: 2½ | AD93: 160 | AE93: -160 | AF93: 0 | AG93: 0 | AI93: 213.2 | AJ93: V | AK93: 0.2 | AL93: 1.360000014 | AM93: 342.7200012 | AN93: 1 | AO93: 19456 | AP93: 19 | AQ93: copf95 | AR93: Copper Ftgs 95/5 Solder | AS93: 39 | AT93: Plumbing#0007.pdf | AY93: 213.2 | AZ93: DOMWATER | BB93: 1 | BC93: FC329210FAD00A0FF60 | BD93: 41 | BE93: 33 | BF93: 4013
A94: 41 | B94: -1 | C94: 0 | D94: 3 | E94: 1 | F94: HWSHWR4 | G94: Copper/Welded Heating Water | H94: 7th floor | I94: Heating Water | J94: Above | K94: copfit | L94: Copper Fittings Elkhart | M94: 11 | N94: Elkhart Prod | O94: 104 | P94: 6/20/2024 10:51:44 AM | Q94: 160 | R94: Wrot Copper Male Adapter | S94: <None> | T94: <None> | U94: 0.1159999967 | V94: 0 | W94: 0.006000000052 | X94: 0 | Y94: 2 | Z94: <None> | AC94: ¾ | AD94: 48 | AE94: -48 | AF94: 0 | AG94: 0 | AI94: 33.18 | AJ94: V | AK94: 0.2 | AL94: 0.2899999917 | AM94: 46.39999771 | AN94: 1 | AO94: 20480 | AP94: 20 | AQ94: copf95 | AR94: Copper Ftgs 95/5 Solder | AS94: 39 | AT94: <None> | AY94: 33.18 | AZ94: HWSHWR4 | BB94: 1 | BC94: FC329210FC10030FFD0 | BD94: 41 | BE94: 33 | BF94: 4033
A95: 18 | B95: -1 | C95: 0 | D95: 2 | E95: 3 | F95: DOMWATER | G95: Copper Domestic Water | H95: All 7th Floor | I95: Water | J95: Above | K95: copfit | L95: Copper Fittings Elkhart | M95: 11 | N95: Elkhart Prod | O95: 111-R | P95: 6/20/2024 10:51:44 AM | Q95: 75 | R95: Wrot Copper Reducing Tee | S95: <None> | T95: <None> | U95: 0.2230000049 | V95: 0.001000000047 | W95: 0.07500000298 | X95: 0 | Y95: 2 | Z95: <None> | AC95: 1x¾ | AD95: 64 | AE95: -64 | AF95: 48 | AG95: 0 | AI95: 119.39 | AJ95: V | AK95: 0.2 | AL95: 0.8700000048 | AM95: 65.25 | AN95: 1 | AO95: 21504 | AP95: 21 | AQ95: copf95 | AR95: Copper Ftgs 95/5 Solder | AS95: 39 | AT95: <None> | AY95: 119.39 | AZ95: DOMWATER | BB95: 1 | BC95: FC12921100F0040FFC00030 | BD95: 41 | BE95: 33 | BF95: 4111
A96: 19 | B96: -1 | C96: 0 | D96: 2 | E96: 3 | F96: DOMWATER | G96: Copper Domestic Water | H96: All 7th Floor | I96: Water | J96: Above | K96: copfit | L96: Copper Fittings Elkhart | M96: 11 | N96: Elkhart Prod | O96: 111-R | P96: 6/20/2024 10:51:44 AM | Q96: 75 | R96: Wrot Copper Reducing Tee | S96: <None> | T96: <None> | U96: 0.6100000143 | V96: 0.003000000026 | W96: 0.1430000067 | X96: 0 | Y96: 2 | Z96: <None> | AC96: 1½ x1 | AD96: 96 | AE96: -96 | AF96: 64 | AG96: 0 | AI96: 184.7 | AJ96: V | AK96: 0.2 | AL96: 1.029999971 | AM96: 77.25 | AN96: 1 | AO96: 22528 | AP96: 22 | AQ96: copf95 | AR96: Copper Ftgs 95/5 Solder | AS96: 39 | AT96: <None> | AY96: 184.7 | AZ96: DOMWATER | BB96: 1 | BC96: FC12921100F0060FFA00040 | BD96: 41 | BE96: 33 | BF96: 4111
A97: 20 | B97: -1 | C97: 0 | D97: 2 | E97: 3 | F97: DOMWATER | G97: Copper Domestic Water | H97: All 7th Floor | I97: Water | J97: Above | K97: copfit | L97: Copper Fittings Elkhart | M97: 11 | N97: Elkhart Prod | O97: 111-R | P97: 6/20/2024 10:51:44 AM | Q97: 150 | R97: Wrot Copper Reducing Tee | S97: <None> | T97: <None> | U97: 0.9900000095 | V97: 0.007000000216 | W97: 0.2460000068 | X97: 0 | Y97: 2 | Z97: <None> | AC97: 2x1 | AD97: 128 | AE97: -128 | AF97: 64 | AG97: 0 | AI97: 301.16 | AJ97: V | AK97: 0.2 | AL97: 1.139999986 | AM97: 171 | AN97: 1 | AO97: 23552 | AP97: 23 | AQ97: copf95 | AR97: Copper Ftgs 95/5 Solder | AS97: 39 | AT97: <None> | AY97: 301.16 | AZ97: DOMWATER | BB97: 1 | BC97: FC12921100F0080FF800040 | BD97: 41 | BE97: 33 | BF97: 4111
A98: 21 | B98: -1 | C98: 0 | D98: 2 | E98: 3 | F98: DOMWATER | G98: Copper Domestic Water | H98: All 7th Floor | I98: Water | J98: Above | K98: copfit | L98: Copper Fittings Elkhart | M98: 11 | N98: Elkhart Prod | O98: 111-R | P98: 6/20/2024 10:51:44 AM | Q98: 150 | R98: Wrot Copper Reducing Tee | S98: <None> | T98: <None> | U98: 1.659999967 | V98: 0.01400000043 | W98: 0.3610000014 | X98: 0 | Y98: 2 | Z98: <None> | AC98: 2½ x2 | AD98: 160 | AE98: -160 | AF98: 128 | AG98: 0 | AI98: 830 | AJ98: V | AK98: 0.2 | AL98: 1.769999981 | AM98: 265.5 | AN98: 1 | AO98: 24576 | AP98: 24 | AQ98: copf95 | AR98: Copper Ftgs 95/5 Solder | AS98: 39 | AT98: <None> | AY98: 830 | AZ98: DOMWATER | BB98: 1 | BC98: FC12921100F00A0FF600080 | BD98: 41 | BE98: 33 | BF98: 4111
A99: 125 | B99: -3 | C99: 0 | D99: 4 | E99: 3 | F99: MEDAIR | G99: Cleaned/Capped Copper Med Air | H99: 7th floor | I99: Med Gas | J99: Above | K99: copfit | L99: Copper Fittings Elkhart | M99: 11 | N99: Elkhart Prod | O99: 771 | P99: 6/20/2024 10:51:44 AM | Q99: 9 | R99: 150# Wrot Copper Flange | S99: <None> | T99: <None> | U99: 10.28999996 | V99: 0.007000000216 | W99: 0.7480000257 | X99: 0 | Y99: 4 | Z99: <None> | AC99: 4 | AD99: 256 | AE99: -256 | AF99: 0 | AG99: 0 | AI99: 2120.92 | AJ99: V | AK99: 0.2 | AL99: 1.629999995 | AM99: 14.67000008 | AN99: 1 | AO99: 53248 | AP99: 52 | AQ99: cpfgfl | AR99: Copper Sweat Flanges | AS99: 46 | AT99: Plumbing#0011.pdf | AY99: 2120.92 | AZ99: MEDAIR | BB99: 1 | BC99: LC321320FA10100FF00 | BD99: 33 | BE99: 50 | BF99: 4001
A100: 128 | B100: -3 | C100: 0 | D100: 4 | E100: 3 | F100: MEDAIR | G100: Cleaned/Capped Copper Med Air | H100: 7th floor | I100: Med Gas | J100: Above | K100: copfit | L100: Copper Fittings Elkhart | M100: 11 | N100: Elkhart Prod | O100: 771 | P100: 6/20/2024 10:51:44 AM | Q100: 9 | R100: 150# Wrot Copper Flange | S100: <None> | T100: <None> | U100: 10.28999996 | V100: 0.007000000216 | W100: 0.7480000257 | X100: 0 | Y100: 4 | Z100: <None> | AC100: 4 | AD100: 256 | AE100: -256 | AF100: 0 | AG100: 0 | AI100: 2120.92 | AJ100: V | AK100: 0.2 | AL100: 1.629999995 | AM100: 14.67000008 | AN100: 1 | AO100: 53248 | AP100: 52 | AQ100: cpfgfl | AR100: Copper Sweat Flanges | AS100: 46 | AT100: Plumbing#0012.pdf | AY100: 2120.92 | AZ100: MEDAIR | BB100: 1 | BC100: LC321320FA10100FF00 | BD100: 33 | BE100: 50 | BF100: 4001
A101: 37 | B101: -1 | C101: 0 | D101: 3 | E101: 1 | F101: HWSHWR4 | G101: Copper/Welded Heating Water | H101: 7th floor | I101: Heating Water | J101: Above | K101: coptub | L101: Copper Tube Mueller | M101: 21 | N101: Mueller | P101: 11/5/2024 9:23:31 PM | Q101: 1555.223755 | R101: Type L Hard Copper Tube | S101: <None> | T101: <None> | U101: 1.75 | V101: 0.02199999988 | W101: 0.621999979 | X101: 0 | Y101: 1 | Z101: <None> | AC101: 2 | AD101: 128 | AE101: 0 | AF101: 0 | AG101: 0 | AI101: 46.23 | AJ101: V | AK101: 0.4 | AL101: 0.09000000358 | AM101: 139.9701385 | AN101: 1 | AO101: 1024 | AP101: 1 | AQ101: copp95 | AR101: Copper Pipe 95/5 Solder | AS101: 32 | AT101: Mechanical#0010.pdf | AY101: 46.23 | AZ101: HWSHWR4 | BB101: 1 | BC101: PE726230080 | BD101: 38 | BE101: 35 | BF101: 0
A102: 9 | B102: -1 | C102: 0 | D102: 2 | E102: 3 | F102: DOMWATER | G102: Copper Domestic Water | H102: All 7th Floor | I102: Water | J102: Above | K102: coptub | L102: Copper Tube Mueller | M102: 21 | N102: Mueller | P102: 11/5/2024 9:23:31 PM | Q102: 6203.047852 | R102: Type L Hard Copper Tube | S102: <None> | T102: <None> | U102: 2.480000019 | V102: 0.03400000185 | W102: 0.753000021 | X102: 0 | Y102: 1 | Z102: <None> | AC102: 2½ | AD102: 160 | AE102: 0 | AF102: 0 | AG102: 0 | AI102: 66.69 | AJ102: V | AK102: 0.4 | AL102: 0.1199999973 | AM102: 744.3657227 | AN102: 1 | AO102: 2048 | AP102: 2 | AQ102: copp95 | AR102: Copper Pipe 95/5 Solder | AS102: 32 | AT102: Plumbing#0007.pdf | AY102: 66.69 | AZ102: DOMWATER | BB102: 1 | BC102: PE7262300A0 | BD102: 38 | BE102: 35 | BF102: 0
A103: 63 | B103: -1 | C103: 0 | D103: 4 | E103: 3 | F103: MEDAIR | G103: Cleaned/Capped Copper Med Air | H103: 7th floor | I103: Med Gas | J103: Above | K103: coptub | L103: Copper Tube Mueller | M103: 21 | N103: Mueller | P103: 11/5/2024 9:23:31 PM | Q103: 608.2629395 | R103: Type L Oxygen Copper Tube | S103: <None> | T103: <None> | U103: 0.6549999714 | V103: 0.004999999888 | W103: 0.3600000143 | X103: 0 | Y103: 1 | Z103: <None> | AC103: 1 | AD103: 64 | AE103: 0 | AF103: 0 | AG103: 0 | AI103: 18.74 | AJ103: V | AK103: 0.4 | AL103: 0.0700000003 | AM103: 42.57840729 | AN103: 1 | AO103: 3072 | AP103: 3 | AQ103: coppsf | AR103: Copper Pipe Silfos | AS103: 36 | AT103: Plumbing#0011.pdf | AY103: 18.74 | AZ103: MEDAIR | BB103: 1 | BC103: PE726260040 | BD103: 38 | BE103: 38 | BF103: 0
A104: 64 | B104: -1 | C104: 0 | D104: 4 | E104: 3 | F104: MEDAIR | G104: Cleaned/Capped Copper Med Air | H104: 7th floor | I104: Med Gas | J104: Above | K104: coptub | L104: Copper Tube Mueller | M104: 21 | N104: Mueller | P104: 11/5/2024 9:23:31 PM | Q104: 608.2628784 | R104: Type L Oxygen Copper Tube | S104: <None> | T104: <None> | U104: 0.6549999714 | V104: 0.004999999888 | W104: 0.3600000143 | X104: 0 | Y104: 1 | Z104: <None> | AC104: 1 | AD104: 64 | AE104: 0 | AF104: 0 | AG104: 0 | AI104: 18.74 | AJ104: V | AK104: 0.4 | AL104: 0.0700000003 | AM104: 42.57840347 | AN104: 1 | AO104: 3072 | AP104: 3 | AQ104: coppsf | AR104: Copper Pipe Silfos | AS104: 36 | AT104: Plumbing#0012.pdf | AY104: 18.74 | AZ104: MEDAIR | BB104: 1 | BC104: PE726260040 | BD104: 38 | BE104: 38 | BF104: 0
A105: 65 | B105: -1 | C105: 0 | D105: 4 | E105: 3 | F105: MEDAIR | G105: Cleaned/Capped Copper Med Air | H105: 7th floor | I105: Med Gas | J105: Above | K105: coptub | L105: Copper Tube Mueller | M105: 21 | N105: Mueller | P105: 11/5/2024 9:23:31 PM | Q105: 541.09021 | R105: Type L Oxygen Copper Tube | S105: <None> | T105: <None> | U105: 0.8840000033 | V105: 0.008999999613 | W105: 0.4339999855 | X105: 0 | Y105: 1 | Z105: <None> | AC105: 1¼ | AD105: 80 | AE105: 0 | AF105: 0 | AG105: 0 | AI105: 24.97 | AJ105: V | AK105: 0.4 | AL105: 0.07999999821 | AM105: 43.28721619 | AN105: 1 | AO105: 4096 | AP105: 4 | AQ105: coppsf | AR105: Copper Pipe Silfos | AS105: 36 | AT105: Plumbing#0011.pdf | AY105: 24.97 | AZ105: MEDAIR | BB105: 1 | BC105: PE726260050 | BD105: 38 | BE105: 38 | BF105: 0
A106: 66 | B106: -1 | C106: 0 | D106: 4 | E106: 3 | F106: MEDAIR | G106: Cleaned/Capped Copper Med Air | H106: 7th floor | I106: Med Gas | J106: Above | K106: coptub | L106: Copper Tube Mueller | M106: 21 | N106: Mueller | P106: 11/5/2024 9:23:31 PM | Q106: 541.090332 | R106: Type L Oxygen Copper Tube | S106: <None> | T106: <None> | U106: 0.8840000033 | V106: 0.008999999613 | W106: 0.4339999855 | X106: 0 | Y106: 1 | Z106: <None> | AC106: 1¼ | AD106: 80 | AE106: 0 | AF106: 0 | AG106: 0 | AI106: 24.97 | AJ106: V | AK106: 0.4 | AL106: 0.07999999821 | AM106: 43.28722382 | AN106: 1 | AO106: 4096 | AP106: 4 | AQ106: coppsf | AR106: Copper Pipe Silfos | AS106: 36 | AT106: Plumbing#0012.pdf | AY106: 24.97 | AZ106: MEDAIR | BB106: 1 | BC106: PE726260050 | BD106: 38 | BE106: 38 | BF106: 0
A107: 67 | B107: -1 | C107: 0 | D107: 4 | E107: 3 | F107: MEDAIR | G107: Cleaned/Capped Copper Med Air | H107: 7th floor | I107: Med Gas | J107: Above | K107: coptub | L107: Copper Tube Mueller | M107: 21 | N107: Mueller | P107: 11/5/2024 9:23:31 PM | Q107: 107.3687286 | R107: Type L Oxygen Copper Tube | S107: <None> | T107: <None> | U107: 1.139999986 | V107: 0.0120000001 | W107: 0.4990000129 | X107: 0 | Y107: 1 | Z107: <None> | AC107: 1½ | AD107: 96 | AE107: 0 | AF107: 0 | AG107: 0 | AI107: 32.44 | AJ107: V | AK107: 0.4 | AL107: 0.07999999821 | AM107: 8.58949852 | AN107: 1 | AO107: 5120 | AP107: 5 | AQ107: coppsf | AR107: Copper Pipe Silfos | AS107: 36 | AT107: Plumbing#0011.pdf | AY107: 32.44 | AZ107: MEDAIR | BB107: 1 | BC107: PE726260060 | BD107: 38 | BE107: 38 | BF107: 0
A108: 68 | B108: -1 | C108: 0 | D108: 4 | E108: 3 | F108: MEDAIR | G108: Cleaned/Capped Copper Med Air | H108: 7th floor | I108: Med Gas | J108: Above | K108: coptub | L108: Copper Tube Mueller | M108: 21 | N108: Mueller | P108: 11/5/2024 9:23:31 PM | Q108: 107.368721 | R108: Type L Oxygen Copper Tube | S108: <None> | T108: <None> | U108: 1.139999986 | V108: 0.0120000001 | W108: 0.4990000129 | X108: 0 | Y108: 1 | Z108: <None> | AC108: 1½ | AD108: 96 | AE108: 0 | AF108: 0 | AG108: 0 | AI108: 32.44 | AJ108: V | AK108: 0.4 | AL108: 0.07999999821 | AM108: 8.589497566 | AN108: 1 | AO108: 5120 | AP108: 5 | AQ108: coppsf | AR108: Copper Pipe Silfos | AS108: 36 | AT108: Plumbing#0012.pdf | AY108: 32.44 | AZ108: MEDAIR | BB108: 1 | BC108: PE726260060 | BD108: 38 | BE108: 38 | BF108: 0
A109: 69 | B109: -1 | C109: 0 | D109: 4 | E109: 3 | F109: MEDAIR | G109: Cleaned/Capped Copper Med Air | H109: 7th floor | I109: Med Gas | J109: Above | K109: coptub | L109: Copper Tube Mueller | M109: 21 | N109: Mueller | P109: 11/5/2024 9:23:31 PM | Q109: 1577.688965 | R109: Type L Oxygen Copper Tube | S109: <None> | T109: <None> | U109: 1.75 | V109: 0.02199999988 | W109: 0.621999979 | X109: 0 | Y109: 1 | Z109: <None> | AC109: 2 | AD109: 128 | AE109: 0 | AF109: 0 | AG109: 0 | AI109: 48.94 | AJ109: V | AK109: 0.4 | AL109: 0.09000000358 | AM109: 141.9920197 | AN109: 1 | AO109: 6144 | AP109: 6 | AQ109: coppsf | AR109: Copper Pipe Silfos | AS109: 36 | AT109: Plumbing#0011.pdf | AY109: 48.94 | AZ109: MEDAIR | BB109: 1 | BC109: PE726260080 | BD109: 38 | BE109: 38 | BF109: 0
A110: 70 | B110: -1 | C110: 0 | D110: 4 | E110: 3 | F110: MEDAIR | G110: Cleaned/Capped Copper Med Air | H110: 7th floor | I110: Med Gas | J110: Above | K110: coptub | L110: Copper Tube Mueller | M110: 21 | N110: Mueller | P110: 11/5/2024 9:23:31 PM | Q110: 1577.689087 | R110: Type L Oxygen Copper Tube | S110: <None> | T110: <None> | U110: 1.75 | V110: 0.02199999988 | W110: 0.621999979 | X110: 0 | Y110: 1 | Z110: <None> | AC110: 2 | AD110: 128 | AE110: 0 | AF110: 0 | AG110: 0 | AI110: 48.94 | AJ110: V | AK110: 0.4 | AL110: 0.09000000358 | AM110: 141.9920197 | AN110: 1 | AO110: 6144 | AP110: 6 | AQ110: coppsf | AR110: Copper Pipe Silfos | AS110: 36 | AT110: Plumbing#0012.pdf | AY110: 48.94 | AZ110: MEDAIR | BB110: 1 | BC110: PE726260080 | BD110: 38 | BE110: 38 | BF110: 0
A111: 71 | B111: -1 | C111: 0 | D111: 4 | E111: 3 | F111: MEDAIR | G111: Cleaned/Capped Copper Med Air | H111: 7th floor | I111: Med Gas | J111: Above | K111: coptub | L111: Copper Tube Mueller | M111: 21 | N111: Mueller | P111: 11/5/2024 9:23:31 PM | Q111: 153.7554321 | R111: Type L Oxygen Copper Tube | S111: <None> | T111: <None> | U111: 2.480000019 | V111: 0.03400000185 | W111: 0.753000021 | X111: 0 | Y111: 1 | Z111: <None> | AC111: 2½ | AD111: 160 | AE111: 0 | AF111: 0 | AG111: 0 | AI111: 70.36 | AJ111: V | AK111: 0.4 | AL111: 0.1199999973 | AM111: 18.45065117 | AN111: 1 | AO111: 7168 | AP111: 7 | AQ111: coppsf | AR111: Copper Pipe Silfos | AS111: 36 | AT111: Plumbing#0011.pdf | AY111: 70.36 | AZ111: MEDAIR | BB111: 1 | BC111: PE7262600A0 | BD111: 38 | BE111: 38 | BF111: 0
A112: 72 | B112: -1 | C112: 0 | D112: 4 | E112: 3 | F112: MEDAIR | G112: Cleaned/Capped Copper Med Air | H112: 7th floor | I112: Med Gas | J112: Above | K112: coptub | L112: Copper Tube Mueller | M112: 21 | N112: Mueller | P112: 11/5/2024 9:23:31 PM | Q112: 153.7554321 | R112: Type L Oxygen Copper Tube | S112: <None> | T112: <None> | U112: 2.480000019 | V112: 0.03400000185 | W112: 0.753000021 | X112: 0 | Y112: 1 | Z112: <None> | AC112: 2½ | AD112: 160 | AE112: 0 | AF112: 0 | AG112: 0 | AI112: 70.36 | AJ112: V | AK112: 0.4 | AL112: 0.1199999973 | AM112: 18.45065117 | AN112: 1 | AO112: 7168 | AP112: 7 | AQ112: coppsf | AR112: Copper Pipe Silfos | AS112: 36 | AT112: Plumbing#0012.pdf | AY112: 70.36 | AZ112: MEDAIR | BB112: 1 | BC112: PE7262600A0 | BD112: 38 | BE112: 38 | BF112: 0
A113: 73 | B113: -1 | C113: 0 | D113: 4 | E113: 3 | F113: MEDAIR | G113: Cleaned/Capped Copper Med Air | H113: 7th floor | I113: Med Gas | J113: Above | K113: coptub | L113: Copper Tube Mueller | M113: 21 | N113: Mueller | P113: 11/5/2024 9:23:31 PM | Q113: 152.0543823 | R113: Type L Oxygen Copper Tube | S113: <None> | T113: <None> | U113: 5.380000114 | V113: 0.0869999975 | W113: 1.177999973 | X113: 0 | Y113: 1 | Z113: <None> | AC113: 4 | AD113: 256 | AE113: 0 | AF113: 0 | AG113: 0 | AI113: 170.2 | AJ113: V | AK113: 0.4 | AL113: 0.1800000072 | AM113: 27.36978912 | AN113: 1 | AO113: 8192 | AP113: 8 | AQ113: coppsf | AR113: Copper Pipe Silfos | AS113: 36 | AT113: Plumbing#0011.pdf | AY113: 170.2 | AZ113: MEDAIR | BB113: 1 | BC113: PE726260100 | BD113: 38 | BE113: 38 | BF113: 0
A114: 74 | B114: -1 | C114: 0 | D114: 4 | E114: 3 | F114: MEDAIR | G114: Cleaned/Capped Copper Med Air | H114: 7th floor | I114: Med Gas | J114: Above | K114: coptub | L114: Copper Tube Mueller | M114: 21 | N114: Mueller | P114: 11/5/2024 9:23:31 PM | Q114: 152.0543823 | R114: Type L Oxygen Copper Tube | S114: <None> | T114: <None> | U114: 5.380000114 | V114: 0.0869999975 | W114: 1.177999973 | X114: 0 | Y114: 1 | Z114: <None> | AC114: 4 | AD114: 256 | AE114: 0 | AF114: 0 | AG114: 0 | AI114: 170.2 | AJ114: V | AK114: 0.4 | AL114: 0.1800000072 | AM114: 27.36978912 | AN114: 1 | AO114: 8192 | AP114: 8 | AQ114: coppsf | AR114: Copper Pipe Silfos | AS114: 36 | AT114: Plumbing#0012.pdf | AY114: 170.2 | AZ114: MEDAIR | BB114: 1 | BC114: PE726260100 | BD114: 38 | BE114: 38 | BF114: 0
A115: 51 | B115: 0 | C115: 0 | D115: 3 | E115: 1 | F115: HWSHWR4 | G115: Copper/Welded Heating Water | H115: 7th floor | I115: Heating Water | J115: Above | K115: fnwhgr | L115: Hangers & Supports | M115: 363 | N115: FNW | O115: FNWHNG2Z38 | P115: 5/22/2023 | Q115: 394 | R115: Hex Nuts | S115: <None> | T115: <None> | U115: 0 | V115: 0 | W115: 0 | X115: 0 | Y115: 5 | Z115: <None> | AC115: ⅜ | AD115: -128 | AE115: 24 | AF115: 0 | AG115: 0 | AI115: 0.308 | AJ115: V | AK115: 1 | AL115: 0.05000000075 | AM115: 19.70000076 | AN115: 1 | AO115: 78850 | AP115: 64 | AQ115: hngrod | AR115: Hanger Rod | AS115: 52 | AT115: Mechanical#0010.pdf | AY115: 0.308 | AZ115: HWSHWR4 | BB115: 1 | BC115: HE32228FF800018 | BD115: 34 | BE115: 40 | BF115: 0
A116: 31 | B116: 0 | C116: 0 | D116: 2 | E116: 3 | F116: DOMWATER | G116: Copper Domestic Water | H116: All 7th Floor | I116: Water | J116: Above | K116: fnwhgr | L116: Hangers & Supports | M116: 363 | N116: FNW | O116: FNWHNG2Z12 | P116: 5/22/2023 | Q116: 1560 | R116: Hex Nuts | S116: <None> | T116: <None> | U116: 0 | V116: 0 | W116: 0 | X116: 0 | Y116: 5 | Z116: <None> | AC116: ½ | AD116: -224 | AE116: 32 | AF116: 0 | AG116: 0 | AI116: 0.696 | AJ116: V | AK116: 1 | AL116: 0.05000000075 | AM116: 78 | AN116: 1 | AO116: 80898 | AP116: 65 | AQ116: hngrod | AR116: Hanger Rod | AS116: 52 | AT116: Plumbing#0007.pdf | AY116: 0.696 | AZ116: DOMWATER | BB116: 1 | BC116: HE32228FF200020 | BD116: 34 | BE116: 40 | BF116: 0
A117: 58 | B117: 0 | C117: 0 | D117: 3 | E117: 1 | F117: HWSHWR4 | G117: Copper/Welded Heating Water | H117: 7th floor | I117: Heating Water | J117: Above | K117: fnwhgr | L117: Hangers & Supports | M117: 363 | N117: FNW | O117: FNWHNG2Z12 | P117: 5/22/2023 | Q117: 66 | R117: Hex Nuts | S117: <None> | T117: <None> | U117: 0 | V117: 0 | W117: 0 | X117: 0 | Y117: 5 | Z117: <None> | AC117: ½ | AD117: -224 | AE117: 32 | AF117: 0 | AG117: 0 | AI117: 0.696 | AJ117: V | AK117: 1 | AL117: 0.05000000075 | AM117: 3.299999952 | AN117: 1 | AO117: 81922 | AP117: 65 | AQ117: hngrod | AR117: Hanger Rod | AS117: 52 | AT117: Mechanical#0010.pdf | AY117: 0.696 | AZ117: HWSHWR4 | BB117: 1 | BC117: HE32228FF200020 | BD117: 34 | BE117: 40 | BF117: 0
A118: 5 | B118: 0 | C118: 0 | D118: 1 | E118: 1 | F118: NO-HUBCH | G118: Above Grade No-Hub DWV | H118: All 7th Floor | I118: DWV | J118: Above | K118: fnwhgr | L118: Hangers & Supports | M118: 363 | N118: FNW | O118: FNWHNG2Z58 | P118: 5/22/2023 | Q118: 1100 | R118: Hex Nuts | S118: <None> | T118: <None> | U118: 0 | V118: 0 | W118: 0 | X118: 0 | Y118: 5 | Z118: <None> | AC118: ⅝ | AD118: -320 | AE118: 40 | AF118: 0 | AG118: 0 | AI118: 1.392 | AJ118: V | AK118: 1 | AL118: 0.05000000075 | AM118: 55 | AN118: 1 | AO118: 83970 | AP118: 66 | AQ118: hngrod | AR118: Hanger Rod | AS118: 52 | AT118: Plumbing#0004.pdf | AY118: 1.392 | AZ118: NO-HUBCH | BB118: 1 | BC118: HE32228FEC00028 | BD118: 34 | BE118: 40 | BF118: 0
A119: 52 | B119: 0 | C119: 0 | D119: 3 | E119: 1 | F119: HWSHWR4 | G119: Copper/Welded Heating Water | H119: 7th floor | I119: Heating Water | J119: Above | K119: fnwhgr | L119: Hangers & Supports | M119: 363 | N119: FNW | O119: FNWFLWZ38 | P119: 5/22/2023 | Q119: 394 | R119: Plain Washer | S119: <None> | T119: <None> | U119: 0 | V119: 0 | W119: 0 | X119: 0 | Y119: 5 | Z119: <None> | AC119: ⅜ | AD119: -128 | AE119: 24 | AF119: 0 | AG119: 0 | AI119: 0.27 | AJ119: V | AK119: 1 | AL119: 0 | AM119: 0 | AN119: 1 | AO119: 78851 | AP119: 67 | AQ119: hngrod | AR119: Hanger Rod | AS119: 52 | AT119: Mechanical#0010.pdf | AY119: 0.27 | AZ119: HWSHWR4 | BB119: 1 | BC119: HE32229FF800018 | BD119: 34 | BE119: 41 | BF119: 0
A120: 32 | B120: 0 | C120: 0 | D120: 2 | E120: 3 | F120: DOMWATER | G120: Copper Domestic Water | H120: All 7th Floor | I120: Water | J120: Above | K120: fnwhgr | L120: Hangers & Supports | M120: 363 | N120: FNW | O120: FNWFLWZ12 | P120: 5/22/2023 | Q120: 1560 | R120: Plain Washer | S120: <None> | T120: <None> | U120: 0 | V120: 0 | W120: 0 | X120: 0 | Y120: 5 | Z120: <None> | AC120: ½ | AD120: -224 | AE120: 32 | AF120: 0 | AG120: 0 | AI120: 0.64 | AJ120: V | AK120: 1 | AL120: 0 | AM120: 0 | AN120: 1 | AO120: 80899 | AP120: 68 | AQ120: hngrod | AR120: Hanger Rod | AS120: 52 | AT120: Plumbing#0007.pdf | AY120: 0.64 | AZ120: DOMWATER | BB120: 1 | BC120: HE32229FF200020 | BD120: 34 | BE120: 41 | BF120: 0
A121: 59 | B121: 0 | C121: 0 | D121: 3 | E121: 1 | F121: HWSHWR4 | G121: Copper/Welded Heating Water | H121: 7th floor | I121: Heating Water | J121: Above | K121: fnwhgr | L121: Hangers & Supports | M121: 363 | N121: FNW | O121: FNWFLWZ12 | P121: 5/22/2023 | Q121: 66 | R121: Plain Washer | S121: <None> | T121: <None> | U121: 0 | V121: 0 | W121: 0 | X121: 0 | Y121: 5 | Z121: <None> | AC121: ½ | AD121: -224 | AE121: 32 | AF121: 0 | AG121: 0 | AI121: 0.64 | AJ121: V | AK121: 1 | AL121: 0 | AM121: 0 | AN121: 1 | AO121: 81923 | AP121: 68 | AQ121: hngrod | AR121: Hanger Rod | AS121: 52 | AT121: Mechanical#0010.pdf | AY121: 0.64 | AZ121: HWSHWR4 | BB121: 1 | BC121: HE32229FF200020 | BD121: 34 | BE121: 41 | BF121: 0
A122: 6 | B122: 0 | C122: 0 | D122: 1 | E122: 1 | F122: NO-HUBCH | G122: Above Grade No-Hub DWV | H122: All 7th Floor | I122: DWV | J122: Above | K122: fnwhgr | L122: Hangers & Supports | M122: 363 | N122: FNW | O122: FNWFLWZ58 | P122: 5/22/2023 | Q122: 1100 | R122: Plain Washer | S122: <None> | T122: <None> | U122: 0 | V122: 0 | W122: 0 | X122: 0 | Y122: 5 | Z122: <None> | AC122: ⅝ | AD122: -320 | AE122: 40 | AF122: 0 | AG122: 0 | AI122: 1.275 | AJ122: V | AK122: 1 | AL122: 0 | AM122: 0 | AN122: 1 | AO122: 83971 | AP122: 69 | AQ122: hngrod | AR122: Hanger Rod | AS122: 52 | AT122: Plumbing#0004.pdf | AY122: 1.275 | AZ122: NO-HUBCH | BB122: 1 | BC122: HE32229FEC00028 | BD122: 34 | BE122: 41 | BF122: 0
A123: 126 | B123: 0 | C123: 0 | D123: 4 | E123: 3 | F123: MEDAIR | G123: Cleaned/Capped Copper Med Air | H123: 7th floor | I123: Med Gas | J123: Above | K123: gasket | L123: Gaskets | M123: 34 | N123: Industrial S | P123: 2/1/1999 | Q123: 9 | R123: 150# Red Rubber FF Gasket | S123: <None> | T123: <None> | U123: 0 | V123: 0 | W123: 0 | X123: 0 | Y123: 4 | Z123: <None> | AC123: 4x⅛ | AD123: 256 | AE123: 8 | AF123: 0 | AG123: 0 | AI123: 1.15 | AJ123: V | AK123: 1 | AL123: 0 | AM123: 0 | AN123: 1 | AO123: 53249 | AP123: 53 | AQ123: csfgwn | AR123: Steel Weld Neck Flanges | AS123: 31 | AT123: Plumbing#0011.pdf | AY123: 1.15 | AZ123: MEDAIR | BB123: 1 | BC123: LC322500FA201000008 | BD123: 34 | BE123: 80 | BF123: 4002
A124: 129 | B124: 0 | C124: 0 | D124: 4 | E124: 3 | F124: MEDAIR | G124: Cleaned/Capped Copper Med Air | H124: 7th floor | I124: Med Gas | J124: Above | K124: gasket | L124: Gaskets | M124: 34 | N124: Industrial S | P124: 2/1/1999 | Q124: 9 | R124: 150# Red Rubber FF Gasket | S124: <None> | T124: <None> | U124: 0 | V124: 0 | W124: 0 | X124: 0 | Y124: 4 | Z124: <None> | AC124: 4x⅛ | AD124: 256 | AE124: 8 | AF124: 0 | AG124: 0 | AI124: 1.15 | AJ124: V | AK124: 1 | AL124: 0 | AM124: 0 | AN124: 1 | AO124: 53249 | AP124: 53 | AQ124: csfgwn | AR124: Steel Weld Neck Flanges | AS124: 31 | AT124: Plumbing#0012.pdf | AY124: 1.15 | AZ124: MEDAIR | BB124: 1 | BC124: LC322500FA201000008 | BD124: 34 | BE124: 80 | BF124: 4002
A125: 146 | B125: 0 | C125: 0 | D125: 4 | E125: 3 | F125: MEDAIR | G125: Cleaned/Capped Copper Med Air | H125: 7th floor | I125: Med Gas | J125: Above | K125: hanger | L125: Hangers | M125: 12 | N125: B-Line | O125: B3170CT | P125: 6/15/2022 | Q125: 24 | R125: Copper Adj Swivel Ring Hanger | S125: <None> | T125: <None> | U125: 0.1000000015 | V125: 0 | W125: 0 | X125: 0 | Y125: 5 | Z125: <None> | AC125: 1 | AD125: -64 | AE125: 64 | AF125: 0 | AG125: 0 | AI125: 4.82 | AJ125: V | AK125: 0.2 | AL125: 0.2099999934 | AM125: 5.039999962 | AN125: 1 | AO125: 74753 | AP125: 55 | AQ125: hanger | AR125: Hangers | AS125: 201 | AT125: Plumbing#0011.pdf | AY125: 4.82 | AZ125: MEDAIR | BB125: 1 | BC125: HE3212AFFC00040 | BD125: 33 | BE125: 42 | BF125: 0
A126: 150 | B126: 0 | C126: 0 | D126: 4 | E126: 3 | F126: MEDAIR | G126: Cleaned/Capped Copper Med Air | H126: 7th floor | I126: Med Gas | J126: Above | K126: hanger | L126: Hangers | M126: 12 | N126: B-Line | O126: B3170CT | P126: 6/15/2022 | Q126: 24 | R126: Copper Adj Swivel Ring Hanger | S126: <None> | T126: <None> | U126: 0.1000000015 | V126: 0 | W126: 0 | X126: 0 | Y126: 5 | Z126: <None> | AC126: 1 | AD126: -64 | AE126: 64 | AF126: 0 | AG126: 0 | AI126: 4.82 | AJ126: V | AK126: 0.2 | AL126: 0.2099999934 | AM126: 5.039999962 | AN126: 1 | AO126: 74753 | AP126: 55 | AQ126: hanger | AR126: Hangers | AS126: 201 | AT126: Plumbing#0012.pdf | AY126: 4.82 | AZ126: MEDAIR | BB126: 1 | BC126: HE3212AFFC00040 | BD126: 33 | BE126: 42 | BF126: 0
A127: 154 | B127: 0 | C127: 0 | D127: 4 | E127: 3 | F127: MEDAIR | G127: Cleaned/Capped Copper Med Air | H127: 7th floor | I127: Med Gas | J127: Above | K127: hanger | L127: Hangers | M127: 12 | N127: B-Line | O127: B3170CT | P127: 6/15/2022 | Q127: 33 | R127: Copper Adj Swivel Ring Hanger | S127: <None> | T127: <None> | U127: 0.1199999973 | V127: 0 | W127: 0 | X127: 0 | Y127: 5 | Z127: <None> | AC127: 1¼ | AD127: -80 | AE127: 80 | AF127: 0 | AG127: 0 | AI127: 4.82 | AJ127: V | AK127: 0.2 | AL127: 0.2099999934 | AM127: 6.929999828 | AN127: 1 | AO127: 75777 | AP127: 56 | AQ127: hanger | AR127: Hangers | AS127: 201 | AT127: Plumbing#0011.pdf | AY127: 4.82 | AZ127: MEDAIR | BB127: 1 | BC127: HE3212AFFB00050 | BD127: 33 | BE127: 42 | BF127: 0
A128: 158 | B128: 0 | C128: 0 | D128: 4 | E128: 3 | F128: MEDAIR | G128: Cleaned/Capped Copper Med Air | H128: 7th floor | I128: Med Gas | J128: Above | K128: hanger | L128: Hangers | M128: 12 | N128: B-Line | O128: B3170CT | P128: 6/15/2022 | Q128: 33 | R128: Copper Adj Swivel Ring Hanger | S128: <None> | T128: <None> | U128: 0.1199999973 | V128: 0 | W128: 0 | X128: 0 | Y128: 5 | Z128: <None> | AC128: 1¼ | AD128: -80 | AE128: 80 | AF128: 0 | AG128: 0 | AI128: 4.82 | AJ128: V | AK128: 0.2 | AL128: 0.2099999934 | AM128: 6.929999828 | AN128: 1 | AO128: 75777 | AP128: 56 | AQ128: hanger | AR128: Hangers | AS128: 201 | AT128: Plumbing#0012.pdf | AY128: 4.82 | AZ128: MEDAIR | BB128: 1 | BC128: HE3212AFFB00050 | BD128: 33 | BE128: 42 | BF128: 0
A129: 162 | B129: 0 | C129: 0 | D129: 4 | E129: 3 | F129: MEDAIR | G129: Cleaned/Capped Copper Med Air | H129: 7th floor | I129: Med Gas | J129: Above | K129: hanger | L129: Hangers | M129: 12 | N129: B-Line | O129: B3170CT | P129: 6/15/2022 | Q129: 12 | R129: Copper Adj Swivel Ring Hanger | S129: <None> | T129: <None> | U129: 0.1199999973 | V129: 0 | W129: 0 | X129: 0 | Y129: 5 | Z129: <None> | AC129: 1½ | AD129: -96 | AE129: 96 | AF129: 0 | AG129: 0 | AI129: 5.26 | AJ129: V | AK129: 0.2 | AL129: 0.2099999934 | AM129: 2.519999981 | AN129: 1 | AO129: 76801 | AP129: 57 | AQ129: hanger | AR129: Hangers | AS129: 201 | AT129: Plumbing#0011.pdf | AY129: 5.26 | AZ129: MEDAIR | BB129: 1 | BC129: HE3212AFFA00060 | BD129: 33 | BE129: 42 | BF129: 0
A130: 166 | B130: 0 | C130: 0 | D130: 4 | E130: 3 | F130: MEDAIR | G130: Cleaned/Capped Copper Med Air | H130: 7th floor | I130: Med Gas | J130: Above | K130: hanger | L130: Hangers | M130: 12 | N130: B-Line | O130: B3170CT | P130: 6/15/2022 | Q130: 12 | R130: Copper Adj Swivel Ring Hanger | S130: <None> | T130: <None> | U130: 0.1199999973 | V130: 0 | W130: 0 | X130: 0 | Y130: 5 | Z130: <None> | AC130: 1½ | AD130: -96 | AE130: 96 | AF130: 0 | AG130: 0 | AI130: 5.26 | AJ130: V | AK130: 0.2 | AL130: 0.2099999934 | AM130: 2.519999981 | AN130: 1 | AO130: 76801 | AP130: 57 | AQ130: hanger | AR130: Hangers | AS130: 201 | AT130: Plumbing#0012.pdf | AY130: 5.26 | AZ130: MEDAIR | BB130: 1 | BC130: HE3212AFFA00060 | BD130: 33 | BE130: 42 | BF130: 0
A131: 170 | B131: 0 | C131: 0 | D131: 4 | E131: 3 | F131: MEDAIR | G131: Cleaned/Capped Copper Med Air | H131: 7th floor | I131: Med Gas | J131: Above | K131: hanger | L131: Hangers | M131: 12 | N131: B-Line | O131: B3170CT | P131: 6/15/2022 | Q131: 102 | R131: Copper Adj Swivel Ring Hanger | S131: <None> | T131: <None> | U131: 0.1199999973 | V131: 0 | W131: 0 | X131: 0 | Y131: 5 | Z131: <None> | AC131: 2 | AD131: -128 | AE131: 128 | AF131: 0 | AG131: 0 | AI131: 5.26 | AJ131: V | AK131: 0.2 | AL131: 0.2099999934 | AM131: 21.42000008 | AN131: 1 | AO131: 77825 | AP131: 58 | AQ131: hanger | AR131: Hangers | AS131: 201 | AT131: Plumbing#0011.pdf | AY131: 5.26 | AZ131: MEDAIR | BB131: 1 | BC131: HE3212AFF800080 | BD131: 33 | BE131: 42 | BF131: 0
A132: 174 | B132: 0 | C132: 0 | D132: 4 | E132: 3 | F132: MEDAIR | G132: Cleaned/Capped Copper Med Air | H132: 7th floor | I132: Med Gas | J132: Above | K132: hanger | L132: Hangers | M132: 12 | N132: B-Line | O132: B3170CT | P132: 6/15/2022 | Q132: 102 | R132: Copper Adj Swivel Ring Hanger | S132: <None> | T132: <None> | U132: 0.1199999973 | V132: 0 | W132: 0 | X132: 0 | Y132: 5 | Z132: <None> | AC132: 2 | AD132: -128 | AE132: 128 | AF132: 0 | AG132: 0 | AI132: 5.26 | AJ132: V | AK132: 0.2 | AL132: 0.2099999934 | AM132: 21.42000008 | AN132: 1 | AO132: 77825 | AP132: 58 | AQ132: hanger | AR132: Hangers | AS132: 201 | AT132: Plumbing#0012.pdf | AY132: 5.26 | AZ132: MEDAIR | BB132: 1 | BC132: HE3212AFF800080 | BD132: 33 | BE132: 42 | BF132: 0
A133: 178 | B133: 0 | C133: 0 | D133: 4 | E133: 3 | F133: MEDAIR | G133: Cleaned/Capped Copper Med Air | H133: 7th floor | I133: Med Gas | J133: Above | K133: hanger | L133: Hangers | M133: 12 | N133: B-Line | O133: B3170CT | P133: 6/15/2022 | Q133: 15 | R133: Copper Adj Swivel Ring Hanger | S133: <None> | T133: <None> | U133: 0.3100000024 | V133: 0 | W133: 0 | X133: 0 | Y133: 5 | Z133: <None> | AC133: 2½ | AD133: -160 | AE133: 160 | AF133: 0 | AG133: 0 | AI133: 13.79 | AJ133: V | AK133: 0.2 | AL133: 0.2300000042 | AM133: 3.450000048 | AN133: 1 | AO133: 79873 | AP133: 59 | AQ133: hanger | AR133: Hangers | AS133: 201 | AT133: Plumbing#0011.pdf | AY133: 13.79 | AZ133: MEDAIR | BB133: 1 | BC133: HE3212AFF6000A0 | BD133: 33 | BE133: 42 | BF133: 0
A134: 182 | B134: 0 | C134: 0 | D134: 4 | E134: 3 | F134: MEDAIR | G134: Cleaned/Capped Copper Med Air | H134: 7th floor | I134: Med Gas | J134: Above | K134: hanger | L134: Hangers | M134: 12 | N134: B-Line | O134: B3170CT | P134: 6/15/2022 | Q134: 15 | R134: Copper Adj Swivel Ring Hanger | S134: <None> | T134: <None> | U134: 0.3100000024 | V134: 0 | W134: 0 | X134: 0 | Y134: 5 | Z134: <None> | AC134: 2½ | AD134: -160 | AE134: 160 | AF134: 0 | AG134: 0 | AI134: 13.79 | AJ134: V | AK134: 0.2 | AL134: 0.2300000042 | AM134: 3.450000048 | AN134: 1 | AO134: 79873 | AP134: 59 | AQ134: hanger | AR134: Hangers | AS134: 201 | AT134: Plumbing#0012.pdf | AY134: 13.79 | AZ134: MEDAIR | BB134: 1 | BC134: HE3212AFF6000A0 | BD134: 33 | BE134: 42 | BF134: 0
A135: 186 | B135: 0 | C135: 0 | D135: 4 | E135: 3 | F135: MEDAIR | G135: Cleaned/Capped Copper Med Air | H135: 7th floor | I135: Med Gas | J135: Above | K135: hanger | L135: Hangers | M135: 12 | N135: B-Line | O135: B3170CT | P135: 6/15/2022 | Q135: 6 | R135: Copper Adj Swivel Ring Hanger | S135: <None> | T135: <None> | U135: 0.400000006 | V135: 0 | W135: 0 | X135: 0 | Y135: 5 | Z135: <None> | AC135: 4 | AD135: -256 | AE135: 256 | AF135: 0 | AG135: 0 | AI135: 22.41 | AJ135: V | AK135: 0.2 | AL135: 0.25 | AM135: 1.5 | AN135: 1 | AO135: 82945 | AP135: 60 | AQ135: hanger | AR135: Hangers | AS135: 201 | AT135: Plumbing#0011.pdf | AY135: 22.41 | AZ135: MEDAIR | BB135: 1 | BC135: HE3212AFF000100 | BD135: 33 | BE135: 42 | BF135: 0
A136: 190 | B136: 0 | C136: 0 | D136: 4 | E136: 3 | F136: MEDAIR | G136: Cleaned/Capped Copper Med Air | H136: 7th floor | I136: Med Gas | J136: Above | K136: hanger | L136: Hangers | M136: 12 | N136: B-Line | O136: B3170CT | P136: 6/15/2022 | Q136: 6 | R136: Copper Adj Swivel Ring Hanger | S136: <None> | T136: <None> | U136: 0.400000006 | V136: 0 | W136: 0 | X136: 0 | Y136: 5 | Z136: <None> | AC136: 4 | AD136: -256 | AE136: 256 | AF136: 0 | AG136: 0 | AI136: 22.41 | AJ136: V | AK136: 0.2 | AL136: 0.25 | AM136: 1.5 | AN136: 1 | AO136: 82945 | AP136: 60 | AQ136: hanger | AR136: Hangers | AS136: 201 | AT136: Plumbing#0012.pdf | AY136: 22.41 | AZ136: MEDAIR | BB136: 1 | BC136: HE3212AFF000100 | BD136: 33 | BE136: 42 | BF136: 0
A137: 4 | B137: 0 | C137: 0 | D137: 1 | E137: 1 | F137: NO-HUBCH | G137: Above Grade No-Hub DWV | H137: All 7th Floor | I137: DWV | J137: Above | K137: hanger | L137: Hangers | M137: 12 | N137: B-Line | O137: B3100 | P137: 6/15/2022 | Q137: 550 | R137: Plain Standard Clevis Hanger | S137: <None> | T137: <None> | U137: 1.730000019 | V137: 0 | W137: 0 | X137: 0 | Y137: 5 | Z137: <None> | AC137: 4 | AD137: -256 | AE137: 256 | AF137: 0 | AG137: 0 | AI137: 22.51 | AJ137: V | AK137: 0.2 | AL137: 0.25 | AM137: 137.5 | AN137: 1 | AO137: 83969 | AP137: 61 | AQ137: hanger | AR137: Hangers | AS137: 201 | AT137: Plumbing#0004.pdf | AY137: 22.51 | AZ137: NO-HUBCH | BB137: 1 | BC137: HE32145FF000100 | BD137: 33 | BE137: 69 | BF137: 0
A138: 50 | B138: 0 | C138: 0 | D138: 3 | E138: 1 | F138: HWSHWR4 | G138: Copper/Welded Heating Water | H138: 7th floor | I138: Heating Water | J138: Above | K138: hanger | L138: Hangers | M138: 12 | N138: B-Line | O138: B3100 | P138: 6/15/2022 | Q138: 197 | R138: Plain Standard Clevis Hanger | S138: <None> | T138: <None> | U138: 2.450000048 | V138: 0 | W138: 0 | X138: 0 | Y138: 5 | Z138: <None> | AC138: 5 | AD138: -320 | AE138: 320 | AF138: 0 | AG138: 0 | AI138: 31.16 | AJ138: V | AK138: 0.2 | AL138: 0.2599999905 | AM138: 51.21999741 | AN138: 1 | AO138: 78849 | AP138: 62 | AQ138: hanger | AR138: Hangers | AS138: 201 | AT138: Mechanical#0010.pdf | AY138: 31.16 | AZ138: HWSHWR4 | BB138: 1 | BC138: HE32145FEC00140 | BD138: 33 | BE138: 69 | BF138: 0
A139: 30 | B139: 0 | C139: 0 | D139: 2 | E139: 3 | F139: DOMWATER | G139: Copper Domestic Water | H139: All 7th Floor | I139: Water | J139: Above | K139: hanger | L139: Hangers | M139: 12 | N139: B-Line | O139: B3100 | P139: 6/15/2022 | Q139: 780 | R139: Plain Standard Clevis Hanger | S139: <None> | T139: <None> | U139: 2.450000048 | V139: 0 | W139: 0 | X139: 0 | Y139: 5 | Z139: <None> | AC139: 5 | AD139: -320 | AE139: 320 | AF139: 0 | AG139: 0 | AI139: 31.16 | AJ139: V | AK139: 0.2 | AL139: 0.2599999905 | AM139: 202.7999878 | AN139: 1 | AO139: 80897 | AP139: 62 | AQ139: hanger | AR139: Hangers | AS139: 201 | AT139: Plumbing#0007.pdf | AY139: 31.16 | AZ139: DOMWATER | BB139: 1 | BC139: HE32145FEC00140 | BD139: 33 | BE139: 69 | BF139: 0
A140: 57 | B140: 0 | C140: 0 | D140: 3 | E140: 1 | F140: HWSHWR4 | G140: Copper/Welded Heating Water | H140: 7th floor | I140: Heating Water | J140: Above | K140: hanger | L140: Hangers | M140: 12 | N140: B-Line | O140: B3100 | P140: 6/15/2022 | Q140: 33 | R140: Plain Standard Clevis Hanger | S140: <None> | T140: <None> | U140: 3.200000048 | V140: 0 | W140: 0 | X140: 0 | Y140: 5 | Z140: <None> | AC140: 6 | AD140: -384 | AE140: 384 | AF140: 0 | AG140: 0 | AI140: 38.52 | AJ140: V | AK140: 0.2 | AL140: 0.2700000107 | AM140: 8.910000801 | AN140: 1 | AO140: 81921 | AP140: 63 | AQ140: hanger | AR140: Hangers | AS140: 201 | AT140: Mechanical#0010.pdf | AY140: 38.52 | AZ140: HWSHWR4 | BB140: 1 | BC140: HE32145FE800180 | BD140: 33 | BE140: 69 | BF140: 0
A141: 22 | B141: -1 | C141: 0 | D141: 2 | E141: 3 | F141: DOMWATER | G141: Copper Domestic Water | H141: All 7th Floor | I141: Water | J141: Above | K141: joint | L141: Joints | M141: 339 | N141: Varies | P141: 8/17/2021 | Q141: 2625 | R141: Lead-Free Solder Joints | S141: <None> | T141: <None> | U141: 0 | V141: 0 | W141: 0 | X141: 0 | Y141: 6 | Z141: <None> | AC141: ½ | AD141: 32 | AE141: 0 | AF141: 0 | AG141: 0 | AI141: 0.2 | AJ141: V | AK141: 1 | AL141: 0 | AM141: 0 | AN141: 1 | AO141: 54272 | AP141: 79 | AQ141: copp95 | AR141: Copper Pipe 95/5 Solder | AS141: 32 | AT141: <None> | AY141: 0.2 | AZ141: DOMWATER | BB141: 1 | BC141: JE721210020 | BD141: 33 | BE141: 33 | BF141: 0
A142: 23 | B142: -1 | C142: 0 | D142: 2 | E142: 3 | F142: DOMWATER | G142: Copper Domestic Water | H142: All 7th Floor | I142: Water | J142: Above | K142: joint | L142: Joints | M142: 339 | N142: Varies | P142: 8/17/2021 | Q142: 3075 | R142: Lead-Free Solder Joints | S142: <None> | T142: <None> | U142: 0 | V142: 0 | W142: 0 | X142: 0 | Y142: 6 | Z142: <None> | AC142: ¾ | AD142: 48 | AE142: 0 | AF142: 0 | AG142: 0 | AI142: 0.24 | AJ142: V | AK142: 1 | AL142: 0 | AM142: 0 | AN142: 1 | AO142: 55296 | AP142: 80 | AQ142: copp95 | AR142: Copper Pipe 95/5 Solder | AS142: 32 | AT142: <None> | AY142: 0.24 | AZ142: DOMWATER | BB142: 1 | BC142: JE721210030 | BD142: 33 | BE142: 33 | BF142: 0
A143: 24 | B143: -1 | C143: 0 | D143: 2 | E143: 3 | F143: DOMWATER | G143: Copper Domestic Water | H143: All 7th Floor | I143: Water | J143: Above | K143: joint | L143: Joints | M143: 339 | N143: Varies | P143: 8/17/2021 | Q143: 1575 | R143: Lead-Free Solder Joints | S143: <None> | T143: <None> | U143: 0 | V143: 0 | W143: 0 | X143: 0 | Y143: 6 | Z143: <None> | AC143: 1 | AD143: 64 | AE143: 0 | AF143: 0 | AG143: 0 | AI143: 0.36 | AJ143: V | AK143: 1 | AL143: 0 | AM143: 0 | AN143: 1 | AO143: 56320 | AP143: 81 | AQ143: copp95 | AR143: Copper Pipe 95/5 Solder | AS143: 32 | AT143: <None> | AY143: 0.36 | AZ143: DOMWATER | BB143: 1 | BC143: JE721210040 | BD143: 33 | BE143: 33 | BF143: 0
A144: 25 | B144: -1 | C144: 0 | D144: 2 | E144: 3 | F144: DOMWATER | G144: Copper Domestic Water | H144: All 7th Floor | I144: Water | J144: Above | K144: joint | L144: Joints | M144: 339 | N144: Varies | P144: 8/17/2021 | Q144: 450 | R144: Lead-Free Solder Joints | S144: <None> | T144: <None> | U144: 0 | V144: 0 | W144: 0 | X144: 0 | Y144: 6 | Z144: <None> | AC144: 1½ | AD144: 96 | AE144: 0 | AF144: 0 | AG144: 0 | AI144: 0.48 | AJ144: V | AK144: 1 | AL144: 0 | AM144: 0 | AN144: 1 | AO144: 57344 | AP144: 82 | AQ144: copp95 | AR144: Copper Pipe 95/5 Solder | AS144: 32 | AT144: <None> | AY144: 0.48 | AZ144: DOMWATER | BB144: 1 | BC144: JE721210060 | BD144: 33 | BE144: 33 | BF144: 0
A145: 26 | B145: -1 | C145: 0 | D145: 2 | E145: 3 | F145: DOMWATER | G145: Copper Domestic Water | H145: All 7th Floor | I145: Water | J145: Above | K145: joint | L145: Joints | M145: 339 | N145: Varies | P145: 8/17/2021 | Q145: 750 | R145: Lead-Free Solder Joints | S145: <None> | T145: <None> | U145: 0 | V145: 0 | W145: 0 | X145: 0 | Y145: 6 | Z145: <None> | AC145: 2 | AD145: 128 | AE145: 0 | AF145: 0 | AG145: 0 | AI145: 0.6 | AJ145: V | AK145: 1 | AL145: 0 | AM145: 0 | AN145: 1 | AO145: 58368 | AP145: 83 | AQ145: copp95 | AR145: Copper Pipe 95/5 Solder | AS145: 32 | AT145: <None> | AY145: 0.6 | AZ145: DOMWATER | BB145: 1 | BC145: JE721210080 | BD145: 33 | BE145: 33 | BF145: 0
A146: 27 | B146: -1 | C146: 0 | D146: 2 | E146: 3 | F146: DOMWATER | G146: Copper Domestic Water | H146: All 7th Floor | I146: Water | J146: Above | K146: joint | L146: Joints | M146: 339 | N146: Varies | P146: 8/17/2021 | Q146: 600 | R146: Lead-Free Solder Joints | S146: <None> | T146: <None> | U146: 0 | V146: 0 | W146: 0 | X146: 0 | Y146: 6 | Z146: <None> | AC146: 2½ | AD146: 160 | AE146: 0 | AF146: 0 | AG146: 0 | AI146: 0.8 | AJ146: V | AK146: 1 | AL146: 0 | AM146: 0 | AN146: 1 | AO146: 59392 | AP146: 84 | AQ146: copp95 | AR146: Copper Pipe 95/5 Solder | AS146: 32 | AT146: <None> | AY146: 0.8 | AZ146: DOMWATER | BB146: 1 | BC146: JE7212100A0 | BD146: 33 | BE146: 33 | BF146: 0
A147: 28 | B147: -1 | C147: 0 | D147: 2 | E147: 3 | F147: DOMWATER | G147: Copper Domestic Water | H147: All 7th Floor | I147: Water | J147: Above | K147: joint | L147: Joints | M147: 339 | N147: Varies | P147: 8/17/2021 | Q147: 504 | R147: Lead-Free Solder Joints | S147: <None> | T147: <None> | U147: 0 | V147: 0 | W147: 0 | X147: 0 | Y147: 6 | Z147: <None> | AC147: 2½ | AD147: 160 | AE147: 0 | AF147: 0 | AG147: 0 | AI147: 0.8 | AJ147: V | AK147: 1 | AL147: 0 | AM147: 0 | AN147: 1 | AO147: 59392 | AP147: 84 | AQ147: copp95 | AR147: Copper Pipe 95/5 Solder | AS147: 32 | AT147: Plumbing#0007.pdf | AY147: 0.8 | AZ147: DOMWATER | BB147: 1 | BC147: JE7212100A0 | BD147: 33 | BE147: 33 | BF147: 0
A148: 43 | B148: -1 | C148: 0 | D148: 3 | E148: 1 | F148: HWSHWR4 | G148: Copper/Welded Heating Water | H148: 7th floor | I148: Heating Water | J148: Above | K148: joint | L148: Joints | M148: 339 | N148: Varies | P148: 8/17/2021 | Q148: 820 | R148: 95/5 Solder Joints | S148: <None> | T148: <None> | U148: 0.006000000052 | V148: 0 | W148: 0 | X148: 0 | Y148: 6 | Z148: <None> | AC148: ¾ | AD148: 48 | AE148: 0 | AF148: 0 | AG148: 0 | AI148: 0.48 | AJ148: V | AK148: 1 | AL148: 0 | AM148: 0 | AN148: 1 | AO148: 60416 | AP148: 85 | AQ148: copp95 | AR148: Copper Pipe 95/5 Solder | AS148: 32 | AT148: <None> | AY148: 0.48 | AZ148: HWSHWR4 | BB148: 1 | BC148: JE721230030 | BD148: 33 | BE148: 35 | BF148: 0
A149: 44 | B149: -1 | C149: 0 | D149: 3 | E149: 1 | F149: HWSHWR4 | G149: Copper/Welded Heating Water | H149: 7th floor | I149: Heating Water | J149: Above | K149: joint | L149: Joints | M149: 339 | N149: Varies | P149: 8/17/2021 | Q149: 148 | R149: 95/5 Solder Joints | S149: <None> | T149: <None> | U149: 0.02400000021 | V149: 0 | W149: 0 | X149: 0 | Y149: 6 | Z149: <None> | AC149: 2 | AD149: 128 | AE149: 0 | AF149: 0 | AG149: 0 | AI149: 1.2 | AJ149: V | AK149: 1 | AL149: 0 | AM149: 0 | AN149: 1 | AO149: 61440 | AP149: 86 | AQ149: copp95 | AR149: Copper Pipe 95/5 Solder | AS149: 32 | AT149: Mechanical#0010.pdf | AY149: 1.2 | AZ149: HWSHWR4 | BB149: 1 | BC149: JE721230080 | BD149: 33 | BE149: 35 | BF149: 0
A150: 131 | B150: -1 | C150: 0 | D150: 4 | E150: 3 | F150: MEDAIR | G150: Cleaned/Capped Copper Med Air | H150: 7th floor | I150: Med Gas | J150: Above | K150: joint | L150: Joints | M150: 339 | N150: Varies | P150: 8/17/2021 | Q150: 231 | R150: Silfos Joints | S150: <None> | T150: <None> | U150: 0 | V150: 0 | W150: 0 | X150: 0 | Y150: 6 | Z150: <None> | AC150: 1 | AD150: 64 | AE150: 0 | AF150: 0 | AG150: 0 | AI150: 2.16 | AJ150: V | AK150: 1 | AL150: 0.02899999917 | AM150: 6.698999882 | AN150: 1 | AO150: 62464 | AP150: 87 | AQ150: copfsf | AR150: Copper Ftgs Silfos | AS150: 41 | AT150: Plumbing#0011.pdf | AY150: 2.16 | AZ150: MEDAIR | BB150: 1 | BC150: JE721250040 | BD150: 33 | BE150: 37 | BF150: 0
A151: 132 | B151: -1 | C151: 0 | D151: 4 | E151: 3 | F151: MEDAIR | G151: Cleaned/Capped Copper Med Air | H151: 7th floor | I151: Med Gas | J151: Above | K151: joint | L151: Joints | M151: 339 | N151: Varies | P151: 8/17/2021 | Q151: 231 | R151: Silfos Joints | S151: <None> | T151: <None> | U151: 0 | V151: 0 | W151: 0 | X151: 0 | Y151: 6 | Z151: <None> | AC151: 1 | AD151: 64 | AE151: 0 | AF151: 0 | AG151: 0 | AI151: 2.16 | AJ151: V | AK151: 1 | AL151: 0.02899999917 | AM151: 6.698999882 | AN151: 1 | AO151: 62464 | AP151: 87 | AQ151: copfsf | AR151: Copper Ftgs Silfos | AS151: 41 | AT151: Plumbing#0012.pdf | AY151: 2.16 | AZ151: MEDAIR | BB151: 1 | BC151: JE721250040 | BD151: 33 | BE151: 37 | BF151: 0
A152: 133 | B152: -1 | C152: 0 | D152: 4 | E152: 3 | F152: MEDAIR | G152: Cleaned/Capped Copper Med Air | H152: 7th floor | I152: Med Gas | J152: Above | K152: joint | L152: Joints | M152: 339 | N152: Varies | P152: 8/17/2021 | Q152: 192 | R152: Silfos Joints | S152: <None> | T152: <None> | U152: 0 | V152: 0 | W152: 0 | X152: 0 | Y152: 6 | Z152: <None> | AC152: 1¼ | AD152: 80 | AE152: 0 | AF152: 0 | AG152: 0 | AI152: 2.64 | AJ152: V | AK152: 1 | AL152: 0.02899999917 | AM152: 5.56799984 | AN152: 1 | AO152: 63488 | AP152: 88 | AQ152: copfsf | AR152: Copper Ftgs Silfos | AS152: 41 | AT152: Plumbing#0011.pdf | AY152: 2.64 | AZ152: MEDAIR | BB152: 1 | BC152: JE721250050 | BD152: 33 | BE152: 37 | BF152: 0
A153: 134 | B153: -1 | C153: 0 | D153: 4 | E153: 3 | F153: MEDAIR | G153: Cleaned/Capped Copper Med Air | H153: 7th floor | I153: Med Gas | J153: Above | K153: joint | L153: Joints | M153: 339 | N153: Varies | P153: 8/17/2021 | Q153: 192 | R153: Silfos Joints | S153: <None> | T153: <None> | U153: 0 | V153: 0 | W153: 0 | X153: 0 | Y153: 6 | Z153: <None> | AC153: 1¼ | AD153: 80 | AE153: 0 | AF153: 0 | AG153: 0 | AI153: 2.64 | AJ153: V | AK153: 1 | AL153: 0.02899999917 | AM153: 5.56799984 | AN153: 1 | AO153: 63488 | AP153: 88 | AQ153: copfsf | AR153: Copper Ftgs Silfos | AS153: 41 | AT153: Plumbing#0012.pdf | AY153: 2.64 | AZ153: MEDAIR | BB153: 1 | BC153: JE721250050 | BD153: 33 | BE153: 37 | BF153: 0
A154: 135 | B154: -1 | C154: 0 | D154: 4 | E154: 3 | F154: MEDAIR | G154: Cleaned/Capped Copper Med Air | H154: 7th floor | I154: Med Gas | J154: Above | K154: joint | L154: Joints | M154: 339 | N154: Varies | P154: 8/17/2021 | Q154: 30 | R154: Silfos Joints | S154: <None> | T154: <None> | U154: 0 | V154: 0 | W154: 0 | X154: 0 | Y154: 6 | Z154: <None> | AC154: 1½ | AD154: 96 | AE154: 0 | AF154: 0 | AG154: 0 | AI154: 2.88 | AJ154: V | AK154: 1 | AL154: 0.02899999917 | AM154: 0.8700000048 | AN154: 1 | AO154: 64512 | AP154: 89 | AQ154: copfsf | AR154: Copper Ftgs Silfos | AS154: 41 | AT154: Plumbing#0011.pdf | AY154: 2.88 | AZ154: MEDAIR | BB154: 1 | BC154: JE721250060 | BD154: 33 | BE154: 37 | BF154: 0
A155: 136 | B155: -1 | C155: 0 | D155: 4 | E155: 3 | F155: MEDAIR | G155: Cleaned/Capped Copper Med Air | H155: 7th floor | I155: Med Gas | J155: Above | K155: joint | L155: Joints | M155: 339 | N155: Varies | P155: 8/17/2021 | Q155: 30 | R155: Silfos Joints | S155: <None> | T155: <None> | U155: 0 | V155: 0 | W155: 0 | X155: 0 | Y155: 6 | Z155: <None> | AC155: 1½ | AD155: 96 | AE155: 0 | AF155: 0 | AG155: 0 | AI155: 2.88 | AJ155: V | AK155: 1 | AL155: 0.02899999917 | AM155: 0.8700000048 | AN155: 1 | AO155: 64512 | AP155: 89 | AQ155: copfsf | AR155: Copper Ftgs Silfos | AS155: 41 | AT155: Plumbing#0012.pdf | AY155: 2.88 | AZ155: MEDAIR | BB155: 1 | BC155: JE721250060 | BD155: 33 | BE155: 37 | BF155: 0
A156: 137 | B156: -1 | C156: 0 | D156: 4 | E156: 3 | F156: MEDAIR | G156: Cleaned/Capped Copper Med Air | H156: 7th floor | I156: Med Gas | J156: Above | K156: joint | L156: Joints | M156: 339 | N156: Varies | P156: 8/17/2021 | Q156: 516 | R156: Silfos Joints | S156: <None> | T156: <None> | U156: 0 | V156: 0 | W156: 0 | X156: 0 | Y156: 6 | Z156: <None> | AC156: 2 | AD156: 128 | AE156: 0 | AF156: 0 | AG156: 0 | AI156: 3.6 | AJ156: V | AK156: 1 | AL156: 0.02899999917 | AM156: 14.96399975 | AN156: 1 | AO156: 65536 | AP156: 90 | AQ156: copfsf | AR156: Copper Ftgs Silfos | AS156: 41 | AT156: Plumbing#0011.pdf | AY156: 3.6 | AZ156: MEDAIR | BB156: 1 | BC156: JE721250080 | BD156: 33 | BE156: 37 | BF156: 0
A157: 138 | B157: -1 | C157: 0 | D157: 4 | E157: 3 | F157: MEDAIR | G157: Cleaned/Capped Copper Med Air | H157: 7th floor | I157: Med Gas | J157: Above | K157: joint | L157: Joints | M157: 339 | N157: Varies | P157: 8/17/2021 | Q157: 516 | R157: Silfos Joints | S157: <None> | T157: <None> | U157: 0 | V157: 0 | W157: 0 | X157: 0 | Y157: 6 | Z157: <None> | AC157: 2 | AD157: 128 | AE157: 0 | AF157: 0 | AG157: 0 | AI157: 3.6 | AJ157: V | AK157: 1 | AL157: 0.02899999917 | AM157: 14.96399975 | AN157: 1 | AO157: 65536 | AP157: 90 | AQ157: copfsf | AR157: Copper Ftgs Silfos | AS157: 41 | AT157: Plumbing#0012.pdf | AY157: 3.6 | AZ157: MEDAIR | BB157: 1 | BC157: JE721250080 | BD157: 33 | BE157: 37 | BF157: 0
A158: 139 | B158: -1 | C158: 0 | D158: 4 | E158: 3 | F158: MEDAIR | G158: Cleaned/Capped Copper Med Air | H158: 7th floor | I158: Med Gas | J158: Above | K158: joint | L158: Joints | M158: 339 | N158: Varies | P158: 8/17/2021 | Q158: 48 | R158: Silfos Joints | S158: <None> | T158: <None> | U158: 0 | V158: 0 | W158: 0 | X158: 0 | Y158: 6 | Z158: <None> | AC158: 2½ | AD158: 160 | AE158: 0 | AF158: 0 | AG158: 0 | AI158: 4.8 | AJ158: V | AK158: 1 | AL158: 0.05000000075 | AM158: 2.400000095 | AN158: 1 | AO158: 66560 | AP158: 91 | AQ158: copfsf | AR158: Copper Ftgs Silfos | AS158: 41 | AT158: Plumbing#0011.pdf | AY158: 4.8 | AZ158: MEDAIR | BB158: 1 | BC158: JE7212500A0 | BD158: 33 | BE158: 37 | BF158: 0
A159: 140 | B159: -1 | C159: 0 | D159: 4 | E159: 3 | F159: MEDAIR | G159: Cleaned/Capped Copper Med Air | H159: 7th floor | I159: Med Gas | J159: Above | K159: joint | L159: Joints | M159: 339 | N159: Varies | P159: 8/17/2021 | Q159: 48 | R159: Silfos Joints | S159: <None> | T159: <None> | U159: 0 | V159: 0 | W159: 0 | X159: 0 | Y159: 6 | Z159: <None> | AC159: 2½ | AD159: 160 | AE159: 0 | AF159: 0 | AG159: 0 | AI159: 4.8 | AJ159: V | AK159: 1 | AL159: 0.05000000075 | AM159: 2.400000095 | AN159: 1 | AO159: 66560 | AP159: 91 | AQ159: copfsf | AR159: Copper Ftgs Silfos | AS159: 41 | AT159: Plumbing#0012.pdf | AY159: 4.8 | AZ159: MEDAIR | BB159: 1 | BC159: JE7212500A0 | BD159: 33 | BE159: 37 | BF159: 0
A160: 141 | B160: -1 | C160: 0 | D160: 4 | E160: 3 | F160: MEDAIR | G160: Cleaned/Capped Copper Med Air | H160: 7th floor | I160: Med Gas | J160: Above | K160: joint | L160: Joints | M160: 339 | N160: Varies | P160: 8/17/2021 | Q160: 78 | R160: Silfos Joints | S160: <None> | T160: <None> | U160: 0 | V160: 0 | W160: 0 | X160: 0 | Y160: 6 | Z160: <None> | AC160: 4 | AD160: 256 | AE160: 0 | AF160: 0 | AG160: 0 | AI160: 8.16 | AJ160: V | AK160: 1 | AL160: 0.06300000101 | AM160: 4.914000034 | AN160: 1 | AO160: 67584 | AP160: 92 | AQ160: copfsf | AR160: Copper Ftgs Silfos | AS160: 41 | AT160: Plumbing#0011.pdf | AY160: 8.16 | AZ160: MEDAIR | BB160: 1 | BC160: JE721250100 | BD160: 33 | BE160: 37 | BF160: 0
A161: 142 | B161: -1 | C161: 0 | D161: 4 | E161: 3 | F161: MEDAIR | G161: Cleaned/Capped Copper Med Air | H161: 7th floor | I161: Med Gas | J161: Above | K161: joint | L161: Joints | M161: 339 | N161: Varies | P161: 8/17/2021 | Q161: 78 | R161: Silfos Joints | S161: <None> | T161: <None> | U161: 0 | V161: 0 | W161: 0 | X161: 0 | Y161: 6 | Z161: <None> | AC161: 4 | AD161: 256 | AE161: 0 | AF161: 0 | AG161: 0 | AI161: 8.16 | AJ161: V | AK161: 1 | AL161: 0.06300000101 | AM161: 4.914000034 | AN161: 1 | AO161: 67584 | AP161: 92 | AQ161: copfsf | AR161: Copper Ftgs Silfos | AS161: 41 | AT161: Plumbing#0012.pdf | AY161: 8.16 | AZ161: MEDAIR | BB161: 1 | BC161: JE721250100 | BD161: 33 | BE161: 37 | BF161: 0
A162: 45 | B162: -1 | C162: 0 | D162: 3 | E162: 1 | F162: HWSHWR4 | G162: Copper/Welded Heating Water | H162: 7th floor | I162: Heating Water | J162: Above | K162: joint | L162: Joints | M162: 339 | N162: Varies | P162: 8/17/2021 | Q162: 160 | R162: Male Iron Pipe Thread Joints | S162: <None> | T162: <None> | U162: 0 | V162: 0 | W162: 0 | X162: 0 | Y162: 6 | Z162: <None> | AC162: ¾ | AD162: 48 | AE162: 0 | AF162: 0 | AG162: 0 | AI162: 0 | AJ162: V | AK162: 1 | AL162: 0 | AM162: 0 | AN162: 1 | AO162: 68608 | AP162: 93 | AQ162: misc | AR162: Miscellaneous | AS162: 256 | AT162: <None> | AY162: 0 | AZ162: HWSHWR4 | BB162: 1 | BC162: JE722210030 | BD162: 34 | BE162: 33 | BF162: 0
A163: 143 | B163: -1 | C163: 0 | D163: 4 | E163: 3 | F163: MEDAIR | G163: Cleaned/Capped Copper Med Air | H163: 7th floor | I163: Med Gas | J163: Above | K163: joint | L163: Joints | M163: 339 | N163: Varies | P163: 8/17/2021 | Q163: 9 | R163: 150# Flange Joints | S163: <None> | T163: <None> | U163: 0 | V163: 0 | W163: 0 | X163: 0 | Y163: 6 | Z163: <None> | AC163: 4 | AD163: 256 | AE163: 0 | AF163: 0 | AG163: 0 | AI163: 0 | AJ163: V | AK163: 1 | AL163: 0 | AM163: 0 | AN163: 1 | AO163: 69632 | AP163: 94 | AQ163: misc | AR163: Miscellaneous | AS163: 256 | AT163: Plumbing#0011.pdf | AY163: 0 | AZ163: MEDAIR | BB163: 1 | BC163: JE723210100 | BD163: 35 | BE163: 33 | BF163: 0
A164: 144 | B164: -1 | C164: 0 | D164: 4 | E164: 3 | F164: MEDAIR | G164: Cleaned/Capped Copper Med Air | H164: 7th floor | I164: Med Gas | J164: Above | K164: joint | L164: Joints | M164: 339 | N164: Varies | P164: 8/17/2021 | Q164: 9 | R164: 150# Flange Joints | S164: <None> | T164: <None> | U164: 0 | V164: 0 | W164: 0 | X164: 0 | Y164: 6 | Z164: <None> | AC164: 4 | AD164: 256 | AE164: 0 | AF164: 0 | AG164: 0 | AI164: 0 | AJ164: V | AK164: 1 | AL164: 0 | AM164: 0 | AN164: 1 | AO164: 69632 | AP164: 94 | AQ164: misc | AR164: Miscellaneous | AS164: 256 | AT164: Plumbing#0012.pdf | AY164: 0 | AZ164: MEDAIR | BB164: 1 | BC164: JE723210100 | BD164: 35 | BE164: 33 | BF164: 0
A165: 46 | B165: -1 | C165: 0 | D165: 3 | E165: 1 | F165: HWSHWR4 | G165: Copper/Welded Heating Water | H165: 7th floor | I165: Heating Water | J165: Above | K165: joint | L165: Joints | M165: 339 | N165: Varies | P165: 8/17/2021 | Q165: 20 | R165: Sch 40 Butt Weld Joints | S165: <None> | T165: <None> | U165: 0 | V165: 0 | W165: 0 | X165: 1 | Y165: 6 | Z165: <None> | AC165: 1 | AD165: 64 | AE165: 0 | AF165: 0 | AG165: 0 | AI165: 0.8 | AJ165: V | AK165: 1 | AL165: 0 | AM165: 0 | AN165: 1 | AO165: 70656 | AP165: 95 | AQ165: csfwld | AR165: Carb Steel Ftgs Buttweld | AS165: 9 | AT165: <None> | AY165: 0.8 | AZ165: HWSHWR4 | BB165: 1 | BC165: JE724210040 | BD165: 36 | BE165: 33 | BF165: 0
A166: 47 | B166: -1 | C166: 0 | D166: 3 | E166: 1 | F166: HWSHWR4 | G166: Copper/Welded Heating Water | H166: 7th floor | I166: Heating Water | J166: Above | K166: joint | L166: Joints | M166: 339 | N166: Varies | P166: 8/17/2021 | Q166: 40 | R166: Sch 40 Butt Weld Joints | S166: <None> | T166: <None> | U166: 0 | V166: 0 | W166: 0 | X166: 2.5 | Y166: 6 | Z166: <None> | AC166: 2½ | AD166: 160 | AE166: 0 | AF166: 0 | AG166: 0 | AI166: 1.2 | AJ166: V | AK166: 1 | AL166: 0 | AM166: 0 | AN166: 1 | AO166: 71680 | AP166: 96 | AQ166: csfwld | AR166: Carb Steel Ftgs Buttweld | AS166: 9 | AT166: <None> | AY166: 1.2 | AZ166: HWSHWR4 | BB166: 1 | BC166: JE7242100A0 | BD166: 36 | BE166: 33 | BF166: 0
A167: 48 | B167: -1 | C167: 0 | D167: 3 | E167: 1 | F167: HWSHWR4 | G167: Copper/Welded Heating Water | H167: 7th floor | I167: Heating Water | J167: Above | K167: joint | L167: Joints | M167: 339 | N167: Varies | P167: 8/17/2021 | Q167: 12 | R167: Sch 40 Butt Weld Pipe Joint | S167: <None> | T167: <None> | U167: 0 | V167: 0 | W167: 0 | X167: 2.5 | Y167: 6 | Z167: <None> | AC167: 2½ | AD167: 160 | AE167: 0 | AF167: 0 | AG167: 0 | AI167: 1.2 | AJ167: V | AK167: 1 | AL167: 1.850000024 | AM167: 22.20000076 | AN167: 1 | AO167: 72704 | AP167: 97 | AQ167: stlpbw | AR167: Steel Pipe Buttweld | AS167: 1 | AT167: Mechanical#0010.pdf | AY167: 1.2 | AZ167: HWSHWR4 | BB167: 1 | BC167: JE7242400A0 | BD167: 36 | BE167: 36 | BF167: 0
A168: 42 | B168: -1 | C168: 0 | D168: 3 | E168: 1 | F168: HWSHWR4 | G168: Copper/Welded Heating Water | H168: 7th floor | I168: Heating Water | J168: Above | K168: milbal | L168: Ball Valves Milwaukee | M168: 224 | N168: Milwaukee | O168: BA450 | P168: 7/23/2024 9:27:00 AM | Q168: 80 | R168: BA450 2Pc FP Brnz Swt Ball Valve w/CP Ball | S168: <None> | T168: <None> | U168: 0 | V168: 0.001000000047 | W168: 0.0719999969 | X168: 0 | Y168: 3 | Z168: <None> | AC168: ¾ | AD168: 48 | AE168: -48 | AF168: 0 | AG168: 0 | AI168: 99.21 | AJ168: V | AK168: 0.35 | AL168: 0.5500000119 | AM168: 44 | AN168: 1 | AO168: 52224 | AP168: 51 | AQ168: blvlsl | AR168: Sweat Ball Valves | AS168: 174 | AT168: <None> | AY168: 99.21 | AZ168: HWSHWR4 | BB168: 1 | BC168: V8322014D0FCF0030FFD0 | BD168: 34 | BE168: 333 | BF168: 4047
A169: 123 | B169: -1 | C169: 0 | D169: 4 | E169: 3 | F169: MEDAIR | G169: Cleaned/Capped Copper Med Air | H169: 7th floor | I169: Med Gas | J169: Above | K169: nbball | L169: Ball Valves Nibco | M169: 79 | N169: Nibco | O169: S595-Y-66X | P169: 7/23/2024 9:27:00 AM | Q169: 6 | R169: 200# 3Pc FP SS B&S Swt Ball Vlv | S169: <None> | T169: <None> | U169: 19.60000038 | V169: 0.02099999972 | W169: 0.5410000086 | X169: 0 | Y169: 3 | Z169: <None> | AC169: 2½ | AD169: 160 | AE169: -160 | AF169: 0 | AG169: 0 | AI169: 2749 | AJ169: V | AK169: 1 | AL169: 1.909999967 | AM169: 11.46000004 | AN169: 1 | AO169: 51200 | AP169: 50 | AQ169: blvlsl | AR169: Sweat Ball Valves | AS169: 174 | AT169: Plumbing#0011.pdf | AY169: 2749 | AZ169: MEDAIR | BB169: 1 | BC169: VC322D40FCF00A0FF60 | BD169: 34 | BE169: 212 | BF169: 4047
A170: 124 | B170: -1 | C170: 0 | D170: 4 | E170: 3 | F170: MEDAIR | G170: Cleaned/Capped Copper Med Air | H170: 7th floor | I170: Med Gas | J170: Above | K170: nbball | L170: Ball Valves Nibco | M170: 79 | N170: Nibco | O170: S595-Y-66X | P170: 7/23/2024 9:27:00 AM | Q170: 6 | R170: 200# 3Pc FP SS B&S Swt Ball Vlv | S170: <None> | T170: <None> | U170: 19.60000038 | V170: 0.02099999972 | W170: 0.5410000086 | X170: 0 | Y170: 3 | Z170: <None> | AC170: 2½ | AD170: 160 | AE170: -160 | AF170: 0 | AG170: 0 | AI170: 2749 | AJ170: V | AK170: 1 | AL170: 1.909999967 | AM170: 11.46000004 | AN170: 1 | AO170: 51200 | AP170: 50 | AQ170: blvlsl | AR170: Sweat Ball Valves | AS170: 174 | AT170: Plumbing#0012.pdf | AY170: 2749 | AZ170: MEDAIR | BB170: 1 | BC170: VC322D40FCF00A0FF60 | BD170: 34 | BE170: 212 | BF170: 4047
A171: 2 | B171: -1 | C171: 0 | D171: 1 | E171: 1 | F171: NO-HUBCH | G171: Above Grade No-Hub DWV | H171: All 7th Floor | I171: DWV | J171: Above | K171: nhcpch | L171: No-Hub Clamps Charlotte | M171: 122 | N171: Charlotte | O171: NH-1 | P171: 6/1/2022 | Q171: 756 | R171: No-hub Couplings | S171: <None> | T171: <None> | U171: 0.6999999881 | V171: 0 | W171: 0 | X171: 0 | Y171: 6 | Z171: <None> | AC171: 4 | AD171: 256 | AE171: 0 | AF171: 0 | AG171: 0 | AI171: 43.4 | AJ171: V | AK171: 0.22 | AL171: 0 | AM171: 0 | AN171: 1 | AO171: 73728 | AP171: 98 | AQ171: cisfnh | AR171: CI Soil Ftgs No-Hub | AS171: 59 | AT171: Plumbing#0004.pdf | AY171: 43.4 | AZ171: NO-HUBCH | BB171: 1 | BC171: JE72C2B0100 | BD171: 44 | BE171: 43 | BF171: 0
A172: 1 | B172: -1 | C172: 0 | D172: 1 | E172: 1 | F172: NO-HUBCH | G172: Above Grade No-Hub DWV | H172: All 7th Floor | I172: DWV | J172: Above | K172: nhftch | L172: Cast Iron Soil NH Ftgs Char | M172: 120 | N172: Charlotte | O172: NH-22 | P172: 1/18/2024 12:41:15 PM | Q172: 158 | R172: NH CI Soil Combo | S172: <None> | T172: <None> | U172: 14.5 | V172: 0.1159999967 | W172: 1.76699996 | X172: 0 | Y172: 2 | Z172: <None> | AC172: 4 | AD172: 256 | AE172: -256 | AF172: -256 | AG172: 0 | AI172: 113.6 | AJ172: V | AK172: 0.4 | AL172: 1.190000057 | AM172: 188.0200043 | AN172: 1 | AO172: 50176 | AP172: 49 | AQ172: cisfnh | AR172: CI Soil Ftgs No-Hub | AS172: 59 | AT172: Plumbing#0004.pdf | AY172: 113.6 | AZ172: NO-HUBCH | BB172: 1 | BC172: FC12C2410600100FF00FF00 | BD172: 44 | BE172: 36 | BF172: 4192
A173: 0 | B173: -1 | C173: 0 | D173: 1 | E173: 1 | F173: NO-HUBCH | G173: Above Grade No-Hub DWV | H173: All 7th Floor | I173: DWV | J173: Above | K173: nhpich | L173: Cast Iron Soil NH Pipe Char | M173: 118 | N173: Charlotte | O173: NH-2 | P173: 1/18/2024 12:41:15 PM | Q173: 3324.77417 | R173: No-Hub Cast Iron Soil Pipe | S173: <None> | T173: <None> | U173: 7.400000095 | V173: 0.0869999975 | W173: 1.177999973 | X173: 0 | Y173: 1 | Z173: <None> | AC173: 4 | AD173: 256 | AE173: 0 | AF173: 0 | AG173: 0 | AI173: 31.22 | AJ173: V | AK173: 0.44 | AL173: 0.200000003 | AM173: 664.954834 | AN173: 1 | AO173: 9216 | AP173: 9 | AQ173: cispnh | AR173: Cast Irn Soil Pipe No-Hub | AS173: 54 | AT173: Plumbing#0004.pdf | AY173: 31.22 | AZ173: NO-HUBCH | BB173: 1 | BC173: PE72A250100 | BD173: 42 | BE173: 37 | BF173: 0
A174: 35 | B174: 0 | C174: 0 | D174: 2 | E174: 3 | F174: DOMWATER | G174: Copper Domestic Water | H174: All 7th Floor | I174: Water | J174: Above | K174: shield | L174: Shields/Saddles | M174: 196 | N174: B-Line | O174: B3151-7X | P174: 6/15/2022 | Q174: 780 | R174: Galv Insulation Prot Shield | S174: <None> | T174: <None> | U174: 1.289999962 | V174: 0 | W174: 0 | X174: 0 | Y174: 5 | Z174: <None> | AC174: 4½ x12 | AD174: -288 | AE174: 288 | AF174: 0 | AG174: 768 | AI174: 46.6 | AJ174: V | AK174: 0.39 | AL174: 0.2300000042 | AM174: 179.4000092 | AN174: 1 | AO174: 80902 | AP174: 76 | AQ174: hngshd | AR174: Hanger Shields | AS174: 198 | AT174: Plumbing#0007.pdf | AY174: 46.6 | AZ174: DOMWATER | BB174: 1 | BC174: HE22721FEE001200300 | BD174: 39 | BE174: 33 | BF174: 0
A175: 55 | B175: 0 | C175: 0 | D175: 3 | E175: 1 | F175: HWSHWR4 | G175: Copper/Welded Heating Water | H175: 7th floor | I175: Heating Water | J175: Above | K175: shield | L175: Shields/Saddles | M175: 196 | N175: B-Line | O175: B3151-8X | P175: 6/15/2022 | Q175: 197 | R175: Galv Insulation Prot Shield | S175: <None> | T175: <None> | U175: 1.470000029 | V175: 0 | W175: 0 | X175: 0 | Y175: 5 | Z175: <None> | AC175: 5x12 | AD175: -320 | AE175: 320 | AF175: 0 | AG175: 768 | AI175: 49.91 | AJ175: V | AK175: 0.39 | AL175: 0.2300000042 | AM175: 45.31000137 | AN175: 1 | AO175: 78854 | AP175: 77 | AQ175: hngshd | AR175: Hanger Shields | AS175: 198 | AT175: Mechanical#0010.pdf | AY175: 49.91 | AZ175: HWSHWR4 | BB175: 1 | BC175: HE22721FEC001400300 | BD175: 39 | BE175: 33 | BF175: 0
A176: 62 | B176: 0 | C176: 0 | D176: 3 | E176: 1 | F176: HWSHWR4 | G176: Copper/Welded Heating Water | H176: 7th floor | I176: Heating Water | J176: Above | K176: shield | L176: Shields/Saddles | M176: 196 | N176: B-Line | O176: B3151-9X | P176: 6/15/2022 | Q176: 33 | R176: Galv Insulation Prot Shield | S176: <None> | T176: <None> | U176: 2.190000057 | V176: 0 | W176: 0 | X176: 0 | Y176: 5 | Z176: <None> | AC176: 6x12 | AD176: -384 | AE176: 384 | AF176: 0 | AG176: 768 | AI176: 56.03 | AJ176: V | AK176: 0.39 | AL176: 0.2300000042 | AM176: 7.590000153 | AN176: 1 | AO176: 81926 | AP176: 78 | AQ176: hngshd | AR176: Hanger Shields | AS176: 198 | AT176: Mechanical#0010.pdf | AY176: 56.03 | AZ176: HWSHWR4 | BB176: 1 | BC176: HE22721FE8001800300 | BD176: 39 | BE176: 33 | BF176: 0
A177: 36 | B177: -1 | C177: 0 | D177: 3 | E177: 1 | F177: HWSHWR4 | G177: Copper/Welded Heating Water | H177: 7th floor | I177: Heating Water | J177: Above | K177: stlpip | L177: Steel Pipe Columbia | M177: 19 | N177: Columbia | P177: 2/27/2024 7:27:07 AM | Q177: 260.4549255 | R177: Sch 40 ERW Blk Stl Pipe A53B PE | S177: <None> | T177: <None> | U177: 5.789999962 | V177: 0.03400000185 | W177: 0.753000021 | X177: 0 | Y177: 1 | Z177: <None> | AC177: 2½ | AD177: 160 | AE177: 0 | AF177: 0 | AG177: 0 | AI177: 26.057 | AJ177: V | AK177: 0.25 | AL177: 0.2199999988 | AM177: 57.30008316 | AN177: 1 | AO177: 0 | AP177: 0 | AQ177: stlppe | AR177: Steel Pipe Plain End | AS177: 4 | AT177: Mechanical#0010.pdf | AY177: 26.057 | AZ177: HWSHWR4 | BB177: 1 | BC177: PE7212700A0 | BD177: 33 | BE177: 39 | BF177: 0
A178: 147 | B178: 0 | C178: 0 | D178: 4 | E178: 3 | F178: MEDAIR | G178: Cleaned/Capped Copper Med Air | H178: 7th floor | I178: Med Gas | J178: Above | K178: uppera | L178: Upper Attachments | M178: 195 | N178: B-Line | O178: B3033 | P178: 6/15/2022 | Q178: 24 | R178: Plain Wide Jaw Top C-Clamp | S178: <None> | T178: <None> | U178: 0.5400000215 | V178: 0 | W178: 0 | X178: 0 | Y178: 5 | Z178: <None> | AC178: ⅜ | AD178: -128 | AE178: 24 | AF178: 0 | AG178: 0 | AI178: 13.07 | AJ178: V | AK178: 0.2 | AL178: 0.2300000042 | AM178: 5.519999981 | AN178: 1 | AO178: 74754 | AP178: 70 | AQ178: hngbmc | AR178: Hanger Beam Clamps | AS178: 195 | AT178: Plumbing#0011.pdf | AY178: 13.07 | AZ178: MEDAIR | BB178: 1 | BC178: HE32333FF800018 | BD178: 35 | BE178: 51 | BF178: 0
A179: 151 | B179: 0 | C179: 0 | D179: 4 | E179: 3 | F179: MEDAIR | G179: Cleaned/Capped Copper Med Air | H179: 7th floor | I179: Med Gas | J179: Above | K179: uppera | L179: Upper Attachments | M179: 195 | N179: B-Line | O179: B3033 | P179: 6/15/2022 | Q179: 24 | R179: Plain Wide Jaw Top C-Clamp | S179: <None> | T179: <None> | U179: 0.5400000215 | V179: 0 | W179: 0 | X179: 0 | Y179: 5 | Z179: <None> | AC179: ⅜ | AD179: -128 | AE179: 24 | AF179: 0 | AG179: 0 | AI179: 13.07 | AJ179: V | AK179: 0.2 | AL179: 0.2300000042 | AM179: 5.519999981 | AN179: 1 | AO179: 74754 | AP179: 70 | AQ179: hngbmc | AR179: Hanger Beam Clamps | AS179: 195 | AT179: Plumbing#0012.pdf | AY179: 13.07 | AZ179: MEDAIR | BB179: 1 | BC179: HE32333FF800018 | BD179: 35 | BE179: 51 | BF179: 0
A180: 155 | B180: 0 | C180: 0 | D180: 4 | E180: 3 | F180: MEDAIR | G180: Cleaned/Capped Copper Med Air | H180: 7th floor | I180: Med Gas | J180: Above | K180: uppera | L180: Upper Attachments | M180: 195 | N180: B-Line | O180: B3033 | P180: 6/15/2022 | Q180: 33 | R180: Plain Wide Jaw Top C-Clamp | S180: <None> | T180: <None> | U180: 0.5400000215 | V180: 0 | W180: 0 | X180: 0 | Y180: 5 | Z180: <None> | AC180: ⅜ | AD180: -128 | AE180: 24 | AF180: 0 | AG180: 0 | AI180: 13.07 | AJ180: V | AK180: 0.2 | AL180: 0.2300000042 | AM180: 7.590000153 | AN180: 1 | AO180: 75778 | AP180: 70 | AQ180: hngbmc | AR180: Hanger Beam Clamps | AS180: 195 | AT180: Plumbing#0011.pdf | AY180: 13.07 | AZ180: MEDAIR | BB180: 1 | BC180: HE32333FF800018 | BD180: 35 | BE180: 51 | BF180: 0
A181: 159 | B181: 0 | C181: 0 | D181: 4 | E181: 3 | F181: MEDAIR | G181: Cleaned/Capped Copper Med Air | H181: 7th floor | I181: Med Gas | J181: Above | K181: uppera | L181: Upper Attachments | M181: 195 | N181: B-Line | O181: B3033 | P181: 6/15/2022 | Q181: 33 | R181: Plain Wide Jaw Top C-Clamp | S181: <None> | T181: <None> | U181: 0.5400000215 | V181: 0 | W181: 0 | X181: 0 | Y181: 5 | Z181: <None> | AC181: ⅜ | AD181: -128 | AE181: 24 | AF181: 0 | AG181: 0 | AI181: 13.07 | AJ181: V | AK181: 0.2 | AL181: 0.2300000042 | AM181: 7.590000153 | AN181: 1 | AO181: 75778 | AP181: 70 | AQ181: hngbmc | AR181: Hanger Beam Clamps | AS181: 195 | AT181: Plumbing#0012.pdf | AY181: 13.07 | AZ181: MEDAIR | BB181: 1 | BC181: HE32333FF800018 | BD181: 35 | BE181: 51 | BF181: 0
A182: 163 | B182: 0 | C182: 0 | D182: 4 | E182: 3 | F182: MEDAIR | G182: Cleaned/Capped Copper Med Air | H182: 7th floor | I182: Med Gas | J182: Above | K182: uppera | L182: Upper Attachments | M182: 195 | N182: B-Line | O182: B3033 | P182: 6/15/2022 | Q182: 12 | R182: Plain Wide Jaw Top C-Clamp | S182: <None> | T182: <None> | U182: 0.5400000215 | V182: 0 | W182: 0 | X182: 0 | Y182: 5 | Z182: <None> | AC182: ⅜ | AD182: -128 | AE182: 24 | AF182: 0 | AG182: 0 | AI182: 13.07 | AJ182: V | AK182: 0.2 | AL182: 0.2300000042 | AM182: 2.75999999 | AN182: 1 | AO182: 76802 | AP182: 70 | AQ182: hngbmc | AR182: Hanger Beam Clamps | AS182: 195 | AT182: Plumbing#0011.pdf | AY182: 13.07 | AZ182: MEDAIR | BB182: 1 | BC182: HE32333FF800018 | BD182: 35 | BE182: 51 | BF182: 0
A183: 167 | B183: 0 | C183: 0 | D183: 4 | E183: 3 | F183: MEDAIR | G183: Cleaned/Capped Copper Med Air | H183: 7th floor | I183: Med Gas | J183: Above | K183: uppera | L183: Upper Attachments | M183: 195 | N183: B-Line | O183: B3033 | P183: 6/15/2022 | Q183: 12 | R183: Plain Wide Jaw Top C-Clamp | S183: <None> | T183: <None> | U183: 0.5400000215 | V183: 0 | W183: 0 | X183: 0 | Y183: 5 | Z183: <None> | AC183: ⅜ | AD183: -128 | AE183: 24 | AF183: 0 | AG183: 0 | AI183: 13.07 | AJ183: V | AK183: 0.2 | AL183: 0.2300000042 | AM183: 2.75999999 | AN183: 1 | AO183: 76802 | AP183: 70 | AQ183: hngbmc | AR183: Hanger Beam Clamps | AS183: 195 | AT183: Plumbing#0012.pdf | AY183: 13.07 | AZ183: MEDAIR | BB183: 1 | BC183: HE32333FF800018 | BD183: 35 | BE183: 51 | BF183: 0
A184: 171 | B184: 0 | C184: 0 | D184: 4 | E184: 3 | F184: MEDAIR | G184: Cleaned/Capped Copper Med Air | H184: 7th floor | I184: Med Gas | J184: Above | K184: uppera | L184: Upper Attachments | M184: 195 | N184: B-Line | O184: B3033 | P184: 6/15/2022 | Q184: 102 | R184: Plain Wide Jaw Top C-Clamp | S184: <None> | T184: <None> | U184: 0.5400000215 | V184: 0 | W184: 0 | X184: 0 | Y184: 5 | Z184: <None> | AC184: ⅜ | AD184: -128 | AE184: 24 | AF184: 0 | AG184: 0 | AI184: 13.07 | AJ184: V | AK184: 0.2 | AL184: 0.2300000042 | AM184: 23.46000099 | AN184: 1 | AO184: 77826 | AP184: 70 | AQ184: hngbmc | AR184: Hanger Beam Clamps | AS184: 195 | AT184: Plumbing#0011.pdf | AY184: 13.07 | AZ184: MEDAIR | BB184: 1 | BC184: HE32333FF800018 | BD184: 35 | BE184: 51 | BF184: 0
A185: 175 | B185: 0 | C185: 0 | D185: 4 | E185: 3 | F185: MEDAIR | G185: Cleaned/Capped Copper Med Air | H185: 7th floor | I185: Med Gas | J185: Above | K185: uppera | L185: Upper Attachments | M185: 195 | N185: B-Line | O185: B3033 | P185: 6/15/2022 | Q185: 102 | R185: Plain Wide Jaw Top C-Clamp | S185: <None> | T185: <None> | U185: 0.5400000215 | V185: 0 | W185: 0 | X185: 0 | Y185: 5 | Z185: <None> | AC185: ⅜ | AD185: -128 | AE185: 24 | AF185: 0 | AG185: 0 | AI185: 13.07 | AJ185: V | AK185: 0.2 | AL185: 0.2300000042 | AM185: 23.46000099 | AN185: 1 | AO185: 77826 | AP185: 70 | AQ185: hngbmc | AR185: Hanger Beam Clamps | AS185: 195 | AT185: Plumbing#0012.pdf | AY185: 13.07 | AZ185: MEDAIR | BB185: 1 | BC185: HE32333FF800018 | BD185: 35 | BE185: 51 | BF185: 0
A186: 53 | B186: 0 | C186: 0 | D186: 3 | E186: 1 | F186: HWSHWR4 | G186: Copper/Welded Heating Water | H186: 7th floor | I186: Heating Water | J186: Above | K186: uppera | L186: Upper Attachments | M186: 195 | N186: B-Line | O186: B3033 | P186: 6/15/2022 | Q186: 197 | R186: Plain Wide Jaw Top C-Clamp | S186: <None> | T186: <None> | U186: 0.5400000215 | V186: 0 | W186: 0 | X186: 0 | Y186: 5 | Z186: <None> | AC186: ⅜ | AD186: -128 | AE186: 24 | AF186: 0 | AG186: 0 | AI186: 13.07 | AJ186: V | AK186: 0.2 | AL186: 0.2300000042 | AM186: 45.31000137 | AN186: 1 | AO186: 78852 | AP186: 70 | AQ186: hngbmc | AR186: Hanger Beam Clamps | AS186: 195 | AT186: Mechanical#0010.pdf | AY186: 13.07 | AZ186: HWSHWR4 | BB186: 1 | BC186: HE32333FF800018 | BD186: 35 | BE186: 51 | BF186: 0
A187: 179 | B187: 0 | C187: 0 | D187: 4 | E187: 3 | F187: MEDAIR | G187: Cleaned/Capped Copper Med Air | H187: 7th floor | I187: Med Gas | J187: Above | K187: uppera | L187: Upper Attachments | M187: 195 | N187: B-Line | O187: B3033 | P187: 6/15/2022 | Q187: 15 | R187: Plain Wide Jaw Top C-Clamp | S187: <None> | T187: <None> | U187: 0.5099999905 | V187: 0 | W187: 0 | X187: 0 | Y187: 5 | Z187: <None> | AC187: ½ | AD187: -224 | AE187: 32 | AF187: 0 | AG187: 0 | AI187: 17.97 | AJ187: V | AK187: 0.2 | AL187: 0.2399999946 | AM187: 3.599999905 | AN187: 1 | AO187: 79874 | AP187: 71 | AQ187: hngbmc | AR187: Hanger Beam Clamps | AS187: 195 | AT187: Plumbing#0011.pdf | AY187: 17.97 | AZ187: MEDAIR | BB187: 1 | BC187: HE32333FF200020 | BD187: 35 | BE187: 51 | BF187: 0
A188: 183 | B188: 0 | C188: 0 | D188: 4 | E188: 3 | F188: MEDAIR | G188: Cleaned/Capped Copper Med Air | H188: 7th floor | I188: Med Gas | J188: Above | K188: uppera | L188: Upper Attachments | M188: 195 | N188: B-Line | O188: B3033 | P188: 6/15/2022 | Q188: 15 | R188: Plain Wide Jaw Top C-Clamp | S188: <None> | T188: <None> | U188: 0.5099999905 | V188: 0 | W188: 0 | X188: 0 | Y188: 5 | Z188: <None> | AC188: ½ | AD188: -224 | AE188: 32 | AF188: 0 | AG188: 0 | AI188: 17.97 | AJ188: V | AK188: 0.2 | AL188: 0.2399999946 | AM188: 3.599999905 | AN188: 1 | AO188: 79874 | AP188: 71 | AQ188: hngbmc | AR188: Hanger Beam Clamps | AS188: 195 | AT188: Plumbing#0012.pdf | AY188: 17.97 | AZ188: MEDAIR | BB188: 1 | BC188: HE32333FF200020 | BD188: 35 | BE188: 51 | BF188: 0
A189: 33 | B189: 0 | C189: 0 | D189: 2 | E189: 3 | F189: DOMWATER | G189: Copper Domestic Water | H189: All 7th Floor | I189: Water | J189: Above | K189: uppera | L189: Upper Attachments | M189: 195 | N189: B-Line | O189: B3033 | P189: 6/15/2022 | Q189: 780 | R189: Plain Wide Jaw Top C-Clamp | S189: <None> | T189: <None> | U189: 0.5099999905 | V189: 0 | W189: 0 | X189: 0 | Y189: 5 | Z189: <None> | AC189: ½ | AD189: -224 | AE189: 32 | AF189: 0 | AG189: 0 | AI189: 17.97 | AJ189: V | AK189: 0.2 | AL189: 0.2399999946 | AM189: 187.1999969 | AN189: 1 | AO189: 80900 | AP189: 71 | AQ189: hngbmc | AR189: Hanger Beam Clamps | AS189: 195 | AT189: Plumbing#0007.pdf | AY189: 17.97 | AZ189: DOMWATER | BB189: 1 | BC189: HE32333FF200020 | BD189: 35 | BE189: 51 | BF189: 0
A190: 60 | B190: 0 | C190: 0 | D190: 3 | E190: 1 | F190: HWSHWR4 | G190: Copper/Welded Heating Water | H190: 7th floor | I190: Heating Water | J190: Above | K190: uppera | L190: Upper Attachments | M190: 195 | N190: B-Line | O190: B3033 | P190: 6/15/2022 | Q190: 33 | R190: Plain Wide Jaw Top C-Clamp | S190: <None> | T190: <None> | U190: 0.5099999905 | V190: 0 | W190: 0 | X190: 0 | Y190: 5 | Z190: <None> | AC190: ½ | AD190: -224 | AE190: 32 | AF190: 0 | AG190: 0 | AI190: 17.97 | AJ190: V | AK190: 0.2 | AL190: 0.2399999946 | AM190: 7.919999599 | AN190: 1 | AO190: 81924 | AP190: 71 | AQ190: hngbmc | AR190: Hanger Beam Clamps | AS190: 195 | AT190: Mechanical#0010.pdf | AY190: 17.97 | AZ190: HWSHWR4 | BB190: 1 | BC190: HE32333FF200020 | BD190: 35 | BE190: 51 | BF190: 0
A191: 187 | B191: 0 | C191: 0 | D191: 4 | E191: 3 | F191: MEDAIR | G191: Cleaned/Capped Copper Med Air | H191: 7th floor | I191: Med Gas | J191: Above | K191: uppera | L191: Upper Attachments | M191: 195 | N191: B-Line | O191: B3033 | P191: 6/15/2022 | Q191: 6 | R191: Plain Wide Jaw Top C-Clamp | S191: <None> | T191: <None> | U191: 0.6999999881 | V191: 0 | W191: 0 | X191: 0 | Y191: 5 | Z191: <None> | AC191: ⅝ | AD191: -320 | AE191: 40 | AF191: 0 | AG191: 0 | AI191: 32.88 | AJ191: V | AK191: 0.2 | AL191: 0.25 | AM191: 1.5 | AN191: 1 | AO191: 82946 | AP191: 72 | AQ191: hngbmc | AR191: Hanger Beam Clamps | AS191: 195 | AT191: Plumbing#0011.pdf | AY191: 32.88 | AZ191: MEDAIR | BB191: 1 | BC191: HE32333FEC00028 | BD191: 35 | BE191: 51 | BF191: 0
A192: 191 | B192: 0 | C192: 0 | D192: 4 | E192: 3 | F192: MEDAIR | G192: Cleaned/Capped Copper Med Air | H192: 7th floor | I192: Med Gas | J192: Above | K192: uppera | L192: Upper Attachments | M192: 195 | N192: B-Line | O192: B3033 | P192: 6/15/2022 | Q192: 6 | R192: Plain Wide Jaw Top C-Clamp | S192: <None> | T192: <None> | U192: 0.6999999881 | V192: 0 | W192: 0 | X192: 0 | Y192: 5 | Z192: <None> | AC192: ⅝ | AD192: -320 | AE192: 40 | AF192: 0 | AG192: 0 | AI192: 32.88 | AJ192: V | AK192: 0.2 | AL192: 0.25 | AM192: 1.5 | AN192: 1 | AO192: 82946 | AP192: 72 | AQ192: hngbmc | AR192: Hanger Beam Clamps | AS192: 195 | AT192: Plumbing#0012.pdf | AY192: 32.88 | AZ192: MEDAIR | BB192: 1 | BC192: HE32333FEC00028 | BD192: 35 | BE192: 51 | BF192: 0
A193: 7 | B193: 0 | C193: 0 | D193: 1 | E193: 1 | F193: NO-HUBCH | G193: Above Grade No-Hub DWV | H193: All 7th Floor | I193: DWV | J193: Above | K193: uppera | L193: Upper Attachments | M193: 195 | N193: B-Line | O193: B3033 | P193: 6/15/2022 | Q193: 550 | R193: Plain Wide Jaw Top C-Clamp | S193: <None> | T193: <None> | U193: 0.6999999881 | V193: 0 | W193: 0 | X193: 0 | Y193: 5 | Z193: <None> | AC193: ⅝ | AD193: -320 | AE193: 40 | AF193: 0 | AG193: 0 | AI193: 32.88 | AJ193: V | AK193: 0.2 | AL193: 0.25 | AM193: 137.5 | AN193: 1 | AO193: 83972 | AP193: 72 | AQ193: hngbmc | AR193: Hanger Beam Clamps | AS193: 195 | AT193: Plumbing#0004.pdf | AY193: 32.88 | AZ193: NO-HUBCH | BB193: 1 | BC193: HE32333FEC00028 | BD193: 35 | BE193: 51 | BF193: 0
A194: 38 | B194: -1 | C194: 0 | D194: 3 | E194: 1 | F194: HWSHWR4 | G194: Copper/Welded Heating Water | H194: 7th floor | I194: Heating Water | J194: Above | K194: wldfit | L194: CS Weld Fittings Weldbend | M194: 5 | N194: Weldbend | O194: 052-022-010 | P194: 8/1/2022 | Q194: 20 | R194: Std Wt Steel Weld Red Tee | S194: <None> | T194: <None> | U194: 4.599999905 | V194: 0.01400000043 | W194: 0.3610000014 | X194: 0 | Y194: 2 | Z194: <None> | AC194: 2½ x1 | AD194: 160 | AE194: -160 | AF194: 64 | AG194: 0 | AI194: 133 | AJ194: V | AK194: 0.75 | AL194: 4.460000038 | AM194: 89.19999695 | AN194: 1 | AO194: 10240 | AP194: 10 | AQ194: csfwld | AR194: Carb Steel Ftgs Buttweld | AS194: 9 | AT194: <None> | AY194: 133 | AZ194: HWSHWR4 | BB194: 1 | BC194: FC12521100F00A0FF600040 | BD194: 37 | BE194: 33 | BF194: 4111

Sheet Config (hidden)
A1: Configuration Name | B1: Value | C1: Notes
A2: CompanyName | B2: Comfort Systems USA Arkansas | C2: Company name
A3: ComputerName | B3: ARK02-58Q0TV3 | C3: Computer name
A5: SiteName | B5: FastEST-Local.site | C5: Site name
A6: SitePath | B6: S:\FastEST\FastEST-Local.site | C6: Site folder full path name
A7: JobName | B7: MERCY 7TH FLOOR | C7: Job name
A8: JobPath | B8: S:\FastEST\FastEST-Local.site\Jobs\MERCY 7TH FLOOR.job | C8: Job folder full path name
A9: JobDescription | B9: 100%DD Budget | C9: Job description
A10: JobTemplateName | B10: Plumbing/HVAC Piping | C10: Job template used during creation
A11: JobCreatedDate | B11: 2024-11-22T14:47:59 | C11: Job creation date
A12: JobBidDateTime | B12: 2024-11-22T14:47:35 | C12: Job bid date (from Job Info tab)
A13: JobSiteAddress | C13: Job site address (from Job Info tab)
A14: JobSiteCity | C14: Job site city (from Job Info tab)
A15: JobSiteState | C15: Job site state (from Job Info tab)
A16: JobPipeEstimator | C16: Job pipe estimator name (from Job Info tab)
A17: JobDuctEstimator | C17: Job duct estimator name (from Job Info tab)
A18: JobNotes | C18: Job notes (from Job Info tab)
A19: ShowQuantityVerification | B19: FALSE | C19: Show quantity verification on quote sheets
A20: PipeRefreshData | B20: FALSE | C20: Flag indicating pipe data has been refreshed
A21: PipeRefreshDateTime | B21: 2025-01-08T15:30:46 | C21: Date/time pipe data was last refreshed
A22: PipeCalcDateTime | B22: 2025-01-07T10:20:37 | C22: Pipe calculation date
A23: PipeCalcDetailExceptions | B23: 0 | C23: Pipe detail exception count
A24: PipeCalcSummaryExceptions | B24: 0 | C24: Pipe summary exception count
A25: PipeCalcLaborSourceName | B25: MCAA | C25: Pipe labor source name
A26: PipeCalcLaborSetName | B26: 1 | C26: Pipe labor set name
A27: PipeCalcMaterialSetName | B27: Factor 1 | C27: Pipe material set name
A28: PiipeCalcShowPartNumber | B28: FALSE | C28: Pipe detail shows partnumber instead of weight
A29: PipeCalcSkippedInsulationItems | B29: 0
A30: PipeMacroVersion | B30: 53
A31: PipeReportParameterSections | B31: 1, 2, 3, 4
A32: PipeReportParameterSpecs
A33: PipeReportParameterAreas
A34: PipeReportParameterSystems
A35: PipeReportParameterRemarks
A36: PipeReportParameterHeader1
A37: PipeReportParameterHeader2
A38: PipeReportParameterHeader3
A39: PipeReportParameterHeader4
A40: PipeReportParameterPlans
A41: PipeReportParameterZones
A42: PipeReportParameterCostCodes
A43: PipeReportParameterTags
A44: PipeReportIncompleteReminderCount | B44: 0
A45: PipeReportIncompleteReminders
